Workbook

Sheet Home

Sheet AL
A1: Albania | AK1: 2020/2021
B3: a | C3: not applicable | J3: m | K3: not available
B5: National currency: | J5: ALL | T5: 122.46 | Z5: 66.2645 | AF5: 122.46
B7: Contents
D8: =$A$37 -> 1. Teachers
D9: =$A$39 -> Annual gross statutory salaries of teachers in public schools
F11: =$B$43 -> Salary range for teachers with the minimum qualification
F12: =$B$67 -> Salary range for teachers with a higher qualification (when most prevalent)
D13: =$A$94 -> Average annual gross actual salaries of teachers in public schools
D14: =$A$119 -> Allowances for teachers in public schools
F16: =$B$120 -> Allowances related to other tasks and responsibilities
F17: =$B$143 -> Allowances related to qualifications, training and performance
F18: =$B$158 -> Allowances related to teaching conditions
F19: =$C$171 -> Other criteria
D20: =$A$186 -> 2. School heads
D21: =$A$188 -> Annual gross statutory salaries of school heads in public schools
F23: =$B$195 -> Single or lowest salary range (when more than one)
F24: =$B$209 -> Highest salary range
F25: =$B$223 -> Most prevalent range (when none of the above)
D27: =$A$241 -> Average annual gross actual salaries of school heads in public schools
D29: =$A$266 -> Allowances for school heads in public schools
F31: =$B$267 -> Allowances related to other tasks and responsibilities
F32: =$B$290 -> Allowances related to qualifications, training and performance
F33: =$B$305 -> Allowances related to working conditions
F34: =$B$318 -> Other criteria
A37: 1. Teachers
A39: Annual gross statutory salaries of teachers in public schools | AE39: 2020/2021
J40: ISCED 02 | Q40: ISCED 1 | X40: ISCED 24 | AE40: ISCED 34
B41: Authority level determining the statutory salaries of teachers | J41: Top-level authority | Q41: Top-level authority | X41: Top-level authority | AE41: Top-level authority
B43: Salary range for teachers with the minimum qualification
J45: ISCED 02 | Q45: ISCED 1 | X45: ISCED 24 | AE45: ISCED 34
B46: Minimum qualification to enter the teaching profession | J46: Bachelor's degree on teaching or its equivalent (ISCED 6) + state exam
B49: TRUE | C49: TRUE | D49: TRUE | J49: ISCED 02 | Q49: ISCED 1 | X49: ISCED 24 | AE49: ISCED 34
B50: Starting salary | J50: EUR | L50: =IFERROR(L51/$T$5,L51) -> 4233.414993 | Q50: EUR | S50: =IFERROR(S51/$T$5,S51) -> 4990.984811 | X50: EUR | Z50: =IFERROR(Z51/$T$5,Z51) -> 5187.065164 | AE50: EUR | AG50: =IFERROR(AG51/$T$5,AG51) -> 5481.234689
B51: =$B$50 -> Starting salary | J51: =$J$5 -> ALL | L51: 518424 | Q51: =$J$5 -> ALL | S51: 611196 | X51: =$J$5 -> ALL | Z51: 635208 | AE51: =$J$5 -> ALL | AG51: 671232
B52: =$B$50 -> Starting salary | J52: PPS | L52: =IFERROR(L51/$Z$5,L51) -> 7823.555599 | Q52: =$J$52 -> PPS | S52: =IFERROR(S51/$Z$5,S51) -> 9223.581254 | X52: =$J$52 -> PPS | Z52: =IFERROR(Z51/$Z$5,Z51) -> 9585.947227 | AE52: =$J$52 -> PPS | AG52: =IFERROR(AG51/$Z$5,AG51) -> 10129.58673
B53: After 10 years' experience | J53: EUR | L53: =IFERROR(L54/$T$5,L54) -> 4478.548097 | Q53: EUR | S53: =IFERROR(S54/$T$5,S54) -> 5302.988731 | X53: EUR | Z53: =IFERROR(Z54/$T$5,Z54) -> 5499.069084 | AE53: EUR | AG53: =IFERROR(AG54/$T$5,AG54) -> 5793.238609
B54: =$B$53 -> After 10 years' experience | J54: =$J$5 -> ALL | L54: 548443 | Q54: =$J$5 -> ALL | S54: 649404 | X54: =$J$5 -> ALL | Z54: 673416 | AE54: =$J$5 -> ALL | AG54: 709440
B55: =$B$53 -> After 10 years' experience | J55: =$J$52 -> PPS | L55: =IFERROR(L54/$Z$5,L54) -> 8276.573429 | Q55: =$J$52 -> PPS | S55: =IFERROR(S54/$Z$5,S54) -> 9800.179583 | X55: =$J$52 -> PPS | Z55: =IFERROR(Z54/$Z$5,Z54) -> 10162.54556 | AE55: =$J$52 -> PPS | AG55: =IFERROR(AG54/$Z$5,AG54) -> 10706.18506
B56: After 15 years' experience | J56: EUR | L56: =IFERROR(L57/$T$5,L57) -> 4625.575698 | Q56: EUR | S56: =IFERROR(S57/$T$5,S57) -> 5490.151886 | X56: EUR | Z56: =IFERROR(Z57/$T$5,Z57) -> 5686.232239 | AE56: EUR | AG56: =IFERROR(AG57/$T$5,AG57) -> 5980.401764
B57: =$B$56 -> After 15 years' experience | J57: =$J$5 -> ALL | L57: 566448 | Q57: =$J$5 -> ALL | S57: 672324 | X57: =$J$5 -> ALL | Z57: 696336 | AE57: =$J$5 -> ALL | AG57: 732360
B58: =$B$56 -> After 15 years' experience | J58: =$J$52 -> PPS | L58: =IFERROR(L57/$Z$5,L57) -> 8548.287545 | Q58: =$J$52 -> PPS | S58: =IFERROR(S57/$Z$5,S57) -> 10146.06614 | X58: =$J$52 -> PPS | Z58: =IFERROR(Z57/$Z$5,Z57) -> 10508.43212 | AE58: =$J$52 -> PPS | AG58: =IFERROR(AG57/$Z$5,AG57) -> 11052.07162
B59: At the top of the range | J59: EUR | L59: =IFERROR(L60/$T$5,L60) -> 4919.745223 | Q59: EUR | S59: =IFERROR(S60/$T$5,S60) -> 5864.478197 | X59: EUR | Z59: =IFERROR(Z60/$T$5,Z60) -> 6060.55855 | AE59: EUR | AG59: =IFERROR(AG60/$T$5,AG60) -> 6354.728074
B60: =$B$59 -> At the top of the range | J60: =$J$5 -> ALL | L60: 602472 | Q60: =$J$5 -> ALL | S60: 718164 | X60: =$J$5 -> ALL | Z60: 742176 | AE60: =$J$5 -> ALL | AG60: 778200
B61: =$B$59 -> At the top of the range | J61: =$J$52 -> PPS | L61: =IFERROR(L60/$Z$5,L60) -> 9091.92705 | Q61: =$J$52 -> PPS | S61: =IFERROR(S60/$Z$5,S60) -> 10837.83927 | X61: =$J$52 -> PPS | Z61: =IFERROR(Z60/$Z$5,Z60) -> 11200.20524 | AE61: =$J$52 -> PPS | AG61: =IFERROR(AG60/$Z$5,AG60) -> 11743.84474
L63: ISCED 02 | Q63: ISCED 1 | X63: ISCED 24 | AE63: ISCED 34
B64: % teachers paid on this range | L64: 1 | Q64: 1 | X64: 1 | AE64: 1
B65: Average nr of years to reach the top | L65: 20 | Q65: 20 | X65: 20 | AE65: 20
B67: Salary range for teachers with a higher qualification (when most prevalent)
J69: ISCED 02 | Q69: ISCED 1 | X69: ISCED 24 | AE69: ISCED 34
B70: Minimum qualification to enter the teaching profession | J70: – | Q70: – | X70: – | AE70: –
B73: FALSE | C73: TRUE | D73: FALSE | J73: ISCED 02 | Q73: ISCED 1 | X73: ISCED 24 | AE73: ISCED 34
B74: Starting salary | J74: EUR | L74: =IFERROR(L75/$T$5,L75) -> – | Q74: EUR | S74: =IFERROR(S75/$T$5,S75) -> – | X74: EUR | Z74: =IFERROR(Z75/$T$5,Z75) -> – | AE74: EUR | AG74: =IFERROR(AG75/$T$5,AG75) -> –
B75: =$B$50 -> Starting salary | J75: =$J$5 -> ALL | L75: – | Q75: =$J$51 -> ALL | S75: – | X75: =$J$5 -> ALL | Z75: – | AE75: =$J$5 -> ALL | AG75: –
B76: =$B$50 -> Starting salary | J76: PPS | L76: =IFERROR(L75/$Z$5,L75) -> – | Q76: =$J$52 -> PPS | S76: =IFERROR(S75/$Z$5,S75) -> – | X76: =$J$52 -> PPS | Z76: =IFERROR(Z75/$Z$5,Z75) -> – | AE76: =$J$52 -> PPS | AG76: =IFERROR(AG75/$Z$5,AG75) -> –
B77: After 10 years' experience | J77: EUR | L77: =IFERROR(L78/$T$5,L78) -> – | Q77: EUR | S77: =IFERROR(S78/$T$5,S78) -> – | X77: EUR | Z77: =IFERROR(Z78/$T$5,Z78) -> – | AE77: EUR | AG77: =IFERROR(AG78/$T$5,AG78) -> –
B78: =$B$53 -> After 10 years' experience | J78: =$J$5 -> ALL | L78: – | Q78: =$J$51 -> ALL | S78: – | X78: =$J$5 -> ALL | Z78: – | AE78: =$J$5 -> ALL | AG78: –
B79: =$B$53 -> After 10 years' experience | J79: =$J$52 -> PPS | L79: =IFERROR(L78/$Z$5,L78) -> – | Q79: =$J$52 -> PPS | S79: =IFERROR(S78/$Z$5,S78) -> – | X79: =$J$52 -> PPS | Z79: =IFERROR(Z78/$Z$5,Z78) -> – | AE79: =$J$52 -> PPS | AG79: =IFERROR(AG78/$Z$5,AG78) -> –
B80: After 15 years' experience | J80: EUR | L80: =IFERROR(L81/$T$5,L81) -> – | Q80: EUR | S80: =IFERROR(S81/$T$5,S81) -> – | X80: EUR | Z80: =IFERROR(Z81/$T$5,Z81) -> – | AE80: EUR | AG80: =IFERROR(AG81/$T$5,AG81) -> –
B81: =$B$56 -> After 15 years' experience | J81: =$J$5 -> ALL | L81: – | Q81: =$J$51 -> ALL | S81: – | X81: =$J$5 -> ALL | Z81: – | AE81: =$J$5 -> ALL | AG81: –
B82: =$B$56 -> After 15 years' experience | J82: =$J$52 -> PPS | L82: =IFERROR(L81/$Z$5,L81) -> – | Q82: =$J$52 -> PPS | S82: =IFERROR(S81/$Z$5,S81) -> – | X82: =$J$52 -> PPS | Z82: =IFERROR(Z81/$Z$5,Z81) -> – | AE82: =$J$52 -> PPS | AG82: =IFERROR(AG81/$Z$5,AG81) -> –
B83: At the top of the range | J83: EUR | L83: =IFERROR(L84/$T$5,L84) -> – | Q83: EUR | S83: =IFERROR(S84/$T$5,S84) -> – | X83: EUR | Z83: =IFERROR(Z84/$T$5,Z84) -> – | AE83: EUR | AG83: =IFERROR(AG84/$T$5,AG84) -> –
B84: =$B$59 -> At the top of the range | J84: =$J$5 -> ALL | L84: – | Q84: =$J$51 -> ALL | S84: – | X84: =$J$5 -> ALL | Z84: – | AE84: =$J$5 -> ALL | AG84: –
B85: =$B$59 -> At the top of the range | J85: =$J$52 -> PPS | L85: =IFERROR(L84/$Z$5,L84) -> – | Q85: =$J$52 -> PPS | S85: =IFERROR(S84/$Z$5,S84) -> – | X85: =$J$52 -> PPS | Z85: =IFERROR(Z84/$Z$5,Z84) -> – | AE85: =$J$52 -> PPS | AG85: =IFERROR(AG84/$Z$5,AG84) -> –
L87: ISCED 02 | Q87: ISCED 1 | X87: ISCED 24 | AE87: ISCED 34
B88: % teachers paid on this range | L88: – | Q88: – | X88: – | AE88: –
B89: Average nr of years to reach the top | L89: – | Q89: – | X89: – | AE89: –
B91: Source | J91: Decision of Council of Ministers nr 175 of 8/03/2017 (http://dap.gov.al/legjislacioni/per-administraten-publike/162-vkm-nr-175-dt-8-3-2017-3-2017-pagat-e-punonjesve-te-arsimit-parauniversitar-pdf).
B92: Explanatory notes | J92: –
A94: Average annual gross actual salaries of teachers in public schools | AE94: 2020/2021
B97: FALSE | C97: TRUE | D97: FALSE | J97: ISCED 02 | Q97: ISCED 1 | X97: ISCED 24 | AE97: ISCED 34
B98: Teachers aged 25-64 | J98: EUR | L98: =IFERROR(L99/$AF$5,L99) -> m | Q98: EUR | S98: =IFERROR(S99/$AF$5,S99) -> m | X98: EUR | Z98: =IFERROR(Z99/$AF$5,Z99) -> m | AE98: EUR | AG98: =IFERROR(AG99/$AF$5,AG99) -> m
B99: =B98 -> Teachers aged 25-64 | J99: =$J$5 -> ALL | L99: m | Q99: =$J$51 -> ALL | S99: m | X99: =$J$5 -> ALL | Z99: m | AE99: =$J$5 -> ALL | AG99: m
B100: =B99 -> Teachers aged 25-64 | J100: PPS | L100: =IFERROR(L99/$Z$5,L99) -> m | Q100: =$J$52 -> PPS | S100: =IFERROR(S99/$Z$5,S99) -> m | X100: =$J$52 -> PPS | Z100: =IFERROR(Z99/$Z$5,Z99) -> m | AE100: =$J$52 -> PPS | AG100: =IFERROR(AG99/$Z$5,AG99) -> m
B101: Teachers aged 25-34 | J101: EUR | L101: =IFERROR(L102/$AF$5,L102) -> m | Q101: EUR | S101: =IFERROR(S102/$AF$5,S102) -> m | X101: EUR | Z101: =IFERROR(Z102/$AF$5,Z102) -> m | AE101: EUR | AG101: =IFERROR(AG102/$AF$5,AG102) -> m
B102: =B101 -> Teachers aged 25-34 | J102: =$J$5 -> ALL | L102: m | Q102: =$J$51 -> ALL | S102: m | X102: =$J$5 -> ALL | Z102: m | AE102: =$J$5 -> ALL | AG102: m
B103: =B102 -> Teachers aged 25-34 | J103: =$J$52 -> PPS | L103: =IFERROR(L102/$Z$5,L102) -> m | Q103: =$J$52 -> PPS | S103: =IFERROR(S102/$Z$5,S102) -> m | X103: =$J$52 -> PPS | Z103: =IFERROR(Z102/$Z$5,Z102) -> m | AE103: =$J$52 -> PPS | AG103: =IFERROR(AG102/$Z$5,AG102) -> m
B104: Teachers aged 35-44 | J104: EUR | L104: =IFERROR(L105/$AF$5,L105) -> m | Q104: EUR | S104: =IFERROR(S105/$AF$5,S105) -> m | X104: EUR | Z104: =IFERROR(Z105/$AF$5,Z105) -> m | AE104: EUR | AG104: =IFERROR(AG105/$AF$5,AG105) -> m
B105: =B104 -> Teachers aged 35-44 | J105: =$J$5 -> ALL | L105: m | Q105: =$J$51 -> ALL | S105: m | X105: =$J$5 -> ALL | Z105: m | AE105: =$J$5 -> ALL | AG105: m
B106: =B105 -> Teachers aged 35-44 | J106: =$J$52 -> PPS | L106: =IFERROR(L105/$Z$5,L105) -> m | Q106: =$J$52 -> PPS | S106: =IFERROR(S105/$Z$5,S105) -> m | X106: =$J$52 -> PPS | Z106: =IFERROR(Z105/$Z$5,Z105) -> m | AE106: =$J$52 -> PPS | AG106: =IFERROR(AG105/$Z$5,AG105) -> m
B107: Teachers aged 45-54 | J107: EUR | L107: =IFERROR(L108/$AF$5,L108) -> m | Q107: EUR | S107: =IFERROR(S108/$AF$5,S108) -> m | X107: EUR | Z107: =IFERROR(Z108/$AF$5,Z108) -> m | AE107: EUR | AG107: =IFERROR(AG108/$AF$5,AG108) -> m
B108: =B107 -> Teachers aged 45-54 | J108: =$J$5 -> ALL | L108: m | Q108: =$J$51 -> ALL | S108: m | X108: =$J$5 -> ALL | Z108: m | AE108: =$J$5 -> ALL | AG108: m
B109: =B108 -> Teachers aged 45-54 | J109: =$J$52 -> PPS | L109: =IFERROR(L108/$Z$5,L108) -> m | Q109: =$J$52 -> PPS | S109: =IFERROR(S108/$Z$5,S108) -> m | X109: =$J$52 -> PPS | Z109: =IFERROR(Z108/$Z$5,Z108) -> m | AE109: =$J$52 -> PPS | AG109: =IFERROR(AG108/$Z$5,AG108) -> m
B110: Teachers aged 55-64 | J110: EUR | L110: =IFERROR(L111/$AF$5,L111) -> m | Q110: EUR | S110: =IFERROR(S111/$AF$5,S111) -> m | X110: EUR | Z110: =IFERROR(Z111/$AF$5,Z111) -> m | AE110: EUR | AG110: =IFERROR(AG111/$AF$5,AG111) -> m
B111: =B110 -> Teachers aged 55-64 | J111: =$J$5 -> ALL | L111: m | Q111: =$J$51 -> ALL | S111: m | X111: =$J$5 -> ALL | Z111: m | AE111: =$J$5 -> ALL | AG111: m
B112: =B111 -> Teachers aged 55-64 | J112: =$J$52 -> PPS | L112: =IFERROR(L111/$Z$5,L111) -> m | Q112: =$J$52 -> PPS | S112: =IFERROR(S111/$Z$5,S111) -> m | X112: =$J$52 -> PPS | Z112: =IFERROR(Z111/$Z$5,Z111) -> m | AE112: =$J$52 -> PPS | AG112: =IFERROR(AG111/$Z$5,AG111) -> m
B115: Source | J115: Decision of Council of Ministers nr 175 of 8/03/2017, Regulation nr 44 of 16/10/2014 and Regulation nr 21 of 23/07/2010 (http://darelbasan.edu.al/index.php/legjislacioni-peqin/589-udhezimi-nr-44-date-16-10-2014-per-disa-shtesa-dhe-ndryshime-ne-udhezimin-nr-21-date-23-07-2010-te-mash).
B116: Explanatory notes | J116: –
A119: Allowances for teachers in public schools | B119: Salary range for teachers with a higher qualification (when most prevalent) | AE119: 2020/2021
B120: Allowances related to other tasks and responsibilities | N120: 1 | U120: 2
O122: Authority level | V122: Type of financial compensation | AD122: ISCED levels
AD123: 02 | AF123: 1 | AH123: 24 | AJ123: 34
B124: Participation in school or other management tasks in addition to teaching duties | O124: a | V124: a | AD124: ● | AF124: ● | AH124: ● | AJ124: ●
B125: Teaching more classes or hours than required by full-time contract | O125: Top-level authority | V125: Incidental payments | AF125: ● | AH125: ● | AJ125: ●
B126: Students counselling | O126: a | V126: a | AD126: ● | AF126: ● | AH126: ● | AJ126: ●
B127: Engaging in extracurricular activities | O127: a | V127: a | AD127: ● | AF127: ● | AH127: ● | AJ127: ●
B128: Special tasks | O128: a | V128: a | AD128: ● | AF128: ● | AH128: ● | AJ128: ●
B129: Class teacher / form teacher | O129: a | V129: Incidental payments | AD129: ● | AF129: ● | AH129: ● | AJ129: ●
B130: Supporting mentoring / induction programmes | O130: a | V130: No payment (stat. duty) | AD130: ● | AF130: ● | AH130: ● | AJ130: ●
B131: Other | O131: a | V131: a | AD131: ● | AF131: ● | AH131: ● | AJ131: ●
O133: Explanatory notes
B134: =B124 -> Participation in school or other management tasks in addition to teaching duties | O134: –
B135: Teaching more classes or hours than required by full-time contract | O135: ALL 350 per class for teachers in upper secondary education and ALL 275 per class in primary and lower secondary schools.
B136: Students counselling | O136: –
B137: Engaging in extracurricular activities | O137: Reduction in teaching time for teachers that train sport teams in schools with less than 700 pupils (minus 3 hours per week) and for teachers in charge of running artistic activities and coordination in high schools with more than 700 pupils (minus 4 hours per week).
B138: Special tasks | O138: –
B139: Class teacher / form teacher | O139: Form time is provided by teachers for two classes a week. When the teacher is in charge of full teaching, these hours are paid as extra hours.
B140: Supporting mentoring / induction programmes | O140: The mentoring obligation equals 1/4 of that of a teacher, i.e. 2/3 of observation hours and 1/3 of advise hours.
B141: Other | O141: –
B143: Allowances related to qualifications, training and performance | N143: 0 | U143: 0
O145: Authority level | V145: Type of financial compensation | AD145: ISCED levels
AD146: 02 | AF146: 1 | AH146: 24 | AJ146: 34
B147: Further formal qualifications | O147: a | V147: a | AD147: ● | AF147: ● | AH147: ● | AJ147: ●
B148: Successful completion of continuing professional development (CPD) activities | O148: a | V148: a | AD148: ● | AF148: ● | AH148: ● | AJ148: ●
B149: Outstanding performance | O149: Top-level authority | V149: Incidental payments | AD149: ● | AF149: ● | AH149: ● | AJ149: ●
B150: Other | O150: a | V150: a | AD150: ● | AF150: ● | AH150: ● | AJ150: ●
O152: Explanatory notes
B153: =B147 -> Further formal qualifications | O153: –
B154: Successful completion of continuing professional development (CPD) activities | O154: –
B155: Outstanding performance | O155: a) For professional merits in career, compensation of employees of public institutions of pre-university education (director, vice director, teacher) is a monthly salary. b) Winners of national competitions from MESY are compensated 3/4 of their monthly salary. c) Winners of local competition for products/professional achievements are compensated with 3/4 of their monthly salary. d) Winner for products/professional achievements from the public pre-university education is compensated with 1/2 of a monthly salary . e) Most voted teacher for vocational merits by the teachers' council is compensated with 1/2 of the monthly salary.
B156: Other | O156: –
B158: Allowances related to teaching conditions | N158: 0 | U158: 0
O160: Authority level | V160: Type of financial compensation | AD160: ISCED levels
AD161: 02 | AF161: 1 | AH161: 24 | AJ161: 34
B162: Teaching students with special educational needs | O162: a | V162: a | AD162: ● | AF162: ● | AH162: ● | AJ162: ●
B163: Teaching in a disadvantaged, remote or high cost area | O163: Top-level authority | V163: Regular additional payments | AD163: ● | AF163: ● | AH163: ● | AJ163: ●
B164: Other | O164: a | V164: a | AD164: ● | AF164: ● | AH164: ● | AJ164: ●
O166: Explanatory notes
B167: =B162 -> Teaching students with special educational needs | O167: –
B168: Teaching in a disadvantaged, remote or high cost area | O168: Teachers that work away from their residence can get the following allowances: a) When they work within their region outside the urban area and less than 5 km away from their residence and return back to their residence everyday, the compensation equals ALL 2 700 per month. b) When they work within their region outside the urban area and over 5 km away from their residence and do not return home on a daily basis, the compensation equals ALL 6 000 per month. In both cases, the residence allowance is not applicable during holidays.
B169: Other | O169: –
C171: Other criteria
O173: Authority level | V173: Type of financial compensation | AD173: ISCED levels
AD174: 02 | AF174: 1 | AH174: 24 | AJ174: 34
B175: Residence allowance | O175: a | V175: a | AD175: ● | AF175: ● | AH175: ● | AJ175: ●
B176: Family status | O176: a | V176: a | AD176: ● | AF176: ● | AH176: ● | AJ176: ●
B177: Other | O177: a | V177: a | AD177: ● | AF177: ● | AH177: ● | AJ177: ●
O179: Explanatory notes
B180: =B175 -> Residence allowance | O180: –
B181: Family status | O181: –
B182: Other | O182: –
B184: Source | O184: Decision of Council of Ministers nr 175 of 8/03/2017, Regulation nr 44 of 16/10/2014 and regulation nr 21 of 23/07/2010 (http://darelbasan.edu.al/index.php/legjislacioni-peqin/589-udhezimi-nr-44-date-16-10-2014-per-disa-shtesa-dhe-ndryshime-ne-udhezimin-nr-21-date-23-07-2010-te-mash).
A186: 2. School heads
A188: Annual gross statutory salaries of school heads in public schools | AE188: 2020/2021
J189: ISCED 02 | Q189: ISCED 1 | X189: ISCED 24 | AE189: ISCED 34
B190: Authority level determining the statutory salaries of school heads | J190: Top-level authority | Q190: Top-level authority | X190: Top-level authority | AE190: Top-level authority
J192: ISCED 02 | Q192: ISCED 1 | X192: ISCED 24 | AE192: ISCED 34
B193: Minimum qualification to become a school head | J193: Bachelor's degree in education (ISCED 6) and 5-year teaching experience
B195: Single or lowest salary range (when more than one)
J197: ISCED 02 | Q197: ISCED 1 | X197: ISCED 24 | AE197: ISCED 34
B198: Type of school | J198: all kindergartens | Q198: all schools | X198: all schools | AE198: all schools
B199: TRUE | C199: TRUE | D199: TRUE
B200: Minimum salary | J200: EUR | L200: =IFERROR(L201/$T$5,L201) -> 4649.387555 | Q200: EUR | S200: =IFERROR(S201/$T$5,S201) -> 4752.376286 | X200: EUR | Z200: =IFERROR(Z201/$T$5,Z201) -> 4976.188143 | AE200: EUR | AG200: =IFERROR(AG201/$T$5,AG201) -> 5752.376286
B201: =B200 -> Minimum salary | J201: =$J$5 -> ALL | L201: 569364 | Q201: =$J$5 -> ALL | S201: 581976 | X201: =$J$51 -> ALL | Z201: 609384 | AE201: =$J$51 -> ALL | AG201: 704436
B202: =B201 -> Minimum salary | J202: =$J$52 -> PPS | L202: =IFERROR(L201/$Z$5,L201) -> 8592.293008 | Q202: =$J$52 -> PPS | S202: =IFERROR(S201/$Z$5,S201) -> 8782.621162 | X202: =$J$52 -> PPS | Z202: =IFERROR(Z201/$Z$5,Z201) -> 9196.236295 | AE202: =$J$52 -> PPS | AG202: =IFERROR(AG201/$Z$5,AG201) -> 10630.66951
B203: Maximum salary | J203: EUR | L203: =IFERROR(L204/$T$5,L204) -> 5169.32876 | Q203: EUR | S203: =IFERROR(S204/$T$5,S204) -> 5291.915728 | X203: EUR | Z203: =IFERROR(Z204/$T$5,Z204) -> 5496.129348 | AE203: EUR | AG203: =IFERROR(AG204/$T$5,AG204) -> 6272.317491
B204: =B203 -> Maximum salary | J204: =$J$5 -> ALL | L204: 633036 | Q204: =$J$5 -> ALL | S204: 648048 | X204: =$J$51 -> ALL | Z204: 673056 | AE204: =$J$51 -> ALL | AG204: 768108
B205: =B204 -> Maximum salary | J205: =$J$52 -> PPS | L205: =IFERROR(L204/$Z$5,L204) -> 9553.169495 | Q205: =$J$52 -> PPS | S205: =IFERROR(S204/$Z$5,S204) -> 9779.716138 | X205: =$J$52 -> PPS | Z205: =IFERROR(Z204/$Z$5,Z204) -> 10157.11278 | AE205: =$J$52 -> PPS | AG205: =IFERROR(AG204/$Z$5,AG204) -> 11591.546
B206: Criteria for progression in this salary range | J206: a) Group payment b) Addition per year of service (2% after each year in service) c) Addition for given qualifications based on individual certificate and calculated over the group wage
B207: % school heads paid on this range | J207: – | Q207: – | X207: – | AE207: –
B209: Highest salary range
J211: ISCED 02 | Q211: ISCED 1 | X211: ISCED 24 | AE211: ISCED 34
B212: Type of school | J212: – | Q212: – | X212: – | AE212: –
B213: FALSE | C213: TRUE | D213: FALSE
B214: Minimum salary | J214: EUR | L214: =IF(IFERROR(L215/$T$5,L215)=0,"–",IFERROR(L215/$T$5,L215)) -> – | Q214: EUR | S214: =IF(IFERROR(S215/$T$5,S215)=0,"–",IFERROR(S215/$T$5,S215)) -> – | X214: EUR | Z214: =IF(IFERROR(Z215/$T$5,Z215)=0,"–",IFERROR(Z215/$T$5,Z215)) -> – | AE214: EUR | AG214: =IF(IFERROR(AG215/$T$5,AG215)=0,"–",IFERROR(AG215/$T$5,AG215)) -> –
B215: =B214 -> Minimum salary | J215: =$J$5 -> ALL | L215: – | Q215: =$J$5 -> ALL | S215: – | X215: =$J$51 -> ALL | Z215: – | AE215: =$J$51 -> ALL | AG215: –
B216: =B215 -> Minimum salary | J216: =$J$52 -> PPS | L216: =IFERROR(L215/$Z$5,L215) -> – | Q216: =$J$52 -> PPS | S216: =IFERROR(S215/$Z$5,S215) -> – | X216: =$J$52 -> PPS | Z216: =IFERROR(Z215/$Z$5,Z215) -> – | AE216: =$J$52 -> PPS | AG216: =IFERROR(AG215/$Z$5,AG215) -> –
B217: Maximum salary | J217: EUR | L217: =IFERROR(L218/$T$5,L218) -> – | Q217: EUR | S217: =IFERROR(S218/$T$5,S218) -> – | X217: EUR | Z217: =IFERROR(Z218/$T$5,Z218) -> – | AE217: EUR | AG217: =IFERROR(AG218/$T$5,AG218) -> –
B218: =B217 -> Maximum salary | J218: =$J$5 -> ALL | L218: – | Q218: =$J$5 -> ALL | S218: – | X218: =$J$51 -> ALL | Z218: – | AE218: =$J$51 -> ALL | AG218: –
B219: =B218 -> Maximum salary | J219: =$J$52 -> PPS | L219: =IFERROR(L218/$Z$5,L218) -> – | Q219: =$J$52 -> PPS | S219: =IFERROR(S218/$Z$5,S218) -> – | X219: =$J$52 -> PPS | Z219: =IFERROR(Z218/$Z$5,Z218) -> – | AE219: =$J$52 -> PPS | AG219: =IFERROR(AG218/$Z$5,AG218) -> –
B220: Criteria for progression in this salary range | J220: – | Q220: – | X220: – | AE220: –
B221: % school heads paid on this range | J221: – | Q221: – | X221: – | AE221: –
B223: Most prevalent range (when none of the above)
J225: ISCED 02 | Q225: ISCED 1 | X225: ISCED 24 | AE225: ISCED 34
B226: Type of school | J226: – | Q226: – | X226: – | AE226: –
B227: FALSE | C227: TRUE | D227: FALSE
B228: Minimum salary | J228: EUR | L228: =IFERROR(L229/$T$5,L229) -> – | Q228: EUR | S228: =IFERROR(S229/$T$5,S229) -> – | X228: EUR | Z228: =IFERROR(Z229/$T$5,Z229) -> – | AE228: EUR | AG228: =IFERROR(AG229/$T$5,AG229) -> –
B229: =B228 -> Minimum salary | J229: =$J$5 -> ALL | L229: – | Q229: =$J$5 -> ALL | S229: – | X229: =$J$51 -> ALL | Z229: – | AE229: =$J$51 -> ALL | AG229: –
B230: =B229 -> Minimum salary | J230: =$J$52 -> PPS | L230: =IFERROR(L229/$Z$5,L229) -> – | Q230: =$J$52 -> PPS | S230: =IFERROR(S229/$Z$5,S229) -> – | X230: =$J$52 -> PPS | Z230: =IFERROR(Z229/$Z$5,Z229) -> – | AE230: =$J$52 -> PPS | AG230: =IFERROR(AG229/$Z$5,AG229) -> –
B231: Maximum salary | J231: EUR | L231: =IFERROR(L232/$T$5,L232) -> – | Q231: EUR | S231: =IFERROR(S232/$T$5,S232) -> – | X231: EUR | Z231: =IFERROR(Z232/$T$5,Z232) -> – | AE231: EUR | AG231: =IFERROR(AG232/$T$5,AG232) -> –
B232: =B231 -> Maximum salary | J232: =$J$5 -> ALL | L232: – | Q232: =$J$5 -> ALL | S232: – | X232: =$J$51 -> ALL | Z232: – | AE232: =$J$51 -> ALL | AG232: –
B233: =B232 -> Maximum salary | J233: =$J$52 -> PPS | L233: =IFERROR(L232/$Z$5,L232) -> – | Q233: =$J$52 -> PPS | S233: =IFERROR(S232/$Z$5,S232) -> – | X233: =$J$52 -> PPS | Z233: =IFERROR(Z232/$Z$5,Z232) -> – | AE233: =$J$52 -> PPS | AG233: =IFERROR(AG232/$Z$5,AG232) -> –
B234: Criteria for progression in this salary range | J234: – | Q234: – | X234: – | AE234: –
B235: % school heads paid on this range | J235: – | Q235: – | X235: – | AE235: –
B238: Source | J238: Decision of Council of Ministers nr 175 of 8/03/2017 (http://dap.gov.al/legjislacioni/per-administraten-publike/162-vkm-nr-175-dt-8-3-2017-3-2017-pagat-e-punonjesve-te-arsimit-parauniversitar-pdf).
B239: Explanatory notes | J239: –
A241: Average annual gross actual salaries of school heads in public schools | AE241: 2020/2021
B244: FALSE | C244: TRUE | D244: FALSE | J244: ISCED 02 | Q244: ISCED 1 | X244: ISCED 24 | AE244: ISCED 34
B245: School heads aged 25-64 | J245: EUR | L245: =IFERROR(L246/$AF$5,L246) -> m | Q245: EUR | S245: =IFERROR(S246/$AF$5,S246) -> m | X245: EUR | Z245: =IFERROR(Z246/$AF$5,Z246) -> m | AE245: EUR | AG245: =IFERROR(AG246/$AF$5,AG246) -> m
B246: =B245 -> School heads aged 25-64 | J246: =$J$5 -> ALL | L246: m | Q246: =$J$51 -> ALL | S246: m | X246: =$J$51 -> ALL | Z246: m | AE246: =$J$51 -> ALL | AG246: m
B247: =B246 -> School heads aged 25-64 | J247: PPS | L247: =IFERROR(L246/$Z$5,L246) -> m | Q247: =$J$52 -> PPS | S247: =IFERROR(S246/$Z$5,S246) -> m | X247: =$J$52 -> PPS | Z247: =IFERROR(Z246/$Z$5,Z246) -> m | AE247: =$J$52 -> PPS | AG247: =IFERROR(AG246/$Z$5,AG246) -> m
B248: School heads aged 25-34 | J248: EUR | L248: =IFERROR(L249/$AF$5,L249) -> m | Q248: EUR | S248: =IFERROR(S249/$AF$5,S249) -> m | X248: EUR | Z248: =IFERROR(Z249/$AF$5,Z249) -> m | AE248: EUR | AG248: =IFERROR(AG249/$AF$5,AG249) -> m
B249: =B248 -> School heads aged 25-34 | J249: =$J$5 -> ALL | L249: m | Q249: =$J$5 -> ALL | S249: m | X249: =$J$51 -> ALL | Z249: m | AE249: =$J$51 -> ALL | AG249: m
B250: =B249 -> School heads aged 25-34 | J250: =$J$52 -> PPS | L250: =IFERROR(L249/$Z$5,L249) -> m | Q250: =$J$52 -> PPS | S250: =IFERROR(S249/$Z$5,S249) -> m | X250: =$J$52 -> PPS | Z250: =IFERROR(Z249/$Z$5,Z249) -> m | AE250: =$J$52 -> PPS | AG250: =IFERROR(AG249/$Z$5,AG249) -> m
B251: School heads aged 35-44 | J251: EUR | L251: =IFERROR(L252/$AF$5,L252) -> m | Q251: EUR | S251: =IFERROR(S252/$AF$5,S252) -> m | X251: EUR | Z251: =IFERROR(Z252/$AF$5,Z252) -> m | AE251: EUR | AG251: =IFERROR(AG252/$AF$5,AG252) -> m
B252: =B251 -> School heads aged 35-44 | J252: =$J$5 -> ALL | L252: m | Q252: =$J$5 -> ALL | S252: m | X252: =$J$51 -> ALL | Z252: m | AE252: =$J$51 -> ALL | AG252: m
B253: =B252 -> School heads aged 35-44 | J253: =$J$52 -> PPS | L253: =IFERROR(L252/$Z$5,L252) -> m | Q253: =$J$52 -> PPS | S253: =IFERROR(S252/$Z$5,S252) -> m | X253: =$J$52 -> PPS | Z253: =IFERROR(Z252/$Z$5,Z252) -> m | AE253: =$J$52 -> PPS | AG253: =IFERROR(AG252/$Z$5,AG252) -> m
B254: School heads aged 45-54 | J254: EUR | L254: =IFERROR(L255/$AF$5,L255) -> m | Q254: EUR | S254: =IFERROR(S255/$AF$5,S255) -> m | X254: EUR | Z254: =IFERROR(Z255/$AF$5,Z255) -> m | AE254: EUR | AG254: =IFERROR(AG255/$AF$5,AG255) -> m
B255: =B254 -> School heads aged 45-54 | J255: =$J$5 -> ALL | L255: m | Q255: =$J$5 -> ALL | S255: m | X255: =$J$51 -> ALL | Z255: m | AE255: =$J$51 -> ALL | AG255: m
B256: =B255 -> School heads aged 45-54 | J256: =$J$52 -> PPS | L256: =IFERROR(L255/$Z$5,L255) -> m | Q256: =$J$52 -> PPS | S256: =IFERROR(S255/$Z$5,S255) -> m | X256: =$J$52 -> PPS | Z256: =IFERROR(Z255/$Z$5,Z255) -> m | AE256: =$J$52 -> PPS | AG256: =IFERROR(AG255/$Z$5,AG255) -> m
... 59 more rows

Sheet AT
A1: Austria | AK1: 2020/2021
B3: a | C3: not applicable | J3: m | K3: not available
B5: National currency: | J5: EUR | T5: 1 | Z5: 1.1919 | AF5: 1
B7: Contents
D8: =$A$37 -> 1. Teachers
D9: =$A$39 -> Annual gross statutory salaries of teachers in public schools
F11: =$B$43 -> Salary range for teachers with the minimum qualification
F12: =$B$67 -> Salary range for teachers with a higher qualification (when most prevalent)
D13: =$A$94 -> Average annual gross actual salaries of teachers in public schools
D14: =$A$119 -> Allowances for teachers in public schools
F16: =$B$120 -> Allowances related to other tasks and responsibilities
F17: =$B$143 -> Allowances related to qualifications, training and performance
F18: =$B$158 -> Allowances related to teaching conditions
F19: =$C$171 -> Other criteria
D20: =$A$186 -> 2. School heads
D21: =$A$188 -> Annual gross statutory salaries of school heads in public schools
F23: =$B$195 -> Single or lowest salary range (when more than one)
F24: =$B$209 -> Highest salary range
F25: =$B$223 -> Most prevalent range (when none of the above)
D27: =$A$241 -> Average annual gross actual salaries of school heads in public schools
D29: =$A$266 -> Allowances for school heads in public schools
F31: =$B$267 -> Allowances related to other tasks and responsibilities
F32: =$B$290 -> Allowances related to qualifications, training and performance
F33: =$B$305 -> Allowances related to working conditions
F34: =$B$318 -> Other criteria
A37: 1. Teachers
A39: Annual gross statutory salaries of teachers in public schools | AE39: 2020/2021
J40: ISCED 02 | Q40: ISCED 1 | X40: ISCED 24 | AE40: ISCED 34
B41: Authority level determining the statutory salaries of teachers | J41: Provincial/regional authorities | Q41: Top-level authority | X41: Top-level authority | AE41: Top-level authority
B43: Salary range for teachers with the minimum qualification
J45: ISCED 02 | Q45: ISCED 1 | X45: ISCED 24 | AE45: ISCED 34
B46: Minimum qualification to enter the teaching profession | J46: ISCED 5 (graduate of an educational institution for elementary education) for all provinces | Q46: Bachelor of Education (ISCED 6) + 1 year induction programme | X46: Bachelor of Education (ISCED 6) + 1 year induction programme | AE46: Bachelor of Education (ISCED 6) + 1 year induction programme
B49: FALSE | C49: TRUE | D49: TRUE | J49: ISCED 02 | Q49: ISCED 1 | X49: ISCED 24 | AE49: ISCED 34
B50: Starting salary | J50: EUR | L50: =IFERROR(L51/$T$5,L51) -> m | Q50: EUR | S50: =IFERROR(S51/$T$5,S51) -> 39171.71013 | X50: EUR | Z50: =IFERROR(Z51/$T$5,Z51) -> 39055.39465 | AE50: EUR | AG50: =IFERROR(AG51/$T$5,AG51) -> 39105.65686
B51: =$B$50 -> Starting salary | J51: =$J$5 -> EUR | L51: m | Q51: =$J$5 -> EUR | S51: 39171.71013 | X51: =$J$5 -> EUR | Z51: 39055.39465 | AE51: =$J$5 -> EUR | AG51: 39105.65686
B52: =$B$50 -> Starting salary | J52: PPS | L52: =IFERROR(L51/$Z$5,L51) -> m | Q52: =$J$52 -> PPS | S52: =IFERROR(S51/$Z$5,S51) -> 32864.93005 | X52: =$J$52 -> PPS | Z52: =IFERROR(Z51/$Z$5,Z51) -> 32767.34177 | AE52: =$J$52 -> PPS | AG52: =IFERROR(AG51/$Z$5,AG51) -> 32809.51158
B53: After 10 years' experience | J53: EUR | L53: =IFERROR(L54/$T$5,L54) -> m | Q53: EUR | S53: =IFERROR(S54/$T$5,S54) -> 42216.48716 | X53: EUR | Z53: =IFERROR(Z54/$T$5,Z54) -> 44145.00562 | AE53: EUR | AG53: =IFERROR(AG54/$T$5,AG54) -> 47751.31198
B54: =$B$53 -> After 10 years' experience | J54: =$J$5 -> EUR | L54: m | Q54: =$J$5 -> EUR | S54: 42216.48716 | X54: =$J$5 -> EUR | Z54: 44145.00562 | AE54: =$J$5 -> EUR | AG54: 47751.31198
B55: =$B$53 -> After 10 years' experience | J55: =$J$52 -> PPS | L55: =IFERROR(L54/$Z$5,L54) -> m | Q55: =$J$52 -> PPS | S55: =IFERROR(S54/$Z$5,S54) -> 35419.4875 | X55: =$J$52 -> PPS | Z55: =IFERROR(Z54/$Z$5,Z54) -> 37037.50786 | AE55: =$J$52 -> PPS | AG55: =IFERROR(AG54/$Z$5,AG54) -> 40063.18649
B56: After 15 years' experience | J56: EUR | L56: =IFERROR(L57/$T$5,L57) -> m | Q56: EUR | S56: =IFERROR(S57/$T$5,S57) -> 47041.41905 | X56: EUR | Z56: =IFERROR(Z57/$T$5,Z57) -> 49312.57696 | AE56: EUR | AG56: =IFERROR(AG57/$T$5,AG57) -> 53661.31529
B57: =$B$56 -> After 15 years' experience | J57: =$J$5 -> EUR | L57: m | Q57: =$J$5 -> EUR | S57: 47041.41905 | X57: =$J$5 -> EUR | Z57: 49312.57696 | AE57: =$J$5 -> EUR | AG57: 53661.31529
B58: =$B$56 -> After 15 years' experience | J58: =$J$52 -> PPS | L58: =IFERROR(L57/$Z$5,L57) -> m | Q58: =$J$52 -> PPS | S58: =IFERROR(S57/$Z$5,S57) -> 39467.58877 | X58: =$J$52 -> PPS | Z58: =IFERROR(Z57/$Z$5,Z57) -> 41373.08244 | AE58: =$J$52 -> PPS | AG58: =IFERROR(AG57/$Z$5,AG57) -> 45021.65894
B59: At the top of the range | J59: EUR | L59: =IFERROR(L60/$T$5,L60) -> m | Q59: EUR | S59: =IFERROR(S60/$T$5,S60) -> 68468.84897 | X59: EUR | Z59: =IFERROR(Z60/$T$5,Z60) -> 73135.63648 | AE59: EUR | AG59: =IFERROR(AG60/$T$5,AG60) -> 77722.50206
B60: =$B$59 -> At the top of the range | J60: =$J$5 -> EUR | L60: m | Q60: =$J$5 -> EUR | S60: 68468.84897 | X60: =$J$5 -> EUR | Z60: 73135.63648 | AE60: =$J$5 -> EUR | AG60: 77722.50206
B61: =$B$59 -> At the top of the range | J61: =$J$52 -> PPS | L61: =IFERROR(L60/$Z$5,L60) -> m | Q61: =$J$52 -> PPS | S61: =IFERROR(S60/$Z$5,S60) -> 57445.12876 | X61: =$J$52 -> PPS | Z61: =IFERROR(Z60/$Z$5,Z60) -> 61360.54743 | AE61: =$J$52 -> PPS | AG61: =IFERROR(AG60/$Z$5,AG60) -> 65208.91187
L63: ISCED 02 | Q63: ISCED 1 | X63: ISCED 24 | AE63: ISCED 34
B64: % teachers paid on this range | L64: m | Q64: 1 | X64: 1 | AE64: 1
B65: Average nr of years to reach the top | L65: m | Q65: 34 | X65: 34 | AE65: 34
B67: Salary range for teachers with a higher qualification (when most prevalent)
J69: ISCED 02 | Q69: ISCED 1 | X69: ISCED 24 | AE69: ISCED 34
B70: Minimum qualification to enter the teaching profession | J70: – | Q70: – | X70: – | AE70: –
B73: FALSE | C73: TRUE | D73: FALSE | J73: ISCED 02 | Q73: ISCED 1 | X73: ISCED 24 | AE73: ISCED 34
B74: Starting salary | J74: EUR | L74: =IFERROR(L75/$T$5,L75) -> – | Q74: EUR | S74: =IFERROR(S75/$T$5,S75) -> – | X74: EUR | Z74: =IFERROR(Z75/$T$5,Z75) -> – | AE74: EUR | AG74: =IFERROR(AG75/$T$5,AG75) -> –
B75: =$B$50 -> Starting salary | J75: =$J$5 -> EUR | L75: – | Q75: =$J$51 -> EUR | S75: – | X75: =$J$5 -> EUR | Z75: – | AE75: =$J$5 -> EUR | AG75: –
B76: =$B$50 -> Starting salary | J76: PPS | L76: =IFERROR(L75/$Z$5,L75) -> – | Q76: =$J$52 -> PPS | S76: =IFERROR(S75/$Z$5,S75) -> – | X76: =$J$52 -> PPS | Z76: =IFERROR(Z75/$Z$5,Z75) -> – | AE76: =$J$52 -> PPS | AG76: =IFERROR(AG75/$Z$5,AG75) -> –
B77: After 10 years' experience | J77: EUR | L77: =IFERROR(L78/$T$5,L78) -> – | Q77: EUR | S77: =IFERROR(S78/$T$5,S78) -> – | X77: EUR | Z77: =IFERROR(Z78/$T$5,Z78) -> – | AE77: EUR | AG77: =IFERROR(AG78/$T$5,AG78) -> –
B78: =$B$53 -> After 10 years' experience | J78: =$J$5 -> EUR | L78: – | Q78: =$J$51 -> EUR | S78: – | X78: =$J$5 -> EUR | Z78: – | AE78: =$J$5 -> EUR | AG78: –
B79: =$B$53 -> After 10 years' experience | J79: =$J$52 -> PPS | L79: =IFERROR(L78/$Z$5,L78) -> – | Q79: =$J$52 -> PPS | S79: =IFERROR(S78/$Z$5,S78) -> – | X79: =$J$52 -> PPS | Z79: =IFERROR(Z78/$Z$5,Z78) -> – | AE79: =$J$52 -> PPS | AG79: =IFERROR(AG78/$Z$5,AG78) -> –
B80: After 15 years' experience | J80: EUR | L80: =IFERROR(L81/$T$5,L81) -> – | Q80: EUR | S80: =IFERROR(S81/$T$5,S81) -> – | X80: EUR | Z80: =IFERROR(Z81/$T$5,Z81) -> – | AE80: EUR | AG80: =IFERROR(AG81/$T$5,AG81) -> –
B81: =$B$56 -> After 15 years' experience | J81: =$J$5 -> EUR | L81: – | Q81: =$J$51 -> EUR | S81: – | X81: =$J$5 -> EUR | Z81: – | AE81: =$J$5 -> EUR | AG81: –
B82: =$B$56 -> After 15 years' experience | J82: =$J$52 -> PPS | L82: =IFERROR(L81/$Z$5,L81) -> – | Q82: =$J$52 -> PPS | S82: =IFERROR(S81/$Z$5,S81) -> – | X82: =$J$52 -> PPS | Z82: =IFERROR(Z81/$Z$5,Z81) -> – | AE82: =$J$52 -> PPS | AG82: =IFERROR(AG81/$Z$5,AG81) -> –
B83: At the top of the range | J83: EUR | L83: =IFERROR(L84/$T$5,L84) -> – | Q83: EUR | S83: =IFERROR(S84/$T$5,S84) -> – | X83: EUR | Z83: =IFERROR(Z84/$T$5,Z84) -> – | AE83: EUR | AG83: =IFERROR(AG84/$T$5,AG84) -> –
B84: =$B$59 -> At the top of the range | J84: =$J$5 -> EUR | L84: – | Q84: =$J$51 -> EUR | S84: – | X84: =$J$5 -> EUR | Z84: – | AE84: =$J$5 -> EUR | AG84: –
B85: =$B$59 -> At the top of the range | J85: =$J$52 -> PPS | L85: =IFERROR(L84/$Z$5,L84) -> – | Q85: =$J$52 -> PPS | S85: =IFERROR(S84/$Z$5,S84) -> – | X85: =$J$52 -> PPS | Z85: =IFERROR(Z84/$Z$5,Z84) -> – | AE85: =$J$52 -> PPS | AG85: =IFERROR(AG84/$Z$5,AG84) -> –
L87: ISCED 02 | Q87: ISCED 1 | X87: ISCED 24 | AE87: ISCED 34
B88: % teachers paid on this range | L88: – | Q88: – | X88: – | AE88: –
B89: Average nr of years to reach the top
B91: Source | J91: • Regulations concerning ISCED levels 1, 24 and 34, for teachers recruited as of 2019/20: - Contractual Civil Servants Act (https://www.ris.bka.gv.at/GeltendeFassung.wxe?Abfrage=Bundesnormen&Gesetzesnummer=10008115); - Contractual Civil Servants Act for province teachers (compulsory schools). (https://www.ris.bka.gv.at/GeltendeFassung.wxe?Abfrage=Bundesnormen&Gesetzesnummer=10008213) • For teachers recruited before 2019/20: - Contractual Civil Servants Act (see link above); - Civil Service Code (https://www.ris.bka.gv.at/GeltendeFassung.wxe?Abfrage=Bundesnormen&Gesetzesnummer=10008470); - Civil Service Code for province teachers (compulsory education) (https://www.ris.bka.gv.at/GeltendeFassung.wxe?Abfrage=Bundesnormen&Gesetzesnummer=10008549); - Remuneration Act (https://www.ris.bka.gv.at/GeltendeFassung.wxe?Abfrage=Bundesnormen&Gesetzesnummer=10008163).
B92: Explanatory notes | J92: Data has been calculated as weighted means of the 2020 and 2021 salaries (4 months with the 2020 rate and 8 with the 2021 rate). ISCED 02 is largely organised in kindergartens, which are regulated at the level of the provinces. For a minority of children, it is provided at school. The same regulations apply for teachers in charge of an ISCED 02 programme at school as for ISCED 1 teachers. In primary and secondary education, teachers may be recruited with a bachelor of education but they must get a master's degree within five years of employement in order to keep their post. At ISCED 34, vocational programmes are included.
A94: Average annual gross actual salaries of teachers in public schools | AE94: 2020/2021
B97: FALSE | C97: TRUE | D97: TRUE | J97: ISCED 02 | Q97: ISCED 1 | X97: ISCED 24 | AE97: ISCED 34
B98: Teachers aged 25-64 | J98: EUR | L98: =IFERROR(L99/$AF$5,L99) -> m | Q98: EUR | S98: =IFERROR(S99/$AF$5,S99) -> 52525.53454 | X98: EUR | Z98: =IFERROR(Z99/$AF$5,Z99) -> 58723.60221 | AE98: EUR | AG98: =IFERROR(AG99/$AF$5,AG99) -> 67207.40773
B99: =B98 -> Teachers aged 25-64 | J99: =$J$5 -> EUR | L99: m | Q99: =$J$51 -> EUR | S99: 52525.53454 | X99: =$J$5 -> EUR | Z99: 58723.60221 | AE99: =$J$5 -> EUR | AG99: 67207.40773
B100: =B99 -> Teachers aged 25-64 | J100: PPS | L100: =IFERROR(L99/$Z$5,L99) -> m | Q100: =$J$52 -> PPS | S100: =IFERROR(S99/$Z$5,S99) -> 44068.74279 | X100: =$J$52 -> PPS | Z100: =IFERROR(Z99/$Z$5,Z99) -> 49268.90025 | AE100: =$J$52 -> PPS | AG100: =IFERROR(AG99/$Z$5,AG99) -> 56386.7839
B101: Teachers aged 25-34 | J101: EUR | L101: =IFERROR(L102/$AF$5,L102) -> m | Q101: EUR | S101: =IFERROR(S102/$AF$5,S102) -> 40140.89004 | X101: EUR | Z101: =IFERROR(Z102/$AF$5,Z102) -> 42772.04269 | AE101: EUR | AG101: =IFERROR(AG102/$AF$5,AG102) -> 47014.57389
B102: =B101 -> Teachers aged 25-34 | J102: =$J$5 -> EUR | L102: m | Q102: =$J$51 -> EUR | S102: 40140.89004 | X102: =$J$5 -> EUR | Z102: 42772.04269 | AE102: =$J$5 -> EUR | AG102: 47014.57389
B103: =B102 -> Teachers aged 25-34 | J103: =$J$52 -> PPS | L103: =IFERROR(L102/$Z$5,L102) -> m | Q103: =$J$52 -> PPS | S103: =IFERROR(S102/$Z$5,S102) -> 33678.06866 | X103: =$J$52 -> PPS | Z103: =IFERROR(Z102/$Z$5,Z102) -> 35885.59669 | AE103: =$J$52 -> PPS | AG103: =IFERROR(AG102/$Z$5,AG102) -> 39445.06576
B104: Teachers aged 35-44 | J104: EUR | L104: =IFERROR(L105/$AF$5,L105) -> m | Q104: EUR | S104: =IFERROR(S105/$AF$5,S105) -> 46323.30694 | X104: EUR | Z104: =IFERROR(Z105/$AF$5,Z105) -> 49944.88501 | AE104: EUR | AG104: =IFERROR(AG105/$AF$5,AG105) -> 57030.0926
B105: =B104 -> Teachers aged 35-44 | J105: =$J$5 -> EUR | L105: m | Q105: =$J$51 -> EUR | S105: 46323.30694 | X105: =$J$5 -> EUR | Z105: 49944.88501 | AE105: =$J$5 -> EUR | AG105: 57030.0926
B106: =B105 -> Teachers aged 35-44 | J106: =$J$52 -> PPS | L106: =IFERROR(L105/$Z$5,L105) -> m | Q106: =$J$52 -> PPS | S106: =IFERROR(S105/$Z$5,S105) -> 38865.09518 | X106: =$J$52 -> PPS | Z106: =IFERROR(Z105/$Z$5,Z105) -> 41903.58672 | AE106: =$J$52 -> PPS | AG106: =IFERROR(AG105/$Z$5,AG105) -> 47848.05152
B107: Teachers aged 45-54 | J107: EUR | L107: =IFERROR(L108/$AF$5,L108) -> m | Q107: EUR | S107: =IFERROR(S108/$AF$5,S108) -> 57967.62888 | X107: EUR | Z107: =IFERROR(Z108/$AF$5,Z108) -> 62735.45311 | AE107: EUR | AG107: =IFERROR(AG108/$AF$5,AG108) -> 69112.00575
B108: =B107 -> Teachers aged 45-54 | J108: =$J$5 -> EUR | L108: m | Q108: =$J$51 -> EUR | S108: 57967.62888 | X108: =$J$5 -> EUR | Z108: 62735.45311 | AE108: =$J$5 -> EUR | AG108: 69112.00575
B109: =B108 -> Teachers aged 45-54 | J109: =$J$52 -> PPS | L109: =IFERROR(L108/$Z$5,L108) -> m | Q109: =$J$52 -> PPS | S109: =IFERROR(S108/$Z$5,S108) -> 48634.64123 | X109: =$J$52 -> PPS | Z109: =IFERROR(Z108/$Z$5,Z108) -> 52634.82936 | AE109: =$J$52 -> PPS | AG109: =IFERROR(AG108/$Z$5,AG108) -> 57984.73509
B110: Teachers aged 55-64 | J110: EUR | L110: =IFERROR(L111/$AF$5,L111) -> m | Q110: EUR | S110: =IFERROR(S111/$AF$5,S111) -> 67172.308 | X110: EUR | Z110: =IFERROR(Z111/$AF$5,Z111) -> 75660.16934 | AE110: EUR | AG110: =IFERROR(AG111/$AF$5,AG111) -> 82488.71373
B111: =B110 -> Teachers aged 55-64 | J111: =$J$5 -> EUR | L111: m | Q111: =$J$51 -> EUR | S111: 67172.308 | X111: =$J$5 -> EUR | Z111: 75660.16934 | AE111: =$J$5 -> EUR | AG111: 82488.71373
B112: =B111 -> Teachers aged 55-64 | J112: =$J$52 -> PPS | L112: =IFERROR(L111/$Z$5,L111) -> m | Q112: =$J$52 -> PPS | S112: =IFERROR(S111/$Z$5,S111) -> 56357.33535 | X112: =$J$52 -> PPS | Z112: =IFERROR(Z111/$Z$5,Z111) -> 63478.62182 | AE112: =$J$52 -> PPS | AG112: =IFERROR(AG111/$Z$5,AG111) -> 69207.74707
B115: Source | J115: Management Information Systems, not publicly available.
B116: Explanatory notes | J116: The actual average salaries were calculated for full-time equivalent teachers. Headmasters, deputies and assistants as well as heads of departments are excluded. Pre-primary education is largely provided in kindergartens, for which there are no data available. The remaining minority of pre-primary schools are integrated in primary schools. Data on these teachers are the same as for ISCED 1. At ISCED 34, vocational programmes are included.
A119: Allowances for teachers in public schools | B119: Salary range for teachers with a higher qualification (when most prevalent) | AE119: 2020/2021
B120: Allowances related to other tasks and responsibilities | N120: 1 | U120: 2
O122: Authority level | V122: Type of financial compensation | AD122: ISCED levels
AD123: 02 | AF123: 1 | AH123: 24 | AJ123: 34
B124: Participation in school or other management tasks in addition to teaching duties | O124: Top-level authority | V124: Regular additional payments | AH124: ● | AJ124: ●
B125: Teaching more classes or hours than required by full-time contract | O125: Top-level authority | V125: % of salary | AD125: ● | AF125: ● | AH125: ● | AJ125: ●
B126: Students counselling | O126: Top-level authority | V126: Regular additional payments | AH126: ● | AJ126: ●
B127: Engaging in extracurricular activities | O127: a | V127: a | AD127: ● | AF127: ● | AH127: ● | AJ127: ●
B128: Special tasks | O128: Top-level authority | V128: Regular additional payments | AD128: ● | AF128: ● | AH128: ● | AJ128: ●
B129: Class teacher / form teacher | O129: Top-level authority | V129: Regular additional payments | AD129: ● | AF129: ● | AH129: ● | AJ129: ●
B130: Supporting mentoring / induction programmes | O130: Top-level authority | V130: Regular additional payments | AD130: ● | AF130: ● | AH130: ● | AJ130: ●
B131: Other | O131: Top-level authority | V131: Regular additional payments | AH131: ● | AJ131: ●
O133: Explanatory notes
B134: =B124 -> Participation in school or other management tasks in addition to teaching duties | O134: Head of department: 67% of head's allowance. Administrative support of head: 33% or 50% of head's allowance depending on the type of school. Coordination of teachers: between EUR 87 and EUR 104 per month depending on the school size. New service code: Head of department: EUR 349 to EUR 989 per month depending on the type of school and school size. Administrative support of head: EUR 466 to EUR 838 per month depending on school size. Coordination of teachers: EUR 175 per month.
B135: Teaching more classes or hours than required by full-time contract | O135: 1.3% of the monthly salary per teaching-hour.
B136: Students counselling | O136: Between EUR 82 and EUR 328 per month depending on the school size. New service act: EUR 175 per month.
B137: Engaging in extracurricular activities | O137: –
B138: Special tasks | O138: Training student teachers: on average EUR 2 100 per year. New service act: Training student teachers: EUR 175 per month.
B139: Class teacher / form teacher | O139: Between EUR 96 and EUR 213 per month depending on the level of education/type of school for 10 month a year. New service act: No additional payment but statutory duty.
B140: Supporting mentoring / induction programmes | O140: Between EUR 122 and EUR 204 per month depending on the number of starting teachers. New service act: Between EUR 105 an EUR 175 depending on the number of starting teachers.
B141: Other | O141: For teachers recruited as of 2019/20 only, for teaching 'work-intense' subjects (more time required for preparation, corrections (e.g. (foreign) language, mathematics)): Between EUR 15 and EUR 36 per weekly hour per month for 12 months a year depending on the subject and level.
B143: Allowances related to qualifications, training and performance | N143: 0 | U143: 0
O145: Authority level | V145: Type of financial compensation | AD145: ISCED levels
AD146: 02 | AF146: 1 | AH146: 24 | AJ146: 34
B147: Further formal qualifications | O147: a | V147: a | AD147: ● | AF147: ● | AH147: ● | AJ147: ●
B148: Successful completion of continuing professional development (CPD) activities | O148: a | V148: a | AD148: ● | AF148: ● | AH148: ● | AJ148: ●
B149: Outstanding performance | O149: Top-level authority | V149: Incidental payments | AD149: ● | AF149: ● | AH149: ● | AJ149: ●
B150: Other | O150: a | V150: a | AD150: ● | AF150: ● | AH150: ● | AJ150: ●
O152: Explanatory notes
B153: =B147 -> Further formal qualifications | O153: –
B154: Successful completion of continuing professional development (CPD) activities | O154: –
B155: Outstanding performance | O155: No information available.
B156: Other | O156: –
B158: Allowances related to teaching conditions | N158: 0 | U158: 0
O160: Authority level | V160: Type of financial compensation | AD160: ISCED levels
AD161: 02 | AF161: 1 | AH161: 24 | AJ161: 34
B162: Teaching students with special educational needs | O162: Top-level authority | V162: Regular additional payments | AD162: ● | AF162: ● | AH162: ● | AJ162: ●
B163: Teaching in a disadvantaged, remote or high cost area | O163: a | V163: a | AD163: ● | AF163: ● | AH163: ● | AJ163: ●
B164: Other | O164: a | V164: a | AD164: ● | AF164: ● | AH164: ● | AJ164: ●
O166: Explanatory notes
B167: =B162 -> Teaching students with special educational needs | O167: Only for the new service act: For special education teachers in mainstream classes up to EUR 175 per month depending on the proportion of assignment.
B168: Teaching in a disadvantaged, remote or high cost area | O168: –
B169: Other | O169: –
C171: Other criteria
O173: Authority level | V173: Type of financial compensation | AD173: ISCED levels
AD174: 02 | AF174: 1 | AH174: 24 | AJ174: 34
B175: Residence allowance | O175: a | V175: a | AD175: ● | AF175: ● | AH175: ● | AJ175: ●
B176: Family status | O176: a | V176: a | AD176: ● | AF176: ● | AH176: ● | AJ176: ●
B177: Other | O177: a | V177: a | AD177: ● | AF177: ● | AH177: ● | AJ177: ●
O179: Explanatory notes
B180: =B175 -> Residence allowance | O180: –
B181: Family status | O181: –
B182: Other | O182: –
B184: Source | O184: Regulations concerning ISCED levels 1, 24 and 34, for teachers recruited as of 2019/20: Contractual Civil Servants Act (https://www.ris.bka.gv.at/GeltendeFassung.wxe?Abfrage=Bundesnormen&Gesetzesnummer=10008115) Contractual Civil Servants Act for province teachers (compulsory schools) (https://www.ris.bka.gv.at/GeltendeFassung.wxe?Abfrage=Bundesnormen&Gesetzesnummer=10008213) For teachers recruited before 2019/20: Contractual Civil Servants Act (see above for the link) Civil Service Code (https://www.ris.bka.gv.at/GeltendeFassung.wxe?Abfrage=Bundesnormen&Gesetzesnummer=10008470) Civil Service Code for province teachers (compulsory education) (https://www.ris.bka.gv.at/GeltendeFassung.wxe?Abfrage=Bundesnormen&Gesetzesnummer=10008549) Remuneration Act (https://www.ris.bka.gv.at/GeltendeFassung.wxe?Abfrage=Bundesnormen&Gesetzesnummer=10008163)
A186: 2. School heads
A188: Annual gross statutory salaries of school heads in public schools | AE188: 2020/2021
J189: ISCED 02 | Q189: ISCED 1 | X189: ISCED 24 | AE189: ISCED 34
B190: Authority level determining the statutory salaries of school heads | J190: Provincial/regional authorities | Q190: Top-level authority | X190: Top-level authority | AE190: Top-level authority
J192: ISCED 02 | Q192: ISCED 1 | X192: ISCED 24 | AE192: ISCED 34
B193: Minimum qualification to become a school head | J193: ISCED 5 (graduate of an educational institution for elementary education) for all provinces | Q193: Bachelor of education (ISCED 6) + 5 years teaching | X193: Bachelor of education (ISCED 6) + 5 years teaching | AE193: Bachelor of education (ISCED 6) + 6 years teaching
B195: Single or lowest salary range (when more than one)
J197: ISCED 02 | Q197: ISCED 1 | X197: ISCED 24 | AE197: ISCED 34
B198: Type of school | J198: m | Q198: Small school (1 class) | X198: Small school (1 class) | AE198: Small school (1 to 3 classes)
B199: FALSE | C199: TRUE | D199: TRUE
B200: Minimum salary | J200: EUR | L200: =IFERROR(L201/$T$5,L201) -> m | Q200: EUR | S200: =IFERROR(S201/$T$5,S201) -> 42929.795 | X200: EUR | Z200: =IFERROR(Z201/$T$5,Z201) -> 42929.795 | AE200: EUR | AG200: =IFERROR(AG201/$T$5,AG201) -> 56527.865
B201: =B200 -> Minimum salary | J201: =$J$5 -> EUR | L201: m | Q201: =$J$5 -> EUR | S201: 42929.795 | X201: =$J$51 -> EUR | Z201: 42929.795 | AE201: =$J$51 -> EUR | AG201: 56527.865
B202: =B201 -> Minimum salary | J202: =$J$52 -> PPS | L202: =IFERROR(L201/$Z$5,L201) -> m | Q202: =$J$52 -> PPS | S202: =IFERROR(S201/$Z$5,S201) -> 36017.95033 | X202: =$J$52 -> PPS | Z202: =IFERROR(Z201/$Z$5,Z201) -> 36017.95033 | AE202: =$J$52 -> PPS | AG202: =IFERROR(AG201/$Z$5,AG201) -> 47426.68429
B203: Maximum salary | J203: EUR | L203: =IFERROR(L204/$T$5,L204) -> m | Q203: EUR | S203: =IFERROR(S204/$T$5,S204) -> 73749.88 | X203: EUR | Z203: =IFERROR(Z204/$T$5,Z204) -> 73749.88 | AE203: EUR | AG203: =IFERROR(AG204/$T$5,AG204) -> 95479.72
B204: =B203 -> Maximum salary | J204: =$J$5 -> EUR | L204: m | Q204: =$J$5 -> EUR | S204: 73749.88 | X204: =$J$51 -> EUR | Z204: 73749.88 | AE204: =$J$51 -> EUR | AG204: 95479.72
B205: =B204 -> Maximum salary | J205: =$J$52 -> PPS | L205: =IFERROR(L204/$Z$5,L204) -> m | Q205: =$J$52 -> PPS | S205: =IFERROR(S204/$Z$5,S204) -> 61875.89563 | X205: =$J$52 -> PPS | Z205: =IFERROR(Z204/$Z$5,Z204) -> 61875.89563 | AE205: =$J$52 -> PPS | AG205: =IFERROR(AG204/$Z$5,AG204) -> 80107.15664
B206: Criteria for progression in this salary range | J206: m | Q206: Time in service; the school head allowance increases up to 40% after 16 years of service. | X206: Time in service; the school head allowance increases up to 40% after 16 years of service. | AE206: Time in service; the school head allowance increases up to 40% after 14 years of service.
B207: % school heads paid on this range | J207: m | Q207: 0 | X207: 0 | AE207: 0
B209: Highest salary range
J211: ISCED 02 | Q211: ISCED 1 | X211: ISCED 24 | AE211: ISCED 34
B212: Type of school | J212: a | Q212: Large school (more than 60 classes) | X212: Large school (more than 60 classes) | AE212: Large school (more than 60 classes)
B213: FALSE | C213: TRUE | D213: TRUE
B214: Minimum salary | J214: EUR | L214: =IF(IFERROR(L215/$T$5,L215)=0,"–",IFERROR(L215/$T$5,L215)) -> a | Q214: EUR | S214: =IF(IFERROR(S215/$T$5,S215)=0,"–",IFERROR(S215/$T$5,S215)) -> 51055.85 | X214: EUR | Z214: =IF(IFERROR(Z215/$T$5,Z215)=0,"–",IFERROR(Z215/$T$5,Z215)) -> 51055.85 | AE214: EUR | AG214: =IF(IFERROR(AG215/$T$5,AG215)=0,"–",IFERROR(AG215/$T$5,AG215)) -> 64830.03125
B215: =B214 -> Minimum salary | J215: =$J$5 -> EUR | L215: a | Q215: =$J$5 -> EUR | S215: 51055.85 | X215: =$J$51 -> EUR | Z215: 51055.85 | AE215: =$J$51 -> EUR | AG215: 64830.03125
B216: =B215 -> Minimum salary | J216: =$J$52 -> PPS | L216: =IFERROR(L215/$Z$5,L215) -> a | Q216: =$J$52 -> PPS | S216: =IFERROR(S215/$Z$5,S215) -> 42835.68252 | X216: =$J$52 -> PPS | Z216: =IFERROR(Z215/$Z$5,Z215) -> 42835.68252 | AE216: =$J$52 -> PPS | AG216: =IFERROR(AG215/$Z$5,AG215) -> 54392.17321
B217: Maximum salary | J217: EUR | L217: =IFERROR(L218/$T$5,L218) -> a | Q217: EUR | S217: =IFERROR(S218/$T$5,S218) -> 86046.15 | X217: EUR | Z217: =IFERROR(Z218/$T$5,Z218) -> 86046.15 | AE217: EUR | AG217: =IFERROR(AG218/$T$5,AG218) -> 108009.825
B218: =B217 -> Maximum salary | J218: =$J$5 -> EUR | L218: a | Q218: =$J$5 -> EUR | S218: 86046.15 | X218: =$J$51 -> EUR | Z218: 86046.15 | AE218: =$J$51 -> EUR | AG218: 108009.825
B219: =B218 -> Maximum salary | J219: =$J$52 -> PPS | L219: =IFERROR(L218/$Z$5,L218) -> a | Q219: =$J$52 -> PPS | S219: =IFERROR(S218/$Z$5,S218) -> 72192.42386 | X219: =$J$52 -> PPS | Z219: =IFERROR(Z218/$Z$5,Z218) -> 72192.42386 | AE219: =$J$52 -> PPS | AG219: =IFERROR(AG218/$Z$5,AG218) -> 90619.87163
B220: Criteria for progression in this salary range | J220: a | Q220: Time in service; the school head allowance increases up to 40% after 16 years of service. | X220: Time in service; the school head allowance increases up to 40% after 16 years of service. | AE220: Time in service; the school head allowance increases up to 40% after 14 years of service.
B221: % school heads paid on this range | J221: a | Q221: 0 | X221: 0 | AE221: 0.06
B223: Most prevalent range (when none of the above)
J225: ISCED 02 | Q225: ISCED 1 | X225: ISCED 24 | AE225: ISCED 34
B226: Type of school | J226: a | Q226: 4-7 classes | X226: 8-9 classes | AE226: 13-21 classes
B227: FALSE | C227: TRUE | D227: TRUE
B228: Minimum salary | J228: EUR | L228: =IFERROR(L229/$T$5,L229) -> a | Q228: EUR | S228: =IFERROR(S229/$T$5,S229) -> 45747.785 | X228: EUR | Z228: =IFERROR(Z229/$T$5,Z229) -> 46534.97 | AE228: EUR | AG228: =IFERROR(AG229/$T$5,AG229) -> 61636.325
B229: =B228 -> Minimum salary | J229: =$J$5 -> EUR | L229: a | Q229: =$J$5 -> EUR | S229: 45747.785 | X229: =$J$51 -> EUR | Z229: 46534.97 | AE229: =$J$51 -> EUR | AG229: 61636.325
B230: =B229 -> Minimum salary | J230: =$J$52 -> PPS | L230: =IFERROR(L229/$Z$5,L229) -> a | Q230: =$J$52 -> PPS | S230: =IFERROR(S229/$Z$5,S229) -> 38382.23425 | X230: =$J$52 -> PPS | Z230: =IFERROR(Z229/$Z$5,Z229) -> 39042.67976 | AE230: =$J$52 -> PPS | AG230: =IFERROR(AG229/$Z$5,AG229) -> 51712.66465
B231: Maximum salary | J231: EUR | L231: =IFERROR(L232/$T$5,L232) -> a | Q231: EUR | S231: =IFERROR(S232/$T$5,S232) -> 78028.42 | X231: EUR | Z231: =IFERROR(Z232/$T$5,Z232) -> 79209.88 | AE231: EUR | AG231: =IFERROR(AG232/$T$5,AG232) -> 103184.48
B232: =B231 -> Maximum salary | J232: =$J$5 -> EUR | L232: a | Q232: =$J$5 -> EUR | S232: 78028.42 | X232: =$J$51 -> EUR | Z232: 79209.88 | AE232: =$J$51 -> EUR | AG232: 103184.48
B233: =B232 -> Maximum salary | J233: =$J$52 -> PPS | L233: =IFERROR(L232/$Z$5,L232) -> a | Q233: =$J$52 -> PPS | S233: =IFERROR(S232/$Z$5,S232) -> 65465.57597 | X233: =$J$52 -> PPS | Z233: =IFERROR(Z232/$Z$5,Z232) -> 66456.81685 | AE233: =$J$52 -> PPS | AG233: =IFERROR(AG232/$Z$5,AG232) -> 86571.42378
B234: Criteria for progression in this salary range | J234: a | Q234: Time in service; the school head allowance increases up to 40% after 16 years of service. | X234: Time in service; the school head allowance increases up to 40% after 16 years of service. | AE234: Time in service; the school head allowance increases up to 40% after 14 years of service.
B235: % school heads paid on this range | J235: a | Q235: 0.36 | X235: 0.32 | AE235: 0.3
B238: Source | J238: Regulations concerning ISCED levels 1, 24 and 34: - Contractual Civil Servants Act (see above for the link) - Civil Service Code (https://www.ris.bka.gv.at/GeltendeFassung.wxe?Abfrage=Bundesnormen&Gesetzesnummer=10008470) - Civil Service Code for province teachers (compulsory education) (https://www.ris.bka.gv.at/GeltendeFassung.wxe?Abfrage=Bundesnormen&Gesetzesnummer=10008549) - Remuneration Act (https://www.ris.bka.gv.at/GeltendeFassung.wxe?Abfrage=Bundesnormen&Gesetzesnummer=10008163)
B239: Explanatory notes | J239: Pre-primary education is largely provided in kindergartens, for which no data is available. For a minority of children, it is provided at school. Data on these school heads are the same as for ISCED 1. At ISCED 34, vocational programmes are included.
A241: Average annual gross actual salaries of school heads in public schools | AE241: 2020/2021
B244: FALSE | C244: TRUE | D244: TRUE | J244: ISCED 02 | Q244: ISCED 1 | X244: ISCED 24 | AE244: ISCED 34
B245: School heads aged 25-64 | J245: EUR | L245: =IFERROR(L246/$AF$5,L246) -> m | Q245: EUR | S245: =IFERROR(S246/$AF$5,S246) -> 74023.33392 | X245: EUR | Z245: =IFERROR(Z246/$AF$5,Z246) -> 78939.66126 | AE245: EUR | AG245: =IFERROR(AG246/$AF$5,AG246) -> 98928.55549
B246: =B245 -> School heads aged 25-64 | J246: =$J$5 -> EUR | L246: m | Q246: =$J$51 -> EUR | S246: 74023.33392 | X246: =$J$51 -> EUR | Z246: 78939.66126 | AE246: =$J$51 -> EUR | AG246: 98928.55549
B247: =B246 -> School heads aged 25-64 | J247: PPS | L247: =IFERROR(L246/$Z$5,L246) -> m | Q247: =$J$52 -> PPS | S247: =IFERROR(S246/$Z$5,S246) -> 62105.32253 | X247: =$J$52 -> PPS | Z247: =IFERROR(Z246/$Z$5,Z246) -> 66230.10425 | AE247: =$J$52 -> PPS | AG247: =IFERROR(AG246/$Z$5,AG246) -> 83000.71775
B248: School heads aged 25-34 | J248: EUR | L248: =IFERROR(L249/$AF$5,L249) -> m | Q248: EUR | S248: =IFERROR(S249/$AF$5,S249) -> 48684.15857 | X248: EUR | Z248: =IFERROR(Z249/$AF$5,Z249) -> 49729.86126 | AE248: EUR | AG248: =IFERROR(AG249/$AF$5,AG249) -> 48183.54366
B249: =B248 -> School heads aged 25-34 | J249: =$J$5 -> EUR | L249: m | Q249: =$J$5 -> EUR | S249: 48684.15857 | X249: =$J$51 -> EUR | Z249: 49729.86126 | AE249: =$J$51 -> EUR | AG249: 48183.54366
B250: =B249 -> School heads aged 25-34 | J250: =$J$52 -> PPS | L250: =IFERROR(L249/$Z$5,L249) -> m | Q250: =$J$52 -> PPS | S250: =IFERROR(S249/$Z$5,S249) -> 40845.84157 | X250: =$J$52 -> PPS | Z250: =IFERROR(Z249/$Z$5,Z249) -> 41723.18253 | AE250: =$J$52 -> PPS | AG250: =IFERROR(AG249/$Z$5,AG249) -> 40425.82739
B251: School heads aged 35-44 | J251: EUR | L251: =IFERROR(L252/$AF$5,L252) -> m | Q251: EUR | S251: =IFERROR(S252/$AF$5,S252) -> 58605.87199 | X251: EUR | Z251: =IFERROR(Z252/$AF$5,Z252) -> 61009.66983 | AE251: EUR | AG251: =IFERROR(AG252/$AF$5,AG252) -> 76536.49392
B252: =B251 -> School heads aged 35-44 | J252: =$J$5 -> EUR | L252: m | Q252: =$J$5 -> EUR | S252: 58605.87199 | X252: =$J$51 -> EUR | Z252: 61009.66983 | AE252: =$J$51 -> EUR | AG252: 76536.49392
B253: =B252 -> School heads aged 35-44 | J253: =$J$52 -> PPS | L253: =IFERROR(L252/$Z$5,L252) -> m | Q253: =$J$52 -> PPS | S253: =IFERROR(S252/$Z$5,S252) -> 49170.125 | X253: =$J$52 -> PPS | Z253: =IFERROR(Z252/$Z$5,Z252) -> 51186.90312 | AE253: =$J$52 -> PPS | AG253: =IFERROR(AG252/$Z$5,AG252) -> 64213.85512
B254: School heads aged 45-54 | J254: EUR | L254: =IFERROR(L255/$AF$5,L255) -> m | Q254: EUR | S254: =IFERROR(S255/$AF$5,S255) -> 71930.15571 | X254: EUR | Z254: =IFERROR(Z255/$AF$5,Z255) -> 74477.58215 | AE254: EUR | AG254: =IFERROR(AG255/$AF$5,AG255) -> 91550.26505
B255: =B254 -> School heads aged 45-54 | J255: =$J$5 -> EUR | L255: m | Q255: =$J$5 -> EUR | S255: 71930.15571 | X255: =$J$51 -> EUR | Z255: 74477.58215 | AE255: =$J$51 -> EUR | AG255: 91550.26505
B256: =B255 -> School heads aged 45-54 | J256: =$J$52 -> PPS | L256: =IFERROR(L255/$Z$5,L255) -> m | Q256: =$J$52 -> PPS | S256: =IFERROR(S255/$Z$5,S255) -> 60349.15321 | X256: =$J$52 -> PPS | Z256: =IFERROR(Z255/$Z$5,Z255) -> 62486.43523 | AE256: =$J$52 -> PPS | AG256: =IFERROR(AG255/$Z$5,AG255) -> 76810.35745
... 59 more rows

Sheet BA
A1: Bosnia and Herzegovina | AK1: 2020/2021
B3: a | C3: not applicable | J3: m | K3: not available
B5: National currency: | J5: BAM | T5: 1.95583 | Z5: 1.0156 | AF5: 1.95583
B7: Contents
D8: =$A$37 -> 1. Teachers
D9: =$A$39 -> Annual gross statutory salaries of teachers in public schools
F11: =$B$43 -> Salary range for teachers with the minimum qualification
F12: =$B$67 -> Salary range for teachers with a higher qualification (when most prevalent)
D13: =$A$94 -> Average annual gross actual salaries of teachers in public schools
D14: =$A$119 -> Allowances for teachers in public schools
F16: =$B$120 -> Allowances related to other tasks and responsibilities
F17: =$B$143 -> Allowances related to qualifications, training and performance
F18: =$B$158 -> Allowances related to teaching conditions
F19: =$C$171 -> Other criteria
D20: =$A$186 -> 2. School heads
D21: =$A$188 -> Annual gross statutory salaries of school heads in public schools
F23: =$B$195 -> Single or lowest salary range (when more than one)
F24: =$B$209 -> Highest salary range
F25: =$B$223 -> Most prevalent range (when none of the above)
D27: =$A$241 -> Average annual gross actual salaries of school heads in public schools
D29: =$A$266 -> Allowances for school heads in public schools
F31: =$B$267 -> Allowances related to other tasks and responsibilities
F32: =$B$290 -> Allowances related to qualifications, training and performance
F33: =$B$305 -> Allowances related to working conditions
F34: =$B$318 -> Other criteria
A37: 1. Teachers
A39: Annual gross statutory salaries of teachers in public schools | AE39: 2020/2021
J40: ISCED 02 | Q40: ISCED 1 | X40: ISCED 24 | AE40: ISCED 34
B41: Authority level determining the statutory salaries of teachers | J41: Collective agreement
B43: Salary range for teachers with the minimum qualification
J45: ISCED 02 | Q45: ISCED 1 | X45: ISCED 24 | AE45: ISCED 34
B46: Minimum qualification to enter the teaching profession | J46: Bachelor's degree in education (ISCED 6), internship and competitive examination
B49: TRUE | C49: TRUE | D49: TRUE | J49: ISCED 02 | Q49: ISCED 1 | X49: ISCED 24 | AE49: ISCED 34
B50: Starting salary | J50: EUR | L50: =IFERROR(L51/$T$5,L51) -> 6120.163818 | Q50: EUR | S50: =IFERROR(S51/$T$5,S51) -> 6528.174739 | X50: EUR | Z50: =IFERROR(Z51/$T$5,Z51) -> 6936.18566 | AE50: EUR | AG50: =IFERROR(AG51/$T$5,AG51) -> 8160.218424
B51: =$B$50 -> Starting salary | J51: =$J$5 -> BAM | L51: 11970 | Q51: =$J$5 -> BAM | S51: 12768 | X51: =$J$5 -> BAM | Z51: 13566 | AE51: =$J$5 -> BAM | AG51: 15960
B52: =$B$50 -> Starting salary | J52: PPS | L52: =IFERROR(L51/$Z$5,L51) -> 11786.13627 | Q52: =$J$52 -> PPS | S52: =IFERROR(S51/$Z$5,S51) -> 12571.87869 | X52: =$J$52 -> PPS | Z52: =IFERROR(Z51/$Z$5,Z51) -> 13357.62111 | AE52: =$J$52 -> PPS | AG52: =IFERROR(AG51/$Z$5,AG51) -> 15714.84837
B53: After 10 years' experience | J53: EUR | L53: =IFERROR(L54/$T$5,L54) -> 6425.916363 | Q53: EUR | S53: =IFERROR(S54/$T$5,S54) -> 6854.378959 | X53: EUR | Z53: =IFERROR(Z54/$T$5,Z54) -> 7282.841556 | AE53: EUR | AG53: =IFERROR(AG54/$T$5,AG54) -> 8568.229345
B54: =$B$53 -> After 10 years' experience | J54: =$J$5 -> BAM | L54: 12568 | Q54: =$J$5 -> BAM | S54: 13406 | X54: =$J$5 -> BAM | Z54: 14244 | AE54: =$J$5 -> BAM | AG54: 16758
B55: =$B$53 -> After 10 years' experience | J55: =$J$52 -> PPS | L55: =IFERROR(L54/$Z$5,L54) -> 12374.95077 | Q55: =$J$52 -> PPS | S55: =IFERROR(S54/$Z$5,S54) -> 13200.07877 | X55: =$J$52 -> PPS | Z55: =IFERROR(Z54/$Z$5,Z54) -> 14025.20677 | AE55: =$J$52 -> PPS | AG55: =IFERROR(AG54/$Z$5,AG54) -> 16500.59078
B56: After 15 years' experience | J56: EUR | L56: =IFERROR(L57/$T$5,L57) -> 6579.303927 | Q56: EUR | S56: =IFERROR(S57/$T$5,S57) -> 7017.992361 | X56: EUR | Z56: =IFERROR(Z57/$T$5,Z57) -> 7456.169503 | AE56: EUR | AG56: =IFERROR(AG57/$T$5,AG57) -> 8772.234806
B57: =$B$56 -> After 15 years' experience | J57: =$J$5 -> BAM | L57: 12868 | Q57: =$J$5 -> BAM | S57: 13726 | X57: =$J$5 -> BAM | Z57: 14583 | AE57: =$J$5 -> BAM | AG57: 17157
B58: =$B$56 -> After 15 years' experience | J58: =$J$52 -> PPS | L58: =IFERROR(L57/$Z$5,L57) -> 12670.34265 | Q58: =$J$52 -> PPS | S58: =IFERROR(S57/$Z$5,S57) -> 13515.16345 | X58: =$J$52 -> PPS | Z58: =IFERROR(Z57/$Z$5,Z57) -> 14358.99961 | AE58: =$J$52 -> PPS | AG58: =IFERROR(AG57/$Z$5,AG57) -> 16893.46199
B59: At the top of the range | J59: EUR | L59: =IFERROR(L60/$T$5,L60) -> 7344.196582 | Q59: EUR | S59: =IFERROR(S60/$T$5,S60) -> 7836.570663 | X59: EUR | Z59: =IFERROR(Z60/$T$5,Z60) -> 8323.320534 | AE59: EUR | AG59: =IFERROR(AG60/$T$5,AG60) -> 9792.262109
B60: =$B$59 -> At the top of the range | J60: =$J$5 -> BAM | L60: 14364 | Q60: =$J$5 -> BAM | S60: 15327 | X60: =$J$5 -> BAM | Z60: 16279 | AE60: =$J$5 -> BAM | AG60: 19152
B61: =$B$59 -> At the top of the range | J61: =$J$52 -> PPS | L61: =IFERROR(L60/$Z$5,L60) -> 14143.36353 | Q61: =$J$52 -> PPS | S61: =IFERROR(S60/$Z$5,S60) -> 15091.57148 | X61: =$J$52 -> PPS | Z61: =IFERROR(Z60/$Z$5,Z60) -> 16028.9484 | AE61: =$J$52 -> PPS | AG61: =IFERROR(AG60/$Z$5,AG60) -> 18857.81804
L63: ISCED 02 | Q63: ISCED 1 | X63: ISCED 24 | AE63: ISCED 34
B64: % teachers paid on this range | L64: m | Q64: m | X64: m | AE64: m
B65: Average nr of years to reach the top | L65: m | Q65: m | X65: m | AE65: m
B67: Salary range for teachers with a higher qualification (when most prevalent)
J69: ISCED 02 | Q69: ISCED 1 | X69: ISCED 24 | AE69: ISCED 34
B70: Minimum qualification to enter the teaching profession | J70: – | Q70: – | X70: – | AE70: –
B73: FALSE | C73: TRUE | D73: FALSE | J73: ISCED 02 | Q73: ISCED 1 | X73: ISCED 24 | AE73: ISCED 34
B74: Starting salary | J74: EUR | L74: =IFERROR(L75/$T$5,L75) -> – | Q74: EUR | S74: =IFERROR(S75/$T$5,S75) -> – | X74: EUR | Z74: =IFERROR(Z75/$T$5,Z75) -> – | AE74: EUR | AG74: =IFERROR(AG75/$T$5,AG75) -> –
B75: =$B$50 -> Starting salary | J75: =$J$5 -> BAM | L75: – | Q75: =$J$51 -> BAM | S75: – | X75: =$J$5 -> BAM | Z75: – | AE75: =$J$5 -> BAM | AG75: –
B76: =$B$50 -> Starting salary | J76: PPS | L76: =IFERROR(L75/$Z$5,L75) -> – | Q76: =$J$52 -> PPS | S76: =IFERROR(S75/$Z$5,S75) -> – | X76: =$J$52 -> PPS | Z76: =IFERROR(Z75/$Z$5,Z75) -> – | AE76: =$J$52 -> PPS | AG76: =IFERROR(AG75/$Z$5,AG75) -> –
B77: After 10 years' experience | J77: EUR | L77: =IFERROR(L78/$T$5,L78) -> – | Q77: EUR | S77: =IFERROR(S78/$T$5,S78) -> – | X77: EUR | Z77: =IFERROR(Z78/$T$5,Z78) -> – | AE77: EUR | AG77: =IFERROR(AG78/$T$5,AG78) -> –
B78: =$B$53 -> After 10 years' experience | J78: =$J$5 -> BAM | L78: – | Q78: =$J$51 -> BAM | S78: – | X78: =$J$5 -> BAM | Z78: – | AE78: =$J$5 -> BAM | AG78: –
B79: =$B$53 -> After 10 years' experience | J79: =$J$52 -> PPS | L79: =IFERROR(L78/$Z$5,L78) -> – | Q79: =$J$52 -> PPS | S79: =IFERROR(S78/$Z$5,S78) -> – | X79: =$J$52 -> PPS | Z79: =IFERROR(Z78/$Z$5,Z78) -> – | AE79: =$J$52 -> PPS | AG79: =IFERROR(AG78/$Z$5,AG78) -> –
B80: After 15 years' experience | J80: EUR | L80: =IFERROR(L81/$T$5,L81) -> – | Q80: EUR | S80: =IFERROR(S81/$T$5,S81) -> – | X80: EUR | Z80: =IFERROR(Z81/$T$5,Z81) -> – | AE80: EUR | AG80: =IFERROR(AG81/$T$5,AG81) -> –
B81: =$B$56 -> After 15 years' experience | J81: =$J$5 -> BAM | L81: – | Q81: =$J$51 -> BAM | S81: – | X81: =$J$5 -> BAM | Z81: – | AE81: =$J$5 -> BAM | AG81: –
B82: =$B$56 -> After 15 years' experience | J82: =$J$52 -> PPS | L82: =IFERROR(L81/$Z$5,L81) -> – | Q82: =$J$52 -> PPS | S82: =IFERROR(S81/$Z$5,S81) -> – | X82: =$J$52 -> PPS | Z82: =IFERROR(Z81/$Z$5,Z81) -> – | AE82: =$J$52 -> PPS | AG82: =IFERROR(AG81/$Z$5,AG81) -> –
B83: At the top of the range | J83: EUR | L83: =IFERROR(L84/$T$5,L84) -> – | Q83: EUR | S83: =IFERROR(S84/$T$5,S84) -> – | X83: EUR | Z83: =IFERROR(Z84/$T$5,Z84) -> – | AE83: EUR | AG83: =IFERROR(AG84/$T$5,AG84) -> –
B84: =$B$59 -> At the top of the range | J84: =$J$5 -> BAM | L84: – | Q84: =$J$51 -> BAM | S84: – | X84: =$J$5 -> BAM | Z84: – | AE84: =$J$5 -> BAM | AG84: –
B85: =$B$59 -> At the top of the range | J85: =$J$52 -> PPS | L85: =IFERROR(L84/$Z$5,L84) -> – | Q85: =$J$52 -> PPS | S85: =IFERROR(S84/$Z$5,S84) -> – | X85: =$J$52 -> PPS | Z85: =IFERROR(Z84/$Z$5,Z84) -> – | AE85: =$J$52 -> PPS | AG85: =IFERROR(AG84/$Z$5,AG84) -> –
L87: ISCED 02 | Q87: ISCED 1 | X87: ISCED 24 | AE87: ISCED 34
B88: % teachers paid on this range | L88: – | Q88: – | X88: – | AE88: –
B89: Average nr of years to reach the top | L89: – | Q89: – | X89: – | AE89: –
B91: Source | J91: Laws of the cantons/entities of Bosnia and Herzegovina on salaries of employees in the field of education; Collective agreements at the cantons/entities level (Republika Srpska and all 10 cantons plus Brcko District have their law on salaries and collective agreement).
B92: Explanatory notes | J92: An average estimate is calculated and reported on the basis of the available data at canton level.
A94: Average annual gross actual salaries of teachers in public schools | AE94: 2020/2021
B97: TRUE | C97: TRUE | D97: TRUE | J97: ISCED 02 | Q97: ISCED 1 | X97: ISCED 24 | AE97: ISCED 34
B98: Teachers aged 25-64 | J98: EUR | L98: =IFERROR(L99/$AF$5,L99) -> 7344.196582 | Q98: EUR | S98: =IFERROR(S99/$AF$5,S99) -> 7752.207503 | X98: EUR | Z98: =IFERROR(Z99/$AF$5,Z99) -> 8160.218424 | AE98: EUR | AG98: =IFERROR(AG99/$AF$5,AG99) -> 8976.240266
B99: =B98 -> Teachers aged 25-64 | J99: =$J$5 -> BAM | L99: 14364 | Q99: =$J$51 -> BAM | S99: 15162 | X99: =$J$5 -> BAM | Z99: 15960 | AE99: =$J$5 -> BAM | AG99: 17556
B100: =B99 -> Teachers aged 25-64 | J100: PPS | L100: =IFERROR(L99/$Z$5,L99) -> 14143.36353 | Q100: =$J$52 -> PPS | S100: =IFERROR(S99/$Z$5,S99) -> 14929.10595 | X100: =$J$52 -> PPS | Z100: =IFERROR(Z99/$Z$5,Z99) -> 15714.84837 | AE100: =$J$52 -> PPS | AG100: =IFERROR(AG99/$Z$5,AG99) -> 17286.3332
B101: Teachers aged 25-34 | J101: EUR | L101: =IFERROR(L102/$AF$5,L102) -> m | Q101: EUR | S101: =IFERROR(S102/$AF$5,S102) -> m | X101: EUR | Z101: =IFERROR(Z102/$AF$5,Z102) -> m | AE101: EUR | AG101: =IFERROR(AG102/$AF$5,AG102) -> m
B102: =B101 -> Teachers aged 25-34 | J102: =$J$5 -> BAM | L102: m | Q102: =$J$51 -> BAM | S102: m | X102: =$J$5 -> BAM | Z102: m | AE102: =$J$5 -> BAM | AG102: m
B103: =B102 -> Teachers aged 25-34 | J103: =$J$52 -> PPS | L103: =IFERROR(L102/$Z$5,L102) -> m | Q103: =$J$52 -> PPS | S103: =IFERROR(S102/$Z$5,S102) -> m | X103: =$J$52 -> PPS | Z103: =IFERROR(Z102/$Z$5,Z102) -> m | AE103: =$J$52 -> PPS | AG103: =IFERROR(AG102/$Z$5,AG102) -> m
B104: Teachers aged 35-44 | J104: EUR | L104: =IFERROR(L105/$AF$5,L105) -> m | Q104: EUR | S104: =IFERROR(S105/$AF$5,S105) -> m | X104: EUR | Z104: =IFERROR(Z105/$AF$5,Z105) -> m | AE104: EUR | AG104: =IFERROR(AG105/$AF$5,AG105) -> m
B105: =B104 -> Teachers aged 35-44 | J105: =$J$5 -> BAM | L105: m | Q105: =$J$51 -> BAM | S105: m | X105: =$J$5 -> BAM | Z105: m | AE105: =$J$5 -> BAM | AG105: m
B106: =B105 -> Teachers aged 35-44 | J106: =$J$52 -> PPS | L106: =IFERROR(L105/$Z$5,L105) -> m | Q106: =$J$52 -> PPS | S106: =IFERROR(S105/$Z$5,S105) -> m | X106: =$J$52 -> PPS | Z106: =IFERROR(Z105/$Z$5,Z105) -> m | AE106: =$J$52 -> PPS | AG106: =IFERROR(AG105/$Z$5,AG105) -> m
B107: Teachers aged 45-54 | J107: EUR | L107: =IFERROR(L108/$AF$5,L108) -> m | Q107: EUR | S107: =IFERROR(S108/$AF$5,S108) -> m | X107: EUR | Z107: =IFERROR(Z108/$AF$5,Z108) -> m | AE107: EUR | AG107: =IFERROR(AG108/$AF$5,AG108) -> m
B108: =B107 -> Teachers aged 45-54 | J108: =$J$5 -> BAM | L108: m | Q108: =$J$51 -> BAM | S108: m | X108: =$J$5 -> BAM | Z108: m | AE108: =$J$5 -> BAM | AG108: m
B109: =B108 -> Teachers aged 45-54 | J109: =$J$52 -> PPS | L109: =IFERROR(L108/$Z$5,L108) -> m | Q109: =$J$52 -> PPS | S109: =IFERROR(S108/$Z$5,S108) -> m | X109: =$J$52 -> PPS | Z109: =IFERROR(Z108/$Z$5,Z108) -> m | AE109: =$J$52 -> PPS | AG109: =IFERROR(AG108/$Z$5,AG108) -> m
B110: Teachers aged 55-64 | J110: EUR | L110: =IFERROR(L111/$AF$5,L111) -> m | Q110: EUR | S110: =IFERROR(S111/$AF$5,S111) -> m | X110: EUR | Z110: =IFERROR(Z111/$AF$5,Z111) -> m | AE110: EUR | AG110: =IFERROR(AG111/$AF$5,AG111) -> m
B111: =B110 -> Teachers aged 55-64 | J111: =$J$5 -> BAM | L111: m | Q111: =$J$51 -> BAM | S111: m | X111: =$J$5 -> BAM | Z111: m | AE111: =$J$5 -> BAM | AG111: m
B112: =B111 -> Teachers aged 55-64 | J112: =$J$52 -> PPS | L112: =IFERROR(L111/$Z$5,L111) -> m | Q112: =$J$52 -> PPS | S112: =IFERROR(S111/$Z$5,S111) -> m | X112: =$J$52 -> PPS | Z112: =IFERROR(Z111/$Z$5,Z111) -> m | AE112: =$J$52 -> PPS | AG112: =IFERROR(AG111/$Z$5,AG111) -> m
B115: Source | J115: Institute for statistics of the Republika Srpska and Institute for Statistics of the Federation of BiH.
B116: Explanatory notes | J116: The reported actual salaries represent the average of teachers' actual salaries of all cantons and entities, which are calculated from surveys or estimated from statutory salaries.
A119: Allowances for teachers in public schools | B119: Salary range for teachers with a higher qualification (when most prevalent) | AE119: 2020/2021
B120: Allowances related to other tasks and responsibilities | N120: 1 | U120: 2
O122: Authority level | V122: Type of financial compensation | AD122: ISCED levels
AD123: 02 | AF123: 1 | AH123: 24 | AJ123: 34
B124: Participation in school or other management tasks in addition to teaching duties | O124: a | V124: a
B125: Teaching more classes or hours than required by full-time contract | O125: Collective agreement | V125: % of salary | AD125: ● | AF125: ● | AH125: ● | AJ125: ●
B126: Students counselling | O126: a | V126: a
B127: Engaging in extracurricular activities | O127: a | V127: a
B128: Special tasks | O128: a | V128: a
B129: Class teacher / form teacher | O129: a | V129: No payment (stat. duty) | AD129: ● | AF129: ● | AH129: ● | AJ129: ●
B130: Supporting mentoring / induction programmes | O130: Collective agreement | V130: % of salary | AD130: ● | AF130: ● | AH130: ● | AJ130: ●
B131: Other | O131: Collective agreement | V131: % of salary | AD131: ● | AF131: ● | AH131: ● | AJ131: ●
O133: Explanatory notes
B134: =B124 -> Participation in school or other management tasks in addition to teaching duties | O134: –
B135: Teaching more classes or hours than required by full-time contract | O135: Up to 50% depending on the number of hours over the full-time, in accordance with legislation regulating the financing of primary and secondary schools
B136: Students counselling | O136: –
B137: Engaging in extracurricular activities | O137: –
B138: Special tasks | O138: –
B139: Class teacher / form teacher | O139: For the form time, class teachers get their teaching time reduced by two hours a week or get an overtime compensation for this time.
B140: Supporting mentoring / induction programmes | O140: An increase of 5 to 10% of the basic salary for a mentor, counselor or senior counselor.
B141: Other | O141: Compensation for a president or a commissioner of a representative trade union is 15% in an institution with 100 workers or less. For each other 100 workers, another 2.5% per basic coefficient. Compensation is 25% on the basic coefficient, when the number of employees is over 500.
B143: Allowances related to qualifications, training and performance | N143: 0 | U143: 0
O145: Authority level | V145: Type of financial compensation | AD145: ISCED levels
AD146: 02 | AF146: 1 | AH146: 24 | AJ146: 34
B147: Further formal qualifications | O147: a | V147: a
B148: Successful completion of continuing professional development (CPD) activities | O148: a | V148: a
B149: Outstanding performance | O149: Collective agreement | V149: Incidental payments | AD149: ● | AF149: ● | AH149: ● | AJ149: ●
B150: Other | O150: a | V150: a
O152: Explanatory notes
B153: =B147 -> Further formal qualifications | O153: –
B154: Successful completion of continuing professional development (CPD) activities | O154: –
B155: Outstanding performance | O155: For the above-average results of work or success in the work, the employer/head of school may pay preschool teachers/teachers a prize in cash up to 30% of their average salary paid for the last three months.
B156: Other | O156: –
B158: Allowances related to teaching conditions | N158: 0 | U158: 0
O160: Authority level | V160: Type of financial compensation | AD160: ISCED levels
AD161: 02 | AF161: 1 | AH161: 24 | AJ161: 34
B162: Teaching students with special educational needs | O162: Collective agreement | V162: % of salary | AD162: ● | AF162: ● | AH162: ● | AJ162: ●
B163: Teaching in a disadvantaged, remote or high cost area | O163: Collective agreement | V163: % of salary | AF163: ● | AH163: ●
B164: Other | O164: Collective agreement | V164: % of salary | AD164: ● | AF164: ● | AH164: ● | AJ164: ●
O166: Explanatory notes
B167: =B162 -> Teaching students with special educational needs | O167: The basic salary of teachers and preschool teachers who have children with special needs in the class is increased by 1% for each child with special needs, in proportion to the number of lessons with those children during the week, and at most by 3%.
B168: Teaching in a disadvantaged, remote or high cost area | O168: For all teachers employed in primary schools that are 15 kilometres away from the centre of the municipality, the basic salary is increased by 2%. For each additional kilometer, the basic salary is increased by 0.1%, up to 3%.
B169: Other | O169: For teaching in a class combining two grades, the salary is increased by 5% in a class combining three grades by 8%, and by 10% in a class combining four or more grades.
C171: Other criteria
O173: Authority level | V173: Type of financial compensation | AD173: ISCED levels
AD174: 02 | AF174: 1 | AH174: 24 | AJ174: 34
B175: Residence allowance | O175: a | V175: a
B176: Family status | O176: a | V176: a
B177: Other | O177: a | V177: a
O179: Explanatory notes
B180: =B175 -> Residence allowance | O180: –
B181: Family status | O181: –
B182: Other | O182: –
B184: Source | O184: Laws of the cantons/entities of Bosnia and Herzegovina on salaries of employees in the field of education; Collective agreements at the cantons/entities level (Republika Srpska and all 10 cantons plus Brcko District have their law on salaries and collective agreement).
A186: 2. School heads
A188: Annual gross statutory salaries of school heads in public schools | AE188: 2020/2021
J189: ISCED 02 | Q189: ISCED 1 | X189: ISCED 24 | AE189: ISCED 34
B190: Authority level determining the statutory salaries of school heads | J190: Collective agreement
J192: ISCED 02 | Q192: ISCED 1 | X192: ISCED 24 | AE192: ISCED 34
B193: Minimum qualification to become a school head | J193: Bachelor's degree (ISCED 6) and five years of service in education
B195: Single or lowest salary range (when more than one)
J197: ISCED 02 | Q197: ISCED 1 | X197: ISCED 24 | AE197: ISCED 34
B198: Type of school | J198: m | Q198: Up to 400 students | X198: Up to 400 students | AE198: Up to 400 students
B199: FALSE | C199: TRUE | D199: FALSE
B200: Minimum salary | J200: EUR | L200: =IFERROR(L201/$T$5,L201) -> m | Q200: EUR | S200: =IFERROR(S201/$T$5,S201) -> m | X200: EUR | Z200: =IFERROR(Z201/$T$5,Z201) -> m | AE200: EUR | AG200: =IFERROR(AG201/$T$5,AG201) -> m
B201: =B200 -> Minimum salary | J201: =$J$5 -> BAM | L201: m | Q201: =$J$5 -> BAM | S201: m | X201: =$J$51 -> BAM | Z201: m | AE201: =$J$51 -> BAM | AG201: m
B202: =B201 -> Minimum salary | J202: =$J$52 -> PPS | L202: =IFERROR(L201/$Z$5,L201) -> m | Q202: =$J$52 -> PPS | S202: =IFERROR(S201/$Z$5,S201) -> m | X202: =$J$52 -> PPS | Z202: =IFERROR(Z201/$Z$5,Z201) -> m | AE202: =$J$52 -> PPS | AG202: =IFERROR(AG201/$Z$5,AG201) -> m
B203: Maximum salary | J203: EUR | L203: =IFERROR(L204/$T$5,L204) -> m | Q203: EUR | S203: =IFERROR(S204/$T$5,S204) -> m | X203: EUR | Z203: =IFERROR(Z204/$T$5,Z204) -> m | AE203: EUR | AG203: =IFERROR(AG204/$T$5,AG204) -> m
B204: =B203 -> Maximum salary | J204: =$J$5 -> BAM | L204: m | Q204: =$J$5 -> BAM | S204: m | X204: =$J$51 -> BAM | Z204: m | AE204: =$J$51 -> BAM | AG204: m
B205: =B204 -> Maximum salary | J205: =$J$52 -> PPS | L205: =IFERROR(L204/$Z$5,L204) -> m | Q205: =$J$52 -> PPS | S205: =IFERROR(S204/$Z$5,S204) -> m | X205: =$J$52 -> PPS | Z205: =IFERROR(Z204/$Z$5,Z204) -> m | AE205: =$J$52 -> PPS | AG205: =IFERROR(AG204/$Z$5,AG204) -> m
B206: Criteria for progression in this salary range | J206: m | Q206: years in service | X206: years in service | AE206: years in service
B207: % school heads paid on this range | J207: m | Q207: m | X207: m | AE207: m
B209: Highest salary range
J211: ISCED 02 | Q211: ISCED 1 | X211: ISCED 24 | AE211: ISCED 34
B212: Type of school | J212: a | Q212: More than 800 students | X212: More than 800 students | AE212: More than 800 students
B213: FALSE | C213: TRUE | D213: FALSE
B214: Minimum salary | J214: EUR | L214: =IF(IFERROR(L215/$T$5,L215)=0,"–",IFERROR(L215/$T$5,L215)) -> m | Q214: EUR | S214: =IF(IFERROR(S215/$T$5,S215)=0,"–",IFERROR(S215/$T$5,S215)) -> m | X214: EUR | Z214: =IF(IFERROR(Z215/$T$5,Z215)=0,"–",IFERROR(Z215/$T$5,Z215)) -> m | AE214: EUR | AG214: =IF(IFERROR(AG215/$T$5,AG215)=0,"–",IFERROR(AG215/$T$5,AG215)) -> m
B215: =B214 -> Minimum salary | J215: =$J$5 -> BAM | L215: m | Q215: =$J$5 -> BAM | S215: m | X215: =$J$51 -> BAM | Z215: m | AE215: =$J$51 -> BAM | AG215: m
B216: =B215 -> Minimum salary | J216: =$J$52 -> PPS | L216: =IFERROR(L215/$Z$5,L215) -> m | Q216: =$J$52 -> PPS | S216: =IFERROR(S215/$Z$5,S215) -> m | X216: =$J$52 -> PPS | Z216: =IFERROR(Z215/$Z$5,Z215) -> m | AE216: =$J$52 -> PPS | AG216: =IFERROR(AG215/$Z$5,AG215) -> m
B217: Maximum salary | J217: EUR | L217: =IFERROR(L218/$T$5,L218) -> m | Q217: EUR | S217: =IFERROR(S218/$T$5,S218) -> m | X217: EUR | Z217: =IFERROR(Z218/$T$5,Z218) -> m | AE217: EUR | AG217: =IFERROR(AG218/$T$5,AG218) -> m
B218: =B217 -> Maximum salary | J218: =$J$5 -> BAM | L218: m | Q218: =$J$5 -> BAM | S218: m | X218: =$J$51 -> BAM | Z218: m | AE218: =$J$51 -> BAM | AG218: m
B219: =B218 -> Maximum salary | J219: =$J$52 -> PPS | L219: =IFERROR(L218/$Z$5,L218) -> m | Q219: =$J$52 -> PPS | S219: =IFERROR(S218/$Z$5,S218) -> m | X219: =$J$52 -> PPS | Z219: =IFERROR(Z218/$Z$5,Z218) -> m | AE219: =$J$52 -> PPS | AG219: =IFERROR(AG218/$Z$5,AG218) -> m
B220: Criteria for progression in this salary range | J220: a | Q220: years in service | X220: years in service | AE220: years in service
B221: % school heads paid on this range | J221: m | Q221: m | X221: m | AE221: m
B223: Most prevalent range (when none of the above)
J225: ISCED 02 | Q225: ISCED 1 | X225: ISCED 24 | AE225: ISCED 34
B226: Type of school | J226: a | Q226: Between 401 and 800 students | X226: Between 401 and 800 students | AE226: Between 401 and 800 students
B227: TRUE | C227: TRUE | D227: TRUE
B228: Minimum salary | J228: EUR | L228: =IFERROR(L229/$T$5,L229) -> m | Q228: EUR | S228: =IFERROR(S229/$T$5,S229) -> m | X228: EUR | Z228: =IFERROR(Z229/$T$5,Z229) -> m | AE228: EUR | AG228: =IFERROR(AG229/$T$5,AG229) -> m
B229: =B228 -> Minimum salary | J229: =$J$5 -> BAM | L229: m | Q229: =$J$5 -> BAM | S229: m | X229: =$J$51 -> BAM | Z229: m | AE229: =$J$51 -> BAM | AG229: m
B230: =B229 -> Minimum salary | J230: =$J$52 -> PPS | L230: =IFERROR(L229/$Z$5,L229) -> m | Q230: =$J$52 -> PPS | S230: =IFERROR(S229/$Z$5,S229) -> m | X230: =$J$52 -> PPS | Z230: =IFERROR(Z229/$Z$5,Z229) -> m | AE230: =$J$52 -> PPS | AG230: =IFERROR(AG229/$Z$5,AG229) -> m
B231: Maximum salary | J231: EUR | L231: =IFERROR(L232/$T$5,L232) -> m | Q231: EUR | S231: =IFERROR(S232/$T$5,S232) -> m | X231: EUR | Z231: =IFERROR(Z232/$T$5,Z232) -> m | AE231: EUR | AG231: =IFERROR(AG232/$T$5,AG232) -> m
B232: =B231 -> Maximum salary | J232: =$J$5 -> BAM | L232: m | Q232: =$J$5 -> BAM | S232: m | X232: =$J$51 -> BAM | Z232: m | AE232: =$J$51 -> BAM | AG232: m
B233: =B232 -> Maximum salary | J233: =$J$52 -> PPS | L233: =IFERROR(L232/$Z$5,L232) -> m | Q233: =$J$52 -> PPS | S233: =IFERROR(S232/$Z$5,S232) -> m | X233: =$J$52 -> PPS | Z233: =IFERROR(Z232/$Z$5,Z232) -> m | AE233: =$J$52 -> PPS | AG233: =IFERROR(AG232/$Z$5,AG232) -> m
B234: Criteria for progression in this salary range | J234: a | Q234: years in service | X234: years in service | AE234: years in service
B235: % school heads paid on this range | J235: m | Q235: m | X235: m | AE235: m
B238: Source | J238: Laws of the cantons/entities of Bosnia and Herzegovina on salaries of employees in the field of education; Collective agreements at the cantons/entities level (Republika Srpska and all 10 cantons plus Brcko District have their law on salaries and collective agreement).
B239: Explanatory notes | J239: Republika Srpska and all 10 cantons plus Brcko District have their law on salaries and collective agreement. An average estimate is calculated and reported on the basis of the available data.
A241: Average annual gross actual salaries of school heads in public schools | AE241: 2020/2021
B244: TRUE | C244: TRUE | D244: TRUE | J244: ISCED 02 | Q244: ISCED 1 | X244: ISCED 24 | AE244: ISCED 34
B245: School heads aged 25-64 | J245: EUR | L245: =IFERROR(L246/$AF$5,L246) -> 9792.262109 | Q245: EUR | S245: =IFERROR(S246/$AF$5,S246) -> 11424.30579 | X245: EUR | Z245: =IFERROR(Z246/$AF$5,Z246) -> 11424.30579 | AE245: EUR | AG245: =IFERROR(AG246/$AF$5,AG246) -> 12648.33856
B246: =B245 -> School heads aged 25-64 | J246: =$J$5 -> BAM | L246: 19152 | Q246: =$J$51 -> BAM | S246: 22344 | X246: =$J$51 -> BAM | Z246: 22344 | AE246: =$J$51 -> BAM | AG246: 24738
B247: =B246 -> School heads aged 25-64 | J247: PPS | L247: =IFERROR(L246/$Z$5,L246) -> 18857.81804 | Q247: =$J$52 -> PPS | S247: =IFERROR(S246/$Z$5,S246) -> 22000.78771 | X247: =$J$52 -> PPS | Z247: =IFERROR(Z246/$Z$5,Z246) -> 22000.78771 | AE247: =$J$52 -> PPS | AG247: =IFERROR(AG246/$Z$5,AG246) -> 24358.01497
B248: School heads aged 25-34 | J248: EUR | L248: =IFERROR(L249/$AF$5,L249) -> m | Q248: EUR | S248: =IFERROR(S249/$AF$5,S249) -> m | X248: EUR | Z248: =IFERROR(Z249/$AF$5,Z249) -> m | AE248: EUR | AG248: =IFERROR(AG249/$AF$5,AG249) -> m
B249: =B248 -> School heads aged 25-34 | J249: =$J$5 -> BAM | L249: m | Q249: =$J$5 -> BAM | S249: m | X249: =$J$51 -> BAM | Z249: m | AE249: =$J$51 -> BAM | AG249: m
B250: =B249 -> School heads aged 25-34 | J250: =$J$52 -> PPS | L250: =IFERROR(L249/$Z$5,L249) -> m | Q250: =$J$52 -> PPS | S250: =IFERROR(S249/$Z$5,S249) -> m | X250: =$J$52 -> PPS | Z250: =IFERROR(Z249/$Z$5,Z249) -> m | AE250: =$J$52 -> PPS | AG250: =IFERROR(AG249/$Z$5,AG249) -> m
B251: School heads aged 35-44 | J251: EUR | L251: =IFERROR(L252/$AF$5,L252) -> m | Q251: EUR | S251: =IFERROR(S252/$AF$5,S252) -> m | X251: EUR | Z251: =IFERROR(Z252/$AF$5,Z252) -> m | AE251: EUR | AG251: =IFERROR(AG252/$AF$5,AG252) -> m
B252: =B251 -> School heads aged 35-44 | J252: =$J$5 -> BAM | L252: m | Q252: =$J$5 -> BAM | S252: m | X252: =$J$51 -> BAM | Z252: m | AE252: =$J$51 -> BAM | AG252: m
B253: =B252 -> School heads aged 35-44 | J253: =$J$52 -> PPS | L253: =IFERROR(L252/$Z$5,L252) -> m | Q253: =$J$52 -> PPS | S253: =IFERROR(S252/$Z$5,S252) -> m | X253: =$J$52 -> PPS | Z253: =IFERROR(Z252/$Z$5,Z252) -> m | AE253: =$J$52 -> PPS | AG253: =IFERROR(AG252/$Z$5,AG252) -> m
B254: School heads aged 45-54 | J254: EUR | L254: =IFERROR(L255/$AF$5,L255) -> m | Q254: EUR | S254: =IFERROR(S255/$AF$5,S255) -> m | X254: EUR | Z254: =IFERROR(Z255/$AF$5,Z255) -> m | AE254: EUR | AG254: =IFERROR(AG255/$AF$5,AG255) -> m
B255: =B254 -> School heads aged 45-54 | J255: =$J$5 -> BAM | L255: m | Q255: =$J$5 -> BAM | S255: m | X255: =$J$51 -> BAM | Z255: m | AE255: =$J$51 -> BAM | AG255: m
B256: =B255 -> School heads aged 45-54 | J256: =$J$52 -> PPS | L256: =IFERROR(L255/$Z$5,L255) -> m | Q256: =$J$52 -> PPS | S256: =IFERROR(S255/$Z$5,S255) -> m | X256: =$J$52 -> PPS | Z256: =IFERROR(Z255/$Z$5,Z255) -> m | AE256: =$J$52 -> PPS | AG256: =IFERROR(AG255/$Z$5,AG255) -> m
... 59 more rows

Sheet BE_de
A1: German-speaking Community of Belgium | AK1: 2020/2021
B3: a | C3: not applicable | J3: m | K3: not available
B5: National currency: | J5: EUR | T5: 1 | Z5: 1.1636 | AF5: 1
B7: Contents
D8: =$A$37 -> 1. Teachers
D9: =$A$39 -> Annual gross statutory salaries of teachers in public schools
F11: =$B$43 -> Salary range for teachers with the minimum qualification
F12: =$B$67 -> Salary range for teachers with a higher qualification (when most prevalent)
D13: =$A$94 -> Average annual gross actual salaries of teachers in public schools
D14: =$A$119 -> Allowances for teachers in public schools
F16: =$B$120 -> Allowances related to other tasks and responsibilities
F17: =$B$143 -> Allowances related to qualifications, training and performance
F18: =$B$158 -> Allowances related to teaching conditions
F19: =$C$171 -> Other criteria
D20: =$A$186 -> 2. School heads
D21: =$A$188 -> Annual gross statutory salaries of school heads in public schools
F23: =$B$196 -> Single or lowest salary range (when more than one)
F24: =$B$210 -> Highest salary range
F25: =$B$224 -> Most prevalent range (when none of the above)
D27: =$A$242 -> Average annual gross actual salaries of school heads in public schools
D29: =$A$267 -> Allowances for school heads in public schools
F31: =$B$268 -> Allowances related to other tasks and responsibilities
F32: =$B$291 -> Allowances related to qualifications, training and performance
F33: =$B$306 -> Allowances related to working conditions
F34: =$B$319 -> Other criteria
A37: 1. Teachers
A39: Annual gross statutory salaries of teachers in public schools | AE39: 2020/2021
J40: ISCED 02 | Q40: ISCED 1 | X40: ISCED 24 | AE40: ISCED 34
B41: Authority level determining the statutory salaries of teachers | J41: Top-level authority
B43: Salary range for teachers with the minimum qualification
J45: ISCED 02 | Q45: ISCED 1 | X45: ISCED 24 | AE45: ISCED 34
B46: Minimum qualification to enter the teaching profession | J46: Pre-primary teacher bachelor's degree (ISCED 6) | Q46: Primary teacher bachelor's degree (ISCED 6) | X46: Bachelor's degree (ISCED 6) + Lower secondary teaching diploma (AESI: 'agrégation de l’enseignement secondaire inférieur') | AE46: Teacher master's degree (ISCED 7) or master's degree + upper secondary teaching diploma (AESS: 'agrégation de l’enseignement secondaire supérieur')
B49: FALSE | C49: TRUE | D49: TRUE | J49: ISCED 02 | Q49: ISCED 1 | X49: ISCED 24 | AE49: ISCED 34
B50: Starting salary | J50: EUR | L50: =IFERROR(L51/$T$5,L51) -> 34750.09 | Q50: EUR | S50: =IFERROR(S51/$T$5,S51) -> 34750.09 | X50: EUR | Z50: =IFERROR(Z51/$T$5,Z51) -> 34750.09 | AE50: EUR | AG50: =IFERROR(AG51/$T$5,AG51) -> 43541.29
B51: =$B$50 -> Starting salary | J51: =$J$5 -> EUR | L51: 34750.09 | Q51: =$J$5 -> EUR | S51: 34750.09 | X51: =$J$5 -> EUR | Z51: 34750.09 | AE51: =$J$5 -> EUR | AG51: 43541.29
B52: =$B$50 -> Starting salary | J52: PPS | L52: =IFERROR(L51/$Z$5,L51) -> 29864.29185 | Q52: =$J$52 -> PPS | S52: =IFERROR(S51/$Z$5,S51) -> 29864.29185 | X52: =$J$52 -> PPS | Z52: =IFERROR(Z51/$Z$5,Z51) -> 29864.29185 | AE52: =$J$52 -> PPS | AG52: =IFERROR(AG51/$Z$5,AG51) -> 37419.46545
B53: After 10 years' experience | J53: EUR | L53: =IFERROR(L54/$T$5,L54) -> 43470.85 | Q53: EUR | S53: =IFERROR(S54/$T$5,S54) -> 43470.85 | X53: EUR | Z53: =IFERROR(Z54/$T$5,Z54) -> 43470.85 | AE53: EUR | AG53: =IFERROR(AG54/$T$5,AG54) -> 55864.4
B54: =$B$53 -> After 10 years' experience | J54: =$J$5 -> EUR | L54: 43470.85 | Q54: =$J$5 -> EUR | S54: 43470.85 | X54: =$J$5 -> EUR | Z54: 43470.85 | AE54: =$J$5 -> EUR | AG54: 55864.4
B55: =$B$53 -> After 10 years' experience | J55: =$J$52 -> PPS | L55: =IFERROR(L54/$Z$5,L54) -> 37358.92919 | Q55: =$J$52 -> PPS | S55: =IFERROR(S54/$Z$5,S54) -> 37358.92919 | X55: =$J$52 -> PPS | Z55: =IFERROR(Z54/$Z$5,Z54) -> 37358.92919 | AE55: =$J$52 -> PPS | AG55: =IFERROR(AG54/$Z$5,AG54) -> 48009.96906
B56: After 15 years' experience | J56: EUR | L56: =IFERROR(L57/$T$5,L57) -> 47360.35 | Q56: EUR | S56: =IFERROR(S57/$T$5,S57) -> 47360.35 | X56: EUR | Z56: =IFERROR(Z57/$T$5,Z57) -> 47360.35 | AE56: EUR | AG56: =IFERROR(AG57/$T$5,AG57) -> 61284.07
B57: =$B$56 -> After 15 years' experience | J57: =$J$5 -> EUR | L57: 47360.35 | Q57: =$J$5 -> EUR | S57: 47360.35 | X57: =$J$5 -> EUR | Z57: 47360.35 | AE57: =$J$5 -> EUR | AG57: 61284.07
B58: =$B$56 -> After 15 years' experience | J58: =$J$52 -> PPS | L58: =IFERROR(L57/$Z$5,L57) -> 40701.57271 | Q58: =$J$52 -> PPS | S58: =IFERROR(S57/$Z$5,S57) -> 40701.57271 | X58: =$J$52 -> PPS | Z58: =IFERROR(Z57/$Z$5,Z57) -> 40701.57271 | AE58: =$J$52 -> PPS | AG58: =IFERROR(AG57/$Z$5,AG57) -> 52667.64352
B59: At the top of the range | J59: EUR | L59: =IFERROR(L60/$T$5,L60) -> 56155.45 | Q59: EUR | S59: =IFERROR(S60/$T$5,S60) -> 56155.45 | X59: EUR | Z59: =IFERROR(Z60/$T$5,Z60) -> 56155.45 | AE59: EUR | AG59: =IFERROR(AG60/$T$5,AG60) -> 71222.03
B60: =$B$59 -> At the top of the range | J60: =$J$5 -> EUR | L60: 56155.45 | Q60: =$J$5 -> EUR | S60: 56155.45 | X60: =$J$5 -> EUR | Z60: 56155.45 | AE60: =$J$5 -> EUR | AG60: 71222.03
B61: =$B$59 -> At the top of the range | J61: =$J$52 -> PPS | L61: =IFERROR(L60/$Z$5,L60) -> 48260.09797 | Q61: =$J$52 -> PPS | S61: =IFERROR(S60/$Z$5,S60) -> 48260.09797 | X61: =$J$52 -> PPS | Z61: =IFERROR(Z60/$Z$5,Z60) -> 48260.09797 | AE61: =$J$52 -> PPS | AG61: =IFERROR(AG60/$Z$5,AG60) -> 61208.34479
L63: ISCED 02 | Q63: ISCED 1 | X63: ISCED 24 | AE63: ISCED 34
B64: % teachers paid on this range | L64: 0.97 | Q64: 0.91 | X64: 0.52 | AE64: 0.6
B65: Average nr of years to reach the top | L65: 24 | Q65: 24 | X65: 24 | AE65: 24
B67: Salary range for teachers with a higher qualification (when most prevalent)
J69: ISCED 02 | Q69: ISCED 1 | X69: ISCED 24 | AE69: ISCED 34
B70: Minimum qualification to enter the teaching profession | J70: – | Q70: – | X70: – | AE70: –
B73: FALSE | C73: TRUE | D73: FALSE | J73: ISCED 02 | Q73: ISCED 1 | X73: ISCED 24 | AE73: ISCED 34
B74: Starting salary | J74: EUR | L74: =IFERROR(L75/$T$5,L75) -> – | Q74: EUR | S74: =IFERROR(S75/$T$5,S75) -> – | X74: EUR | Z74: =IFERROR(Z75/$T$5,Z75) -> – | AE74: EUR | AG74: =IFERROR(AG75/$T$5,AG75) -> –
B75: =$B$50 -> Starting salary | J75: =$J$5 -> EUR | L75: – | Q75: =$J$51 -> EUR | S75: – | X75: =$J$5 -> EUR | Z75: – | AE75: =$J$5 -> EUR | AG75: –
B76: =$B$50 -> Starting salary | J76: PPS | L76: =IFERROR(L75/$Z$5,L75) -> – | Q76: =$J$52 -> PPS | S76: =IFERROR(S75/$Z$5,S75) -> – | X76: =$J$52 -> PPS | Z76: =IFERROR(Z75/$Z$5,Z75) -> – | AE76: =$J$52 -> PPS | AG76: =IFERROR(AG75/$Z$5,AG75) -> –
B77: After 10 years' experience | J77: EUR | L77: =IFERROR(L78/$T$5,L78) -> – | Q77: EUR | S77: =IFERROR(S78/$T$5,S78) -> – | X77: EUR | Z77: =IFERROR(Z78/$T$5,Z78) -> – | AE77: EUR | AG77: =IFERROR(AG78/$T$5,AG78) -> –
B78: =$B$53 -> After 10 years' experience | J78: =$J$5 -> EUR | L78: – | Q78: =$J$51 -> EUR | S78: – | X78: =$J$5 -> EUR | Z78: – | AE78: =$J$5 -> EUR | AG78: –
B79: =$B$53 -> After 10 years' experience | J79: =$J$52 -> PPS | L79: =IFERROR(L78/$Z$5,L78) -> – | Q79: =$J$52 -> PPS | S79: =IFERROR(S78/$Z$5,S78) -> – | X79: =$J$52 -> PPS | Z79: =IFERROR(Z78/$Z$5,Z78) -> – | AE79: =$J$52 -> PPS | AG79: =IFERROR(AG78/$Z$5,AG78) -> –
B80: After 15 years' experience | J80: EUR | L80: =IFERROR(L81/$T$5,L81) -> – | Q80: EUR | S80: =IFERROR(S81/$T$5,S81) -> – | X80: EUR | Z80: =IFERROR(Z81/$T$5,Z81) -> – | AE80: EUR | AG80: =IFERROR(AG81/$T$5,AG81) -> –
B81: =$B$56 -> After 15 years' experience | J81: =$J$5 -> EUR | L81: – | Q81: =$J$51 -> EUR | S81: – | X81: =$J$5 -> EUR | Z81: – | AE81: =$J$5 -> EUR | AG81: –
B82: =$B$56 -> After 15 years' experience | J82: =$J$52 -> PPS | L82: =IFERROR(L81/$Z$5,L81) -> – | Q82: =$J$52 -> PPS | S82: =IFERROR(S81/$Z$5,S81) -> – | X82: =$J$52 -> PPS | Z82: =IFERROR(Z81/$Z$5,Z81) -> – | AE82: =$J$52 -> PPS | AG82: =IFERROR(AG81/$Z$5,AG81) -> –
B83: At the top of the range | J83: EUR | L83: =IFERROR(L84/$T$5,L84) -> – | Q83: EUR | S83: =IFERROR(S84/$T$5,S84) -> – | X83: EUR | Z83: =IFERROR(Z84/$T$5,Z84) -> – | AE83: EUR | AG83: =IFERROR(AG84/$T$5,AG84) -> –
B84: =$B$59 -> At the top of the range | J84: =$J$5 -> EUR | L84: – | Q84: =$J$51 -> EUR | S84: – | X84: =$J$5 -> EUR | Z84: – | AE84: =$J$5 -> EUR | AG84: –
B85: =$B$59 -> At the top of the range | J85: =$J$52 -> PPS | L85: =IFERROR(L84/$Z$5,L84) -> – | Q85: =$J$52 -> PPS | S85: =IFERROR(S84/$Z$5,S84) -> – | X85: =$J$52 -> PPS | Z85: =IFERROR(Z84/$Z$5,Z84) -> – | AE85: =$J$52 -> PPS | AG85: =IFERROR(AG84/$Z$5,AG84) -> –
L87: ISCED 02 | Q87: ISCED 1 | X87: ISCED 24 | AE87: ISCED 34
B88: % teachers paid on this range | L88: – | Q88: – | X88: – | AE88: –
B89: Average nr of years to reach the top | L89: – | Q89: – | X89: – | AE89: –
B91: Source | J91: Decree of 21 April 2008 of the Ministry of the German-speaking Community on the revaluation of the teaching profession and yearly index (https://ostbelgienlive.be/addons/SharepointDokumentsuche/desktop/SharepointDokDetails.aspx?DokID=e57b5d2e-39ee-46dd-8385-73dd1a500780&FileID=e57b5d2e-39ee-46dd-8385-73dd1a500780).
B92: Explanatory notes | J92: –
A94: Average annual gross actual salaries of teachers in public schools | AE94: 2020/2021
B97: FALSE | C97: TRUE | D97: TRUE | J97: ISCED 02 | Q97: ISCED 1 | X97: ISCED 24 | AE97: ISCED 34
B98: Teachers aged 25-64 | J98: EUR | L98: =IFERROR(L99/$AF$5,L99) -> 45085.03 | Q98: EUR | S98: =IFERROR(S99/$AF$5,S99) -> 46530.38 | X98: EUR | Z98: =IFERROR(Z99/$AF$5,Z99) -> 47899.32 | AE98: EUR | AG98: =IFERROR(AG99/$AF$5,AG99) -> 53616.47
B99: =B98 -> Teachers aged 25-64 | J99: =$J$5 -> EUR | L99: 45085.03 | Q99: =$J$51 -> EUR | S99: 46530.38 | X99: =$J$5 -> EUR | Z99: 47899.32 | AE99: =$J$5 -> EUR | AG99: 53616.47
B100: =B99 -> Teachers aged 25-64 | J100: PPS | L100: =IFERROR(L99/$Z$5,L99) -> 38746.15847 | Q100: =$J$52 -> PPS | S100: =IFERROR(S99/$Z$5,S99) -> 39988.29495 | X100: =$J$52 -> PPS | Z100: =IFERROR(Z99/$Z$5,Z99) -> 41164.76452 | AE100: =$J$52 -> PPS | AG100: =IFERROR(AG99/$Z$5,AG99) -> 46078.09385
B101: Teachers aged 25-34 | J101: EUR | L101: =IFERROR(L102/$AF$5,L102) -> 37455.11 | Q101: EUR | S101: =IFERROR(S102/$AF$5,S102) -> 38175.23 | X101: EUR | Z101: =IFERROR(Z102/$AF$5,Z102) -> 41552.78 | AE101: EUR | AG101: =IFERROR(AG102/$AF$5,AG102) -> 43934.7
B102: =B101 -> Teachers aged 25-34 | J102: =$J$5 -> EUR | L102: 37455.11 | Q102: =$J$51 -> EUR | S102: 38175.23 | X102: =$J$5 -> EUR | Z102: 41552.78 | AE102: =$J$5 -> EUR | AG102: 43934.7
B103: =B102 -> Teachers aged 25-34 | J103: =$J$52 -> PPS | L103: =IFERROR(L102/$Z$5,L102) -> 32188.99106 | Q103: =$J$52 -> PPS | S103: =IFERROR(S102/$Z$5,S102) -> 32807.86353 | X103: =$J$52 -> PPS | Z103: =IFERROR(Z102/$Z$5,Z102) -> 35710.53627 | AE103: =$J$52 -> PPS | AG103: =IFERROR(AG102/$Z$5,AG102) -> 37757.56274
B104: Teachers aged 35-44 | J104: EUR | L104: =IFERROR(L105/$AF$5,L105) -> 43542.46 | Q104: EUR | S104: =IFERROR(S105/$AF$5,S105) -> 45707.48 | X104: EUR | Z104: =IFERROR(Z105/$AF$5,Z105) -> 48243.29 | AE104: EUR | AG104: =IFERROR(AG105/$AF$5,AG105) -> 52140.51
B105: =B104 -> Teachers aged 35-44 | J105: =$J$5 -> EUR | L105: 43542.46 | Q105: =$J$51 -> EUR | S105: 45707.48 | X105: =$J$5 -> EUR | Z105: 48243.29 | AE105: =$J$5 -> EUR | AG105: 52140.51
B106: =B105 -> Teachers aged 35-44 | J106: =$J$52 -> PPS | L106: =IFERROR(L105/$Z$5,L105) -> 37420.47095 | Q106: =$J$52 -> PPS | S106: =IFERROR(S105/$Z$5,S105) -> 39281.09316 | X106: =$J$52 -> PPS | Z106: =IFERROR(Z105/$Z$5,Z105) -> 41460.37298 | AE106: =$J$52 -> PPS | AG106: =IFERROR(AG105/$Z$5,AG105) -> 44809.65108
B107: Teachers aged 45-54 | J107: EUR | L107: =IFERROR(L108/$AF$5,L108) -> 51910.77 | Q107: EUR | S107: =IFERROR(S108/$AF$5,S108) -> 51623.59 | X107: EUR | Z107: =IFERROR(Z108/$AF$5,Z108) -> 52259.46 | AE107: EUR | AG107: =IFERROR(AG108/$AF$5,AG108) -> 58820.41
B108: =B107 -> Teachers aged 45-54 | J108: =$J$5 -> EUR | L108: 51910.77 | Q108: =$J$51 -> EUR | S108: 51623.59 | X108: =$J$5 -> EUR | Z108: 52259.46 | AE108: =$J$5 -> EUR | AG108: 58820.41
B109: =B108 -> Teachers aged 45-54 | J109: =$J$52 -> PPS | L109: =IFERROR(L108/$Z$5,L108) -> 44612.2121 | Q109: =$J$52 -> PPS | S109: =IFERROR(S108/$Z$5,S108) -> 44365.40908 | X109: =$J$52 -> PPS | Z109: =IFERROR(Z108/$Z$5,Z108) -> 44911.87693 | AE109: =$J$52 -> PPS | AG109: =IFERROR(AG108/$Z$5,AG108) -> 50550.36954
B110: Teachers aged 55-64 | J110: EUR | L110: =IFERROR(L111/$AF$5,L111) -> 55466.82 | Q110: EUR | S110: =IFERROR(S111/$AF$5,S111) -> 55119.85 | X110: EUR | Z110: =IFERROR(Z111/$AF$5,Z111) -> 56440.64 | AE110: EUR | AG110: =IFERROR(AG111/$AF$5,AG111) -> 62651.84
B111: =B110 -> Teachers aged 55-64 | J111: =$J$5 -> EUR | L111: 55466.82 | Q111: =$J$51 -> EUR | S111: 55119.85 | X111: =$J$5 -> EUR | Z111: 56440.64 | AE111: =$J$5 -> EUR | AG111: 62651.84
B112: =B111 -> Teachers aged 55-64 | J112: =$J$52 -> PPS | L112: =IFERROR(L111/$Z$5,L111) -> 47668.28807 | Q112: =$J$52 -> PPS | S112: =IFERROR(S111/$Z$5,S111) -> 47370.10141 | X112: =$J$52 -> PPS | Z112: =IFERROR(Z111/$Z$5,Z111) -> 48505.19079 | AE112: =$J$52 -> PPS | AG112: =IFERROR(AG111/$Z$5,AG111) -> 53843.1076
B115: Source | J115: Ministry of the German-speaking Community.
B116: Explanatory notes | J116: –
A119: Allowances for teachers in public schools | B119: Salary range for teachers with a higher qualification (when most prevalent) | AE119: 2020/2021
B120: Allowances related to other tasks and responsibilities | N120: 1 | U120: 2
O122: Authority level | V122: Type of financial compensation | AD122: ISCED levels
AD123: 02 | AF123: 1 | AH123: 24 | AJ123: 34
B124: Participation in school or other management tasks in addition to teaching duties | O124: Top-level authority | V124: Regular additional payments | AH124: ● | AJ124: ●
B125: Teaching more classes or hours than required by full-time contract | O125: Top-level authority | V125: % of salary | AD125: ● | AF125: ● | AH125: ● | AJ125: ●
B126: Students counselling | O126: a | V126: No payment (stat. duty) | AD126: ● | AF126: ●
B127: Engaging in extracurricular activities | O127: a | V127: a | AD127: ● | AF127: ● | AH127: ● | AJ127: ●
B128: Special tasks | O128: Top-level authority | V128: Incidental payments | AD128: ● | AF128: ● | AH128: ● | AJ128: ●
B129: Class teacher / form teacher | O129: a | V129: a | AD129: ● | AF129: ● | AH129: ● | AJ129: ●
B130: Supporting mentoring / induction programmes | O130: a | V130: a | AD130: ● | AF130: ● | AH130: ● | AJ130: ●
B131: Other | O131: a | V131: a | AD131: ● | AF131: ● | AH131: ● | AJ131: ●
O133: Explanatory notes
B134: =B124 -> Participation in school or other management tasks in addition to teaching duties | O134: Coordinating tasks at all levels are usually compensated by a reduction in teaching time (from several hours to fulltime exemption). In secondary schools, teachers can become middle managers (half-time coordinating teachers). Their teaching time is reduced and they receive a monthly salary supplement (+- EUR 318 gross).
B135: Teaching more classes or hours than required by full-time contract | O135: At all levels, teachers can be required to teach 1 to 2 hours (lessons) more than required by a full-time contract (20-28 teaching hours) without additional payment. Any additional 'extra hours' are paid depending on the statutory status of the teacher.
B136: Students counselling | O136: Secondary schools often organise career counselling. The responsible teacher gets a reduction in teaching time or becomes a counsellor when his/her teaching time is reduced at the end of his/her career (as of 55 years of age). Supervisory tasks are part of kindergarten and primary teachers duties without additional compensation. In secondary schools, educators are responsible for supervisory tasks. Most prevention programmes are led by a psycho-social services.
B137: Engaging in extracurricular activities | O137: –
B138: Special tasks | O138: Teachers and schools that supervise and support a student teacher during an internship receive a yearly supplement depending on the number of hours the student teacher spends in the school and depending on the academic year the student teacher is completing (between EUR 4 and EUR 15 per hour). Other teachers take care of younger colleagues (pedagogical and counselling tasks) when their teaching time at the end of their career is reduced (by 25%).
B139: Class teacher / form teacher | O139: –
B140: Supporting mentoring / induction programmes | O140: Some teachers work as mentors at the end of their career (as of 55 years of age) when they opt for a reduction in teaching time (by 25%). Mentoring of new kindergarten and primary school teachers is organised by a local university through peer counselling in groups led by lecturers.
B141: Other | O141: –
B143: Allowances related to qualifications, training and performance | N143: 0 | U143: 0
O145: Authority level | V145: Type of financial compensation | AD145: ISCED levels
AD146: 02 | AF146: 1 | AH146: 24 | AJ146: 34
B147: Further formal qualifications | O147: Top-level authority | V147: Progression in pay range | AD147: ● | AF147: ● | AH147: ●
B148: Successful completion of continuing professional development (CPD) activities | O148: a | V148: a | AD148: ● | AF148: ● | AH148: ● | AJ148: ●
B149: Outstanding performance | O149: a | V149: a | AD149: ● | AF149: ● | AH149: ● | AJ149: ●
B150: Other | O150: a | V150: a | AD150: ● | AF150: ● | AH150: ● | AJ150: ●
O152: Explanatory notes
B153: =B147 -> Further formal qualifications | O153: Bachelor's degree is required for pre-primary, primary and lower secondary school teachers. If these teachers complete in addition a master's degree, they receive the same salary as a teacher in upper secondary school teachers who must have a master's degree.
B154: Successful completion of continuing professional development (CPD) activities | O154: –
B155: Outstanding performance | O155: –
B156: Other | O156: –
B158: Allowances related to teaching conditions | N158: 0 | U158: 0
O160: Authority level | V160: Type of financial compensation | AD160: ISCED levels
AD161: 02 | AF161: 1 | AH161: 24 | AJ161: 34
B162: Teaching students with special educational needs | O162: a | V162: a | AD162: ● | AF162: ● | AH162: ● | AJ162: ●
B163: Teaching in a disadvantaged, remote or high cost area | O163: a | V163: a | AD163: ● | AF163: ● | AH163: ● | AJ163: ●
B164: Other | O164: a | V164: a | AD164: ● | AF164: ● | AH164: ● | AJ164: ●
O166: Explanatory notes
B167: =B162 -> Teaching students with special educational needs | O167: –
B168: Teaching in a disadvantaged, remote or high cost area | O168: –
B169: Other | O169: –
C171: Other criteria
O173: Authority level | V173: Type of financial compensation | AD173: ISCED levels
AD174: 02 | AF174: 1 | AH174: 24 | AJ174: 34
B175: Residence allowance | O175: a | V175: a | AD175: ● | AF175: ● | AH175: ● | AJ175: ●
B176: Family status | O176: a | V176: a | AD176: ● | AF176: ● | AH176: ● | AJ176: ●
B177: Other | O177: a | V177: a | AD177: ● | AF177: ● | AH177: ● | AJ177: ●
O179: Explanatory notes
B180: =B175 -> Residence allowance | O180: –
B181: Family status | O181: –
B182: Other | O182: –
B184: Source | O184: Royal decree of 22/03/1969 laying down the regulations of the Community for education staff (https://ostbelgienlive.be/addons/SharepointDokumentsuche/desktop/SharepointDokDetails.aspx?DokID=a74a7b51-4b84-4275-b8e1-f7fa06930a51&FileID=a74a7b51-4b84-4275-b8e1-f7fa06930a51); Decree of 14/12/1998 establishing the status of subsidised staff in the subsidised free education system and the subsidised free psycho-medico-social centre (https://ostbelgienlive.be/addons/SharepointDokumentsuche/desktop/SharepointDokDetails.aspx?DokID=04ada7f3-c8e8-4f6f-81b0-0ec6a38e63f4&FileID=04ada7f3-c8e8-4f6f-81b0-0ec6a38e63f4 ); Decree of 29/03/2004 establishing the status of subsidised staff of subsidised official education and subsidised official psycho-medical-social centres (https://ostbelgienlive.be/addons/SharepointDokumentsuche/desktop/SharepointDokDetails.aspx?DokID=c3778356-03c9-4fcc-b3b6-cad718cd8e4c&FileID=c3778356-03c9-4fcc-b3b6-cad718cd8e4c); Royal decree of 15/04/1958 concerning the salary regime of the teaching and scientific staff and assimilated staff of the Ministry of Education (https://ostbelgienlive.be/addons/SharepointDokumentsuche/desktop/SharepointDokDetails.aspx?DokID=227c9db1-1796-48e9-9373-f813ad43681f&FileID=227c9db1-1796-48e9-9373-f813ad43681f) Decree of 6/06/2005 on educational measures (https://ostbelgienlive.be/addons/SharepointDokumentsuche/desktop/SharepointDokDetails.aspx?DokID=6626b580-b1b1-43fc-9ae5-ce6e8f732fbc&FileID=6626b580-b1b1-43fc-9ae5-ce6e8f732fbc); Royal decree nr 297 of 31/03/1984 on posts, salaries, wage subsidies and leave for reduced services in education and human resources management centres (https://ostbelgienlive.be/addons/SharepointDokumentsuche/desktop/SharepointDokDetails.aspx?DokID=d9772988-34d0-491b-99e0-0619a7f88cdb&FileID=d9772988-34d0-491b-99e0-0619a7f88cdb); Decree of 25/06/2007 on educational measures (https://ostbelgienlive.be/addons/SharepointDokumentsuche/desktop/SharepointDokDetails.aspx?DokID=6038d8ff-f47d-4ec2-999f-cf6f0eb497c2&FileID=6038d8ff-f47d-4ec2-999f-cf6f0eb497c2).
A186: 2. School heads
A188: Annual gross statutory salaries of school heads in public schools | AE188: 2020/2021
J189: ISCED 02 | Q189: ISCED 1 | X189: ISCED 24 | AE189: ISCED 34
B190: Authority level determining the statutory salaries of school heads | J190: Top-level authority
J192: ISCED 02 | Q192: ISCED 1 | X192: ISCED 24 | AE192: ISCED 34
B193: Minimum qualification to become a school head | J193: Preprimary teacher bachelor's degree (ISCED 6) | Q193: Primary teacher bachelor's degree (ISCED 6) | X193: Bachelor's degree (ISCED 6) | AE193: Bachelor's degree (ISCED 6)
J194: + special training for school head (to be accomplished in the first 5 years of duty as a school head)
B196: Single or lowest salary range (when more than one)
J198: ISCED 02 | Q198: ISCED 1 | X198: ISCED 24 | AE198: ISCED 34
B199: Type of school | J199: All schools | Q199: All schools | X199: Schools with less than 600 pupils | AE199: Schools with less than 600 pupils
B200: FALSE | C200: TRUE | D200: TRUE
B201: Minimum salary | J201: EUR | L201: =IFERROR(L202/$T$5,L202) -> 43104.97 | Q201: EUR | S201: =IFERROR(S202/$T$5,S202) -> 43104.97 | X201: EUR | Z201: =IFERROR(Z202/$T$5,Z202) -> 83567.24 | AE201: EUR | AG201: =IFERROR(AG202/$T$5,AG202) -> 83567.24
B202: =B201 -> Minimum salary | J202: =$J$5 -> EUR | L202: 43104.97 | Q202: =$J$5 -> EUR | S202: 43104.97 | X202: =$J$51 -> EUR | Z202: 83567.24 | AE202: =$J$51 -> EUR | AG202: 83567.24
B203: =B202 -> Minimum salary | J203: =$J$52 -> PPS | L203: =IFERROR(L202/$Z$5,L202) -> 37044.49123 | Q203: =$J$52 -> PPS | S203: =IFERROR(S202/$Z$5,S202) -> 37044.49123 | X203: =$J$52 -> PPS | Z203: =IFERROR(Z202/$Z$5,Z202) -> 71817.84118 | AE203: =$J$52 -> PPS | AG203: =IFERROR(AG202/$Z$5,AG202) -> 71817.84118
B204: Maximum salary | J204: EUR | L204: =IFERROR(L205/$T$5,L205) -> 71221.57 | Q204: EUR | S204: =IFERROR(S205/$T$5,S205) -> 71221.57 | X204: EUR | Z204: =IFERROR(Z205/$T$5,Z205) -> 91270.86 | AE204: EUR | AG204: =IFERROR(AG205/$T$5,AG205) -> 91270.86
B205: =B204 -> Maximum salary | J205: =$J$5 -> EUR | L205: 71221.57 | Q205: =$J$5 -> EUR | S205: 71221.57 | X205: =$J$51 -> EUR | Z205: 91270.86 | AE205: =$J$51 -> EUR | AG205: 91270.86
B206: =B205 -> Maximum salary | J206: =$J$52 -> PPS | L206: =IFERROR(L205/$Z$5,L205) -> 61207.94947 | Q206: =$J$52 -> PPS | S206: =IFERROR(S205/$Z$5,S205) -> 61207.94947 | X206: =$J$52 -> PPS | Z206: =IFERROR(Z205/$Z$5,Z205) -> 78438.34651 | AE206: =$J$52 -> PPS | AG206: =IFERROR(AG205/$Z$5,AG205) -> 78438.34651
B207: Criteria for progression in this salary range | J207: Linear | Q207: Linear | X207: Linear + allowance for ancienty + number of pupils | AE207: Linear + allowance for ancienty + number of pupils
B208: % school heads paid on this range | J208: 1 | Q208: 1 | X208: m | AE208: m
B210: Highest salary range
J212: ISCED 02 | Q212: ISCED 1 | X212: ISCED 24 | AE212: ISCED 34
B213: Type of school | J213: a | Q213: a | X213: Schools with more than 600 pupils | AE213: Schools with more than 600 pupils
B214: FALSE | C214: TRUE | D214: TRUE
B215: Minimum salary | J215: EUR | L215: =IF(IFERROR(L216/$T$5,L216)=0,"–",IFERROR(L216/$T$5,L216)) -> a | Q215: EUR | S215: =IF(IFERROR(S216/$T$5,S216)=0,"–",IFERROR(S216/$T$5,S216)) -> a | X215: EUR | Z215: =IF(IFERROR(Z216/$T$5,Z216)=0,"–",IFERROR(Z216/$T$5,Z216)) -> 86551.24 | AE215: EUR | AG215: =IF(IFERROR(AG216/$T$5,AG216)=0,"–",IFERROR(AG216/$T$5,AG216)) -> 86551.24
B216: =B215 -> Minimum salary | J216: =$J$5 -> EUR | L216: a | Q216: =$J$5 -> EUR | S216: a | X216: =$J$51 -> EUR | Z216: 86551.24 | AE216: =$J$51 -> EUR | AG216: 86551.24
B217: =B216 -> Minimum salary | J217: =$J$52 -> PPS | L217: =IFERROR(L216/$Z$5,L216) -> a | Q217: =$J$52 -> PPS | S217: =IFERROR(S216/$Z$5,S216) -> a | X217: =$J$52 -> PPS | Z217: =IFERROR(Z216/$Z$5,Z216) -> 74382.29632 | AE217: =$J$52 -> PPS | AG217: =IFERROR(AG216/$Z$5,AG216) -> 74382.29632
B218: Maximum salary | J218: EUR | L218: =IFERROR(L219/$T$5,L219) -> a | Q218: EUR | S218: =IFERROR(S219/$T$5,S219) -> a | X218: EUR | Z218: =IFERROR(Z219/$T$5,Z219) -> 94254.86 | AE218: EUR | AG218: =IFERROR(AG219/$T$5,AG219) -> 94254.86
B219: =B218 -> Maximum salary | J219: =$J$5 -> EUR | L219: a | Q219: =$J$5 -> EUR | S219: a | X219: =$J$51 -> EUR | Z219: 94254.86 | AE219: =$J$51 -> EUR | AG219: 94254.86
B220: =B219 -> Maximum salary | J220: =$J$52 -> PPS | L220: =IFERROR(L219/$Z$5,L219) -> a | Q220: =$J$52 -> PPS | S220: =IFERROR(S219/$Z$5,S219) -> a | X220: =$J$52 -> PPS | Z220: =IFERROR(Z219/$Z$5,Z219) -> 81002.80165 | AE220: =$J$52 -> PPS | AG220: =IFERROR(AG219/$Z$5,AG219) -> 81002.80165
B221: Criteria for progression in this salary range | J221: – | Q221: – | X221: Linear + allowance for seniority | AE221: Linear + allowance for seniority
B222: % school heads paid on this range | J222: a | Q222: a | X222: m | AE222: m
B224: Most prevalent range (when none of the above)
J226: ISCED 02 | Q226: ISCED 1 | X226: ISCED 24 | AE226: ISCED 34
B227: Type of school | J227: – | Q227: – | X227: – | AE227: –
B228: FALSE | C228: TRUE | D228: FALSE
B229: Minimum salary | J229: EUR | L229: =IFERROR(L230/$T$5,L230) -> – | Q229: EUR | S229: =IFERROR(S230/$T$5,S230) -> – | X229: EUR | Z229: =IFERROR(Z230/$T$5,Z230) -> – | AE229: EUR | AG229: =IFERROR(AG230/$T$5,AG230) -> –
B230: =B229 -> Minimum salary | J230: =$J$5 -> EUR | L230: – | Q230: =$J$5 -> EUR | S230: – | X230: =$J$51 -> EUR | Z230: – | AE230: =$J$51 -> EUR | AG230: –
B231: =B230 -> Minimum salary | J231: =$J$52 -> PPS | L231: =IFERROR(L230/$Z$5,L230) -> – | Q231: =$J$52 -> PPS | S231: =IFERROR(S230/$Z$5,S230) -> – | X231: =$J$52 -> PPS | Z231: =IFERROR(Z230/$Z$5,Z230) -> – | AE231: =$J$52 -> PPS | AG231: =IFERROR(AG230/$Z$5,AG230) -> –
B232: Maximum salary | J232: EUR | L232: =IFERROR(L233/$T$5,L233) -> – | Q232: EUR | S232: =IFERROR(S233/$T$5,S233) -> – | X232: EUR | Z232: =IFERROR(Z233/$T$5,Z233) -> – | AE232: EUR | AG232: =IFERROR(AG233/$T$5,AG233) -> –
B233: =B232 -> Maximum salary | J233: =$J$5 -> EUR | L233: – | Q233: =$J$5 -> EUR | S233: – | X233: =$J$51 -> EUR | Z233: – | AE233: =$J$51 -> EUR | AG233: –
B234: =B233 -> Maximum salary | J234: =$J$52 -> PPS | L234: =IFERROR(L233/$Z$5,L233) -> – | Q234: =$J$52 -> PPS | S234: =IFERROR(S233/$Z$5,S233) -> – | X234: =$J$52 -> PPS | Z234: =IFERROR(Z233/$Z$5,Z233) -> – | AE234: =$J$52 -> PPS | AG234: =IFERROR(AG233/$Z$5,AG233) -> –
B235: Criteria for progression in this salary range | J235: – | Q235: – | X235: – | AE235: –
B236: % school heads paid on this range | J236: – | Q236: – | X236: – | AE236: –
B239: Source | J239: Royal decree of 27/06/1974 fixing the salary scales applicable as from 1/04/1972 to members of the managerial, teaching, pedagogical and paramedical staff of State educational institutions, to members of the inspection service responsible for the inspection of such establishments, to members of the inspection service for distance education and subsidised primary education, and fixing the salary scales for the staff of State psycho-medical and social centres (https://ostbelgienlive.be/addons/SharepointDokumentsuche/desktop/SharepointDokDetails.aspx?DokID=d7c8ce20-7884-4a36-aa2c-7c86fe0311e7&FileID=d7c8ce20-7884-4a36-aa2c-7c86fe0311e7) Royal decree of 22/03/1969 laying down the status of civil servants applicable to members of the teaching profession (https://ostbelgienlive.be/addons/SharepointDokumentsuche/desktop/SharepointDokDetails.aspx?DokID=a74a7b51-4b84-4275-b8e1-f7fa06930a51&FileID=a74a7b51-4b84-4275-b8e1-f7fa06930a51); Decree of 14/12/1998 establishing the status of subsidised staff in the subsidised free education system and the subsidised free psycho-medico-social centre (https://ostbelgienlive.be/addons/SharepointDokumentsuche/desktop/SharepointDokDetails.aspx?DokID=04ada7f3-c8e8-4f6f-81b0-0ec6a38e63f4&FileID=04ada7f3-c8e8-4f6f-81b0-0ec6a38e63f4); Decree of 29/03/2004 laying down the status of subsidised staff in subsidised official education and subsidised official psycho-medical-social centres (https://ostbelgienlive.be/addons/SharepointDokumentsuche/desktop/SharepointDokDetails.aspx?DokID=c3778356-03c9-4fcc-b3b6-cad718cd8e4c&FileID=c3778356-03c9-4fcc-b3b6-cad718cd8e4c).
B240: Explanatory notes | J240: –
A242: Average annual gross actual salaries of school heads in public schools | AE242: 2020/2021
B245: FALSE | C245: TRUE | D245: FALSE | J245: ISCED 02 | Q245: ISCED 1 | X245: ISCED 24 | AE245: ISCED 34
B246: School heads aged 25-64 | J246: EUR | L246: =IFERROR(L247/$AF$5,L247) -> m | Q246: EUR | S246: =IFERROR(S247/$AF$5,S247) -> m | X246: EUR | Z246: =IFERROR(Z247/$AF$5,Z247) -> m | AE246: EUR | AG246: =IFERROR(AG247/$AF$5,AG247) -> m
B247: =B246 -> School heads aged 25-64 | J247: =$J$5 -> EUR | L247: m | Q247: =$J$51 -> EUR | S247: m | X247: =$J$51 -> EUR | Z247: m | AE247: =$J$51 -> EUR | AG247: m
B248: =B247 -> School heads aged 25-64 | J248: PPS | L248: =IFERROR(L247/$Z$5,L247) -> m | Q248: =$J$52 -> PPS | S248: =IFERROR(S247/$Z$5,S247) -> m | X248: =$J$52 -> PPS | Z248: =IFERROR(Z247/$Z$5,Z247) -> m | AE248: =$J$52 -> PPS | AG248: =IFERROR(AG247/$Z$5,AG247) -> m
B249: School heads aged 25-34 | J249: EUR | L249: =IFERROR(L250/$AF$5,L250) -> m | Q249: EUR | S249: =IFERROR(S250/$AF$5,S250) -> m | X249: EUR | Z249: =IFERROR(Z250/$AF$5,Z250) -> m | AE249: EUR | AG249: =IFERROR(AG250/$AF$5,AG250) -> m
B250: =B249 -> School heads aged 25-34 | J250: =$J$5 -> EUR | L250: m | Q250: =$J$5 -> EUR | S250: m | X250: =$J$51 -> EUR | Z250: m | AE250: =$J$51 -> EUR | AG250: m
B251: =B250 -> School heads aged 25-34 | J251: =$J$52 -> PPS | L251: =IFERROR(L250/$Z$5,L250) -> m | Q251: =$J$52 -> PPS | S251: =IFERROR(S250/$Z$5,S250) -> m | X251: =$J$52 -> PPS | Z251: =IFERROR(Z250/$Z$5,Z250) -> m | AE251: =$J$52 -> PPS | AG251: =IFERROR(AG250/$Z$5,AG250) -> m
B252: School heads aged 35-44 | J252: EUR | L252: =IFERROR(L253/$AF$5,L253) -> m | Q252: EUR | S252: =IFERROR(S253/$AF$5,S253) -> m | X252: EUR | Z252: =IFERROR(Z253/$AF$5,Z253) -> m | AE252: EUR | AG252: =IFERROR(AG253/$AF$5,AG253) -> m
B253: =B252 -> School heads aged 35-44 | J253: =$J$5 -> EUR | L253: m | Q253: =$J$5 -> EUR | S253: m | X253: =$J$51 -> EUR | Z253: m | AE253: =$J$51 -> EUR | AG253: m
B254: =B253 -> School heads aged 35-44 | J254: =$J$52 -> PPS | L254: =IFERROR(L253/$Z$5,L253) -> m | Q254: =$J$52 -> PPS | S254: =IFERROR(S253/$Z$5,S253) -> m | X254: =$J$52 -> PPS | Z254: =IFERROR(Z253/$Z$5,Z253) -> m | AE254: =$J$52 -> PPS | AG254: =IFERROR(AG253/$Z$5,AG253) -> m
B255: School heads aged 45-54 | J255: EUR | L255: =IFERROR(L256/$AF$5,L256) -> m | Q255: EUR | S255: =IFERROR(S256/$AF$5,S256) -> m | X255: EUR | Z255: =IFERROR(Z256/$AF$5,Z256) -> m | AE255: EUR | AG255: =IFERROR(AG256/$AF$5,AG256) -> m
B256: =B255 -> School heads aged 45-54 | J256: =$J$5 -> EUR | L256: m | Q256: =$J$5 -> EUR | S256: m | X256: =$J$51 -> EUR | Z256: m | AE256: =$J$51 -> EUR | AG256: m
... 60 more rows

Sheet BE_fr
A1: French Community of Belgium | AK1: 2020/2021
B3: a | C3: not applicable | J3: m | K3: not available
B5: National currency: | J5: EUR | T5: 1 | Z5: 1.1636 | AF5: 1
B7: Contents
D8: =$A$37 -> 1. Teachers
D9: =$A$39 -> Annual gross statutory salaries of teachers in public schools
F11: =$B$43 -> Salary range for teachers with the minimum qualification
F12: =$B$67 -> Salary range for teachers with a higher qualification (when most prevalent)
D13: =$A$94 -> Average annual gross actual salaries of teachers in public schools
D14: =$A$119 -> Allowances for teachers in public schools
F16: =$B$120 -> Allowances related to other tasks and responsibilities
F17: =$B$143 -> Allowances related to qualifications, training and performance
F18: =$B$158 -> Allowances related to teaching conditions
F19: =$C$171 -> Other criteria
D20: =$A$186 -> 2. School heads
D21: =$A$188 -> Annual gross statutory salaries of school heads in public schools
F23: =$B$195 -> Single or lowest salary range (when more than one)
F24: =$B$209 -> Highest salary range
F25: =$B$223 -> Most prevalent range (when none of the above)
D27: =$A$241 -> Average annual gross actual salaries of school heads in public schools
D29: =$A$266 -> Allowances for school heads in public schools
F31: =$B$267 -> Allowances related to other tasks and responsibilities
F32: =$B$290 -> Allowances related to qualifications, training and performance
F33: =$B$305 -> Allowances related to working conditions
F34: =$B$318 -> Other criteria
A37: 1. Teachers
A39: Annual gross statutory salaries of teachers in public schools | AE39: 2020/2021
J40: ISCED 02 | Q40: ISCED 1 | X40: ISCED 24 | AE40: ISCED 34
B41: Authority level determining the statutory salaries of teachers | J41: Top-level authority
B43: Salary range for teachers with the minimum qualification
J45: ISCED 02 | Q45: ISCED 1 | X45: ISCED 24 | AE45: ISCED 34
B46: Minimum qualification to enter the teaching profession | J46: Pre-primary teacher bachelor's degree (ISCED 6) | Q46: Primary teacher bachelor's degree (ISCED 6) | X46: Bachelor's degree (ISCED 6) + lower secondary teaching diploma (AESI: 'agrégation de l’enseignement secondaire inférieur') | AE46: Bachelor's degree (ISCED 6) + lower secondary teaching diploma (AESI: 'agrégation de l’enseignement secondaire inférieur')
B49: FALSE | C49: TRUE | D49: TRUE | J49: ISCED 02 | Q49: ISCED 1 | X49: ISCED 24 | AE49: ISCED 34
B50: Starting salary | J50: EUR | L50: =IFERROR(L51/$T$5,L51) -> 32736.61 | Q50: EUR | S50: =IFERROR(S51/$T$5,S51) -> 32736.61 | X50: EUR | Z50: =IFERROR(Z51/$T$5,Z51) -> 32736.61 | AE50: EUR | AG50: =IFERROR(AG51/$T$5,AG51) -> 38277.27
B51: =$B$50 -> Starting salary | J51: =$J$5 -> EUR | L51: 32736.61 | Q51: =$J$5 -> EUR | S51: 32736.61 | X51: =$J$5 -> EUR | Z51: 32736.61 | AE51: =$J$5 -> EUR | AG51: 38277.27
B52: =$B$50 -> Starting salary | J52: PPS | L52: =IFERROR(L51/$Z$5,L51) -> 28133.9034 | Q52: =$J$52 -> PPS | S52: =IFERROR(S51/$Z$5,S51) -> 28133.9034 | X52: =$J$52 -> PPS | Z52: =IFERROR(Z51/$Z$5,Z51) -> 28133.9034 | AE52: =$J$52 -> PPS | AG52: =IFERROR(AG51/$Z$5,AG51) -> 32895.55689
B53: After 10 years' experience | J53: EUR | L53: =IFERROR(L54/$T$5,L54) -> 40907.5 | Q53: EUR | S53: =IFERROR(S54/$T$5,S54) -> 40907.5 | X53: EUR | Z53: =IFERROR(Z54/$T$5,Z54) -> 40907.5 | AE53: EUR | AG53: =IFERROR(AG54/$T$5,AG54) -> 46544.33
B54: =$B$53 -> After 10 years' experience | J54: =$J$5 -> EUR | L54: 40907.5 | Q54: =$J$5 -> EUR | S54: 40907.5 | X54: =$J$5 -> EUR | Z54: 40907.5 | AE54: =$J$5 -> EUR | AG54: 46544.33
B55: =$B$53 -> After 10 years' experience | J55: =$J$52 -> PPS | L55: =IFERROR(L54/$Z$5,L54) -> 35155.98144 | Q55: =$J$52 -> PPS | S55: =IFERROR(S54/$Z$5,S54) -> 35155.98144 | X55: =$J$52 -> PPS | Z55: =IFERROR(Z54/$Z$5,Z54) -> 35155.98144 | AE55: =$J$52 -> PPS | AG55: =IFERROR(AG54/$Z$5,AG54) -> 40000.2836
B56: After 15 years' experience | J56: EUR | L56: =IFERROR(L57/$T$5,L57) -> 46043.08 | Q56: EUR | S56: =IFERROR(S57/$T$5,S57) -> 46043.08 | X56: EUR | Z56: =IFERROR(Z57/$T$5,Z57) -> 46043.08 | AE56: EUR | AG56: =IFERROR(AG57/$T$5,AG57) -> 51680.08
B57: =$B$56 -> After 15 years' experience | J57: =$J$5 -> EUR | L57: 46043.08 | Q57: =$J$5 -> EUR | S57: 46043.08 | X57: =$J$5 -> EUR | Z57: 46043.08 | AE57: =$J$5 -> EUR | AG57: 51680.08
B58: =$B$56 -> After 15 years' experience | J58: =$J$52 -> PPS | L58: =IFERROR(L57/$Z$5,L57) -> 39569.50842 | Q58: =$J$52 -> PPS | S58: =IFERROR(S57/$Z$5,S57) -> 39569.50842 | X58: =$J$52 -> PPS | Z58: =IFERROR(Z57/$Z$5,Z57) -> 39569.50842 | AE58: =$J$52 -> PPS | AG58: =IFERROR(AG57/$Z$5,AG57) -> 44413.95669
B59: At the top of the range | J59: EUR | L59: =IFERROR(L60/$T$5,L60) -> 56314.24 | Q59: EUR | S59: =IFERROR(S60/$T$5,S60) -> 56314.24 | X59: EUR | Z59: =IFERROR(Z60/$T$5,Z60) -> 56314.24 | AE59: EUR | AG59: =IFERROR(AG60/$T$5,AG60) -> 61951.58
B60: =$B$59 -> At the top of the range | J60: =$J$5 -> EUR | L60: 56314.24 | Q60: =$J$5 -> EUR | S60: 56314.24 | X60: =$J$5 -> EUR | Z60: 56314.24 | AE60: =$J$5 -> EUR | AG60: 61951.58
B61: =$B$59 -> At the top of the range | J61: =$J$52 -> PPS | L61: =IFERROR(L60/$Z$5,L60) -> 48396.56239 | Q61: =$J$52 -> PPS | S61: =IFERROR(S60/$Z$5,S60) -> 48396.56239 | X61: =$J$52 -> PPS | Z61: =IFERROR(Z60/$Z$5,Z60) -> 48396.56239 | AE61: =$J$52 -> PPS | AG61: =IFERROR(AG60/$Z$5,AG60) -> 53241.30285
L63: ISCED 02 | Q63: ISCED 1 | X63: ISCED 24 | AE63: ISCED 34
B64: % teachers paid on this range | L64: 0.9806 | Q64: 0.9072 | X64: 0.8277 | AE64: 0.0621
B65: Average nr of years to reach the top | L65: 27 | Q65: 27 | X65: 27 | AE65: 27
B67: Salary range for teachers with a higher qualification (when most prevalent)
J69: ISCED 02 | Q69: ISCED 1 | X69: ISCED 24 | AE69: ISCED 34
B70: Minimum qualification to enter the teaching profession | J70: – | Q70: – | X70: – | AE70: Teacher master's degree (ISCED 7) or master's degree + upper secondary teaching diploma (AESS: 'agrégation de l’enseignement secondaire supérieur')
B73: FALSE | C73: TRUE | D73: TRUE | J73: ISCED 02 | Q73: ISCED 1 | X73: ISCED 24 | AE73: ISCED 34
B74: Starting salary | J74: EUR | L74: =IFERROR(L75/$T$5,L75) -> a | Q74: EUR | S74: =IFERROR(S75/$T$5,S75) -> a | X74: EUR | Z74: =IFERROR(Z75/$T$5,Z75) -> a | AE74: EUR | AG74: =IFERROR(AG75/$T$5,AG75) -> 40699
B75: =$B$50 -> Starting salary | J75: =$J$5 -> EUR | L75: a | Q75: =$J$51 -> EUR | S75: a | X75: =$J$5 -> EUR | Z75: a | AE75: =$J$5 -> EUR | AG75: 40699
B76: =$B$50 -> Starting salary | J76: PPS | L76: =IFERROR(L75/$Z$5,L75) -> a | Q76: =$J$52 -> PPS | S76: =IFERROR(S75/$Z$5,S75) -> a | X76: =$J$52 -> PPS | Z76: =IFERROR(Z75/$Z$5,Z75) -> a | AE76: =$J$52 -> PPS | AG76: =IFERROR(AG75/$Z$5,AG75) -> 34976.79615
B77: After 10 years' experience | J77: EUR | L77: =IFERROR(L78/$T$5,L78) -> a | Q77: EUR | S77: =IFERROR(S78/$T$5,S78) -> a | X77: EUR | Z77: =IFERROR(Z78/$T$5,Z78) -> a | AE77: EUR | AG77: =IFERROR(AG78/$T$5,AG78) -> 51847.08
B78: =$B$53 -> After 10 years' experience | J78: =$J$5 -> EUR | L78: a | Q78: =$J$51 -> EUR | S78: a | X78: =$J$5 -> EUR | Z78: a | AE78: =$J$5 -> EUR | AG78: 51847.08
B79: =$B$53 -> After 10 years' experience | J79: =$J$52 -> PPS | L79: =IFERROR(L78/$Z$5,L78) -> a | Q79: =$J$52 -> PPS | S79: =IFERROR(S78/$Z$5,S78) -> a | X79: =$J$52 -> PPS | Z79: =IFERROR(Z78/$Z$5,Z78) -> a | AE79: =$J$52 -> PPS | AG79: =IFERROR(AG78/$Z$5,AG78) -> 44557.4768
B80: After 15 years' experience | J80: EUR | L80: =IFERROR(L81/$T$5,L81) -> a | Q80: EUR | S80: =IFERROR(S81/$T$5,S81) -> a | X80: EUR | Z80: =IFERROR(Z81/$T$5,Z81) -> a | AE80: EUR | AG80: =IFERROR(AG81/$T$5,AG81) -> 59112.1
B81: =$B$56 -> After 15 years' experience | J81: =$J$5 -> EUR | L81: a | Q81: =$J$51 -> EUR | S81: a | X81: =$J$5 -> EUR | Z81: a | AE81: =$J$5 -> EUR | AG81: 59112.1
B82: =$B$56 -> After 15 years' experience | J82: =$J$52 -> PPS | L82: =IFERROR(L81/$Z$5,L81) -> a | Q82: =$J$52 -> PPS | S82: =IFERROR(S81/$Z$5,S81) -> a | X82: =$J$52 -> PPS | Z82: =IFERROR(Z81/$Z$5,Z81) -> a | AE82: =$J$52 -> PPS | AG82: =IFERROR(AG81/$Z$5,AG81) -> 50801.04847
B83: At the top of the range | J83: EUR | L83: =IFERROR(L84/$T$5,L84) -> a | Q83: EUR | S83: =IFERROR(S84/$T$5,S84) -> a | X83: EUR | Z83: =IFERROR(Z84/$T$5,Z84) -> a | AE83: EUR | AG83: =IFERROR(AG84/$T$5,AG84) -> 71220.47
B84: =$B$59 -> At the top of the range | J84: =$J$5 -> EUR | L84: a | Q84: =$J$51 -> EUR | S84: a | X84: =$J$5 -> EUR | Z84: a | AE84: =$J$5 -> EUR | AG84: 71220.47
B85: =$B$59 -> At the top of the range | J85: =$J$52 -> PPS | L85: =IFERROR(L84/$Z$5,L84) -> a | Q85: =$J$52 -> PPS | S85: =IFERROR(S84/$Z$5,S84) -> a | X85: =$J$52 -> PPS | Z85: =IFERROR(Z84/$Z$5,Z84) -> a | AE85: =$J$52 -> PPS | AG85: =IFERROR(AG84/$Z$5,AG84) -> 61207.00413
L87: ISCED 02 | Q87: ISCED 1 | X87: ISCED 24 | AE87: ISCED 34
B88: % teachers paid on this range | L88: a | Q88: a | X88: a | AE88: 0.7975
B89: Average nr of years to reach the top | L89: a | Q89: a | X89: a | AE89: 25
B91: Source | J91: Legal framework for salary scale of the Ministry of the French Community (http://www.enseignement.be/index.php?page=24891&navi=2106).
B92: Explanatory notes | J92: Data refers to the most representative salary scale by ISCED level.
A94: Average annual gross actual salaries of teachers in public schools | AE94: 2020/2021
B97: FALSE | C97: TRUE | D97: TRUE | J97: ISCED 02 | Q97: ISCED 1 | X97: ISCED 24 | AE97: ISCED 34
B98: Teachers aged 25-64 | J98: EUR | L98: =IFERROR(L99/$AF$5,L99) -> 46540.25306 | Q98: EUR | S98: =IFERROR(S99/$AF$5,S99) -> 45405.60918 | X98: EUR | Z98: =IFERROR(Z99/$AF$5,Z99) -> 44494.28184 | AE98: EUR | AG98: =IFERROR(AG99/$AF$5,AG99) -> 55936.90818
B99: =B98 -> Teachers aged 25-64 | J99: =$J$5 -> EUR | L99: 46540.25306 | Q99: =$J$51 -> EUR | S99: 45405.60918 | X99: =$J$5 -> EUR | Z99: 44494.28184 | AE99: =$J$5 -> EUR | AG99: 55936.90818
B100: =B99 -> Teachers aged 25-64 | J100: PPS | L100: =IFERROR(L99/$Z$5,L99) -> 39996.77987 | Q100: =$J$52 -> PPS | S100: =IFERROR(S99/$Z$5,S99) -> 39021.66482 | X100: =$J$52 -> PPS | Z100: =IFERROR(Z99/$Z$5,Z99) -> 38238.46841 | AE100: =$J$52 -> PPS | AG100: =IFERROR(AG99/$Z$5,AG99) -> 48072.28272
B101: Teachers aged 25-34 | J101: EUR | L101: =IFERROR(L102/$AF$5,L102) -> 37100.05 | Q101: EUR | S101: =IFERROR(S102/$AF$5,S102) -> 37432.47 | X101: EUR | Z101: =IFERROR(Z102/$AF$5,Z102) -> 37721.35 | AE101: EUR | AG101: =IFERROR(AG102/$AF$5,AG102) -> 44866.39
B102: =B101 -> Teachers aged 25-34 | J102: =$J$5 -> EUR | L102: 37100.05 | Q102: =$J$51 -> EUR | S102: 37432.47 | X102: =$J$5 -> EUR | Z102: 37721.35 | AE102: =$J$5 -> EUR | AG102: 44866.39
B103: =B102 -> Teachers aged 25-34 | J103: =$J$52 -> PPS | L103: =IFERROR(L102/$Z$5,L102) -> 31883.85184 | Q103: =$J$52 -> PPS | S103: =IFERROR(S102/$Z$5,S102) -> 32169.5342 | X103: =$J$52 -> PPS | Z103: =IFERROR(Z102/$Z$5,Z102) -> 32417.79821 | AE103: =$J$52 -> PPS | AG103: =IFERROR(AG102/$Z$5,AG102) -> 38558.25885
B104: Teachers aged 35-44 | J104: EUR | L104: =IFERROR(L105/$AF$5,L105) -> 43848.06 | Q104: EUR | S104: =IFERROR(S105/$AF$5,S105) -> 44560.96 | X104: EUR | Z104: =IFERROR(Z105/$AF$5,Z105) -> 44447.7 | AE104: EUR | AG104: =IFERROR(AG105/$AF$5,AG105) -> 53222.94
B105: =B104 -> Teachers aged 35-44 | J105: =$J$5 -> EUR | L105: 43848.06 | Q105: =$J$51 -> EUR | S105: 44560.96 | X105: =$J$5 -> EUR | Z105: 44447.7 | AE105: =$J$5 -> EUR | AG105: 53222.94
B106: =B105 -> Teachers aged 35-44 | J106: =$J$52 -> PPS | L106: =IFERROR(L105/$Z$5,L105) -> 37683.10416 | Q106: =$J$52 -> PPS | S106: =IFERROR(S105/$Z$5,S105) -> 38295.77174 | X106: =$J$52 -> PPS | Z106: =IFERROR(Z105/$Z$5,Z105) -> 38198.43589 | AE106: =$J$52 -> PPS | AG106: =IFERROR(AG105/$Z$5,AG105) -> 45739.89343
B107: Teachers aged 45-54 | J107: EUR | L107: =IFERROR(L108/$AF$5,L108) -> 51644.66 | Q107: EUR | S107: =IFERROR(S108/$AF$5,S108) -> 51785.46 | X107: EUR | Z107: =IFERROR(Z108/$AF$5,Z108) -> 50172.03 | AE107: EUR | AG107: =IFERROR(AG108/$AF$5,AG108) -> 60524.73
B108: =B107 -> Teachers aged 45-54 | J108: =$J$5 -> EUR | L108: 51644.66 | Q108: =$J$51 -> EUR | S108: 51785.46 | X108: =$J$5 -> EUR | Z108: 50172.03 | AE108: =$J$5 -> EUR | AG108: 60524.73
B109: =B108 -> Teachers aged 45-54 | J109: =$J$52 -> PPS | L109: =IFERROR(L108/$Z$5,L108) -> 44383.51667 | Q109: =$J$52 -> PPS | S109: =IFERROR(S108/$Z$5,S108) -> 44504.52045 | X109: =$J$52 -> PPS | Z109: =IFERROR(Z108/$Z$5,Z108) -> 43117.93572 | AE109: =$J$52 -> PPS | AG109: =IFERROR(AG108/$Z$5,AG108) -> 52015.06531
B110: Teachers aged 55-64 | J110: EUR | L110: =IFERROR(L111/$AF$5,L111) -> 55737.25 | Q110: EUR | S110: =IFERROR(S111/$AF$5,S111) -> 55052.51 | X110: EUR | Z110: =IFERROR(Z111/$AF$5,Z111) -> 53987.17 | AE110: EUR | AG110: =IFERROR(AG111/$AF$5,AG111) -> 66012.88
B111: =B110 -> Teachers aged 55-64 | J111: =$J$5 -> EUR | L111: 55737.25 | Q111: =$J$51 -> EUR | S111: 55052.51 | X111: =$J$5 -> EUR | Z111: 53987.17 | AE111: =$J$5 -> EUR | AG111: 66012.88
B112: =B111 -> Teachers aged 55-64 | J112: =$J$52 -> PPS | L112: =IFERROR(L111/$Z$5,L111) -> 47900.69612 | Q112: =$J$52 -> PPS | S112: =IFERROR(S111/$Z$5,S111) -> 47312.22929 | X112: =$J$52 -> PPS | Z112: =IFERROR(Z111/$Z$5,Z111) -> 46396.67411 | AE112: =$J$52 -> PPS | AG112: =IFERROR(AG111/$Z$5,AG111) -> 56731.59161
B115: Source | J115: Ministry of the French Community of Belgium: Payroll file.
B116: Explanatory notes | J116: –
A119: Allowances for teachers in public schools | B119: Salary range for teachers with a higher qualification (when most prevalent) | AE119: 2020/2021
B120: Allowances related to other tasks and responsibilities | N120: 1 | U120: 2
O122: Authority level | V122: Type of financial compensation | AD122: ISCED levels
AD123: 02 | AF123: 1 | AH123: 24 | AJ123: 34
B124: Participation in school or other management tasks in addition to teaching duties | O124: a | V124: a | AD124: ● | AF124: ● | AH124: ● | AJ124: ●
B125: Teaching more classes or hours than required by full-time contract | O125: Top-level authority | V125: % of salary | AD125: ● | AF125: ● | AH125: ● | AJ125: ●
B126: Students counselling | O126: a | V126: a | AD126: ● | AF126: ● | AH126: ● | AJ126: ●
B127: Engaging in extracurricular activities | O127: a | V127: a | AD127: ● | AF127: ● | AH127: ● | AJ127: ●
B128: Special tasks | O128: Top-level authority | V128: Incidental payments | AD128: ● | AF128: ● | AH128: ● | AJ128: ●
B129: Class teacher / form teacher | O129: a | V129: a | AD129: ● | AF129: ● | AH129: ● | AJ129: ●
B130: Supporting mentoring / induction programmes | O130: a | V130: a | AD130: ● | AF130: ● | AH130: ● | AJ130: ●
B131: Other | O131: a | V131: a | AD131: ● | AF131: ● | AH131: ● | AJ131: ●
O133: Explanatory notes
B134: =B124 -> Participation in school or other management tasks in addition to teaching duties | O134: –
B135: Teaching more classes or hours than required by full-time contract | O135: Lessons in addition to a full-time schedule (= ancillary function) represent only 0.0035% of total hours worked at ISCED 02, 1, 24 and 34. Additional teaching hours are paid on the minimum salary scale and do not entitle to holiday benefits nor to thirteen month benefits.
B136: Students counselling | O136: –
B137: Engaging in extracurricular activities | O137: –
B138: Special tasks | O138: Teachers who supervise and support a student teacher during an internship can receive an amount that varies depending on the education level: - EUR 2.61 per period (50 minutes) if the teacher student is a trainee at ISCED 02, 1 or 2, with a maximum of 40 days per year and per teacher. - EUR 3.86 per period (50 minutes) if the teacher student is a trainee at ISCED 3, with a maximum of 160 days per year and per teacher.
B139: Class teacher / form teacher | O139: –
B140: Supporting mentoring / induction programmes | O140: –
B141: Other | O141: –
B143: Allowances related to qualifications, training and performance | N143: 0 | U143: 0
O145: Authority level | V145: Type of financial compensation | AD145: ISCED levels
AD146: 02 | AF146: 1 | AH146: 24 | AJ146: 34
B147: Further formal qualifications | O147: Top-level authority | V147: Progression in pay range | AD147: ● | AF147: ● | AH147: ●
B148: Successful completion of continuing professional development (CPD) activities | O148: a | V148: a | AD148: ● | AF148: ● | AH148: ● | AJ148: ●
B149: Outstanding performance | O149: a | V149: a | AD149: ● | AF149: ● | AH149: ● | AJ149: ●
B150: Other | O150: a | V150: a | AD150: ● | AF150: ● | AH150: ● | AJ150: ●
O152: Explanatory notes
B153: =B147 -> Further formal qualifications | O153: Teachers at ISCED 02, 1 and 24, who hold a master's degree in educational science (in addition to the minimum qualification (bachelor's degree)), are paid at scale 501 (the most common scale at ISCED 34) instead of the scale 301.
B154: Successful completion of continuing professional development (CPD) activities | O154: –
B155: Outstanding performance | O155: –
B156: Other | O156: –
B158: Allowances related to teaching conditions | N158: 0 | U158: 0
O160: Authority level | V160: Type of financial compensation | AD160: ISCED levels
AD161: 02 | AF161: 1 | AH161: 24 | AJ161: 34
B162: Teaching students with special educational needs | O162: a | V162: a | AD162: ● | AF162: ● | AH162: ● | AJ162: ●
B163: Teaching in a disadvantaged, remote or high cost area | O163: a | V163: a | AD163: ● | AF163: ● | AH163: ● | AJ163: ●
B164: Other | O164: a | V164: a | AD164: ● | AF164: ● | AH164: ● | AJ164: ●
O166: Explanatory notes
B167: =B162 -> Teaching students with special educational needs | O167: –
B168: Teaching in a disadvantaged, remote or high cost area | O168: –
B169: Other | O169: –
C171: Other criteria
O173: Authority level | V173: Type of financial compensation | AD173: ISCED levels
AD174: 02 | AF174: 1 | AH174: 24 | AJ174: 34
B175: Residence allowance | O175: a | V175: a | AD175: ● | AF175: ● | AH175: ● | AJ175: ●
B176: Family status | O176: a | V176: a | AD176: ● | AF176: ● | AH176: ● | AJ176: ●
B177: Other | O177: a | V177: a | AD177: ● | AF177: ● | AH177: ● | AJ177: ●
O179: Explanatory notes
B180: =B175 -> Residence allowance | O180: –
B181: Family status | O181: –
B182: Other | O182: –
B184: Source | O184: Ministry of the French Community of Belgium
A186: 2. School heads
A188: Annual gross statutory salaries of school heads in public schools | AE188: 2020/2021
J189: ISCED 02 | Q189: ISCED 1 | X189: ISCED 24 | AE189: ISCED 34
B190: Authority level determining the statutory salaries of school heads | J190: Top-level authority
J192: ISCED 02 | Q192: ISCED 1 | X192: ISCED 24 | AE192: ISCED 34
B193: Minimum qualification to become a school head | J193: Bachelor's degree (ISCED 6) + a pedagogical diploma + 3 years in service (the latter is not mandatory if there are no candidates and if a second call for candidates is needed)
B195: Single or lowest salary range (when more than one)
J197: ISCED 02 | Q197: ISCED 1 | X197: ISCED 24 | AE197: ISCED 34
B198: Type of school | J198: Less than 72 pupils | Q198: Less than 72 pupils | X198: Schools organising only lower secondary education | AE198: Schools organising lower and upper secondary education
B199: FALSE | C199: TRUE | D199: TRUE
B200: Minimum salary | J200: EUR | L200: =IFERROR(L201/$T$5,L201) -> 37288.17878 | Q200: EUR | S200: =IFERROR(S201/$T$5,S201) -> 37288.17878 | X200: EUR | Z200: =IFERROR(Z201/$T$5,Z201) -> 41923.21413 | AE200: EUR | AG200: =IFERROR(AG201/$T$5,AG201) -> 53266.69114
B201: =B200 -> Minimum salary | J201: =$J$5 -> EUR | L201: 37288.17878 | Q201: =$J$5 -> EUR | S201: 37288.17878 | X201: =$J$51 -> EUR | Z201: 41923.21413 | AE201: =$J$51 -> EUR | AG201: 53266.69114
B202: =B201 -> Minimum salary | J202: =$J$52 -> PPS | L202: =IFERROR(L201/$Z$5,L201) -> 32045.53006 | Q202: =$J$52 -> PPS | S202: =IFERROR(S201/$Z$5,S201) -> 32045.53006 | X202: =$J$52 -> PPS | Z202: =IFERROR(Z201/$Z$5,Z201) -> 36028.88805 | AE202: =$J$52 -> PPS | AG202: =IFERROR(AG201/$Z$5,AG201) -> 45777.49325
B203: Maximum salary | J203: EUR | L203: =IFERROR(L204/$T$5,L204) -> 66585.43923 | Q203: EUR | S203: =IFERROR(S204/$T$5,S204) -> 66585.43923 | X203: EUR | Z203: =IFERROR(Z204/$T$5,Z204) -> 71220.47458 | AE203: EUR | AG203: =IFERROR(AG204/$T$5,AG204) -> 84958.15146
B204: =B203 -> Maximum salary | J204: =$J$5 -> EUR | L204: 66585.43923 | Q204: =$J$5 -> EUR | S204: 66585.43923 | X204: =$J$51 -> EUR | Z204: 71220.47458 | AE204: =$J$51 -> EUR | AG204: 84958.15146
B205: =B204 -> Maximum salary | J205: =$J$52 -> PPS | L205: =IFERROR(L204/$Z$5,L204) -> 57223.65007 | Q205: =$J$52 -> PPS | S205: =IFERROR(S204/$Z$5,S204) -> 57223.65007 | X205: =$J$52 -> PPS | Z205: =IFERROR(Z204/$Z$5,Z204) -> 61207.00806 | AE205: =$J$52 -> PPS | AG205: =IFERROR(AG204/$Z$5,AG204) -> 73013.19307
B206: Criteria for progression in this salary range | J206: Years in service | Q206: Years in service | X206: Years in service | AE206: Years in service
B207: % school heads paid on this range | J207: 0.1757 | Q207: 0.0315 | X207: 0.7962759931 | AE207: 0.7943995801
B209: Highest salary range
J211: ISCED 02 | Q211: ISCED 1 | X211: ISCED 24 | AE211: ISCED 34
B212: Type of school | J212: 210 pupils or more | Q212: 210 pupils or more | X212: a | AE212: a
B213: FALSE | C213: TRUE | D213: TRUE
B214: Minimum salary | J214: EUR | L214: =IF(IFERROR(L215/$T$5,L215)=0,"–",IFERROR(L215/$T$5,L215)) -> 41923.21413 | Q214: EUR | S214: =IF(IFERROR(S215/$T$5,S215)=0,"–",IFERROR(S215/$T$5,S215)) -> 41923.21413 | X214: EUR | Z214: =IF(IFERROR(Z215/$T$5,Z215)=0,"–",IFERROR(Z215/$T$5,Z215)) -> a | AE214: EUR | AG214: =IF(IFERROR(AG215/$T$5,AG215)=0,"–",IFERROR(AG215/$T$5,AG215)) -> a
B215: =B214 -> Minimum salary | J215: =$J$5 -> EUR | L215: 41923.21413 | Q215: =$J$5 -> EUR | S215: 41923.21413 | X215: =$J$51 -> EUR | Z215: a | AE215: =$J$51 -> EUR | AG215: a
B216: =B215 -> Minimum salary | J216: =$J$52 -> PPS | L216: =IFERROR(L215/$Z$5,L215) -> 36028.88805 | Q216: =$J$52 -> PPS | S216: =IFERROR(S215/$Z$5,S215) -> 36028.88805 | X216: =$J$52 -> PPS | Z216: =IFERROR(Z215/$Z$5,Z215) -> a | AE216: =$J$52 -> PPS | AG216: =IFERROR(AG215/$Z$5,AG215) -> a
B217: Maximum salary | J217: EUR | L217: =IFERROR(L218/$T$5,L218) -> 71220.47458 | Q217: EUR | S217: =IFERROR(S218/$T$5,S218) -> 71220.47458 | X217: EUR | Z217: =IFERROR(Z218/$T$5,Z218) -> a | AE217: EUR | AG217: =IFERROR(AG218/$T$5,AG218) -> a
B218: =B217 -> Maximum salary | J218: =$J$5 -> EUR | L218: 71220.47458 | Q218: =$J$5 -> EUR | S218: 71220.47458 | X218: =$J$51 -> EUR | Z218: a | AE218: =$J$51 -> EUR | AG218: a
B219: =B218 -> Maximum salary | J219: =$J$52 -> PPS | L219: =IFERROR(L218/$Z$5,L218) -> 61207.00806 | Q219: =$J$52 -> PPS | S219: =IFERROR(S218/$Z$5,S218) -> 61207.00806 | X219: =$J$52 -> PPS | Z219: =IFERROR(Z218/$Z$5,Z218) -> a | AE219: =$J$52 -> PPS | AG219: =IFERROR(AG218/$Z$5,AG218) -> a
B220: Criteria for progression in this salary range | J220: Years in service | Q220: Years in service | X220: a | AE220: a
B221: % school heads paid on this range | J221: 0.5081079174 | Q221: 0.6833979849 | X221: a | AE221: a
B223: Most prevalent range (when none of the above)
J225: ISCED 02 | Q225: ISCED 1 | X225: ISCED 24 | AE225: ISCED 34
B226: Type of school | J226: – | Q226: – | X226: – | AE226: –
B227: FALSE | C227: TRUE | D227: FALSE
B228: Minimum salary | J228: EUR | L228: =IFERROR(L229/$T$5,L229) -> – | Q228: EUR | S228: =IFERROR(S229/$T$5,S229) -> – | X228: EUR | Z228: =IFERROR(Z229/$T$5,Z229) -> – | AE228: EUR | AG228: =IFERROR(AG229/$T$5,AG229) -> –
B229: =B228 -> Minimum salary | J229: =$J$5 -> EUR | L229: – | Q229: =$J$5 -> EUR | S229: – | X229: =$J$51 -> EUR | Z229: – | AE229: =$J$51 -> EUR | AG229: –
B230: =B229 -> Minimum salary | J230: =$J$52 -> PPS | L230: =IFERROR(L229/$Z$5,L229) -> – | Q230: =$J$52 -> PPS | S230: =IFERROR(S229/$Z$5,S229) -> – | X230: =$J$52 -> PPS | Z230: =IFERROR(Z229/$Z$5,Z229) -> – | AE230: =$J$52 -> PPS | AG230: =IFERROR(AG229/$Z$5,AG229) -> –
B231: Maximum salary | J231: EUR | L231: =IFERROR(L232/$T$5,L232) -> – | Q231: EUR | S231: =IFERROR(S232/$T$5,S232) -> – | X231: EUR | Z231: =IFERROR(Z232/$T$5,Z232) -> – | AE231: EUR | AG231: =IFERROR(AG232/$T$5,AG232) -> –
B232: =B231 -> Maximum salary | J232: =$J$5 -> EUR | L232: – | Q232: =$J$5 -> EUR | S232: – | X232: =$J$51 -> EUR | Z232: – | AE232: =$J$51 -> EUR | AG232: –
B233: =B232 -> Maximum salary | J233: =$J$52 -> PPS | L233: =IFERROR(L232/$Z$5,L232) -> – | Q233: =$J$52 -> PPS | S233: =IFERROR(S232/$Z$5,S232) -> – | X233: =$J$52 -> PPS | Z233: =IFERROR(Z232/$Z$5,Z232) -> – | AE233: =$J$52 -> PPS | AG233: =IFERROR(AG232/$Z$5,AG232) -> –
B234: Criteria for progression in this salary range | J234: – | Q234: – | X234: – | AE234: –
B235: % school heads paid on this range | J235: – | Q235: – | X235: – | AE235: –
B238: Source | J238: Ministry of the French Community of Belgium: Legal framework for salary scale.
B239: Explanatory notes | J239: Most representative salary scale at ISCED level.
A241: Average annual gross actual salaries of school heads in public schools | AE241: 2020/2021
B244: FALSE | C244: TRUE | D244: TRUE | J244: ISCED 02 | Q244: ISCED 1 | X244: ISCED 24 | AE244: ISCED 34
B245: School heads aged 25-64 | J245: EUR | L245: =IFERROR(L246/$AF$5,L246) -> 65359.78218 | Q245: EUR | S245: =IFERROR(S246/$AF$5,S246) -> 66985.31496 | X245: EUR | Z245: =IFERROR(Z246/$AF$5,Z246) -> 68170.5995 | AE245: EUR | AG245: =IFERROR(AG246/$AF$5,AG246) -> 80976.77792
B246: =B245 -> School heads aged 25-64 | J246: =$J$5 -> EUR | L246: 65359.78218 | Q246: =$J$51 -> EUR | S246: 66985.31496 | X246: =$J$51 -> EUR | Z246: 68170.5995 | AE246: =$J$51 -> EUR | AG246: 80976.77792
B247: =B246 -> School heads aged 25-64 | J247: PPS | L247: =IFERROR(L246/$Z$5,L246) -> 56170.31813 | Q247: =$J$52 -> PPS | S247: =IFERROR(S246/$Z$5,S246) -> 57567.30402 | X247: =$J$52 -> PPS | Z247: =IFERROR(Z246/$Z$5,Z246) -> 58585.93976 | AE247: =$J$52 -> PPS | AG247: =IFERROR(AG246/$Z$5,AG246) -> 69591.59326
B248: School heads aged 25-34 | J248: EUR | L248: =IFERROR(L249/$AF$5,L249) -> 47717.51833 | Q248: EUR | S248: =IFERROR(S249/$AF$5,S249) -> 48937.79114 | X248: EUR | Z248: =IFERROR(Z249/$AF$5,Z249) -> 45488.43 | AE248: EUR | AG248: =IFERROR(AG249/$AF$5,AG249) -> 56971
B249: =B248 -> School heads aged 25-34 | J249: =$J$5 -> EUR | L249: 47717.51833 | Q249: =$J$5 -> EUR | S249: 48937.79114 | X249: =$J$51 -> EUR | Z249: 45488.43 | AE249: =$J$51 -> EUR | AG249: 56971
B250: =B249 -> School heads aged 25-34 | J250: =$J$52 -> PPS | L250: =IFERROR(L249/$Z$5,L249) -> 41008.52383 | Q250: =$J$52 -> PPS | S250: =IFERROR(S249/$Z$5,S249) -> 42057.22855 | X250: =$J$52 -> PPS | Z250: =IFERROR(Z249/$Z$5,Z249) -> 39092.84118 | AE250: =$J$52 -> PPS | AG250: =IFERROR(AG249/$Z$5,AG249) -> 48960.98316
B251: School heads aged 35-44 | J251: EUR | L251: =IFERROR(L252/$AF$5,L252) -> 57406.8277 | Q251: EUR | S251: =IFERROR(S252/$AF$5,S252) -> 59743.90659 | X251: EUR | Z251: =IFERROR(Z252/$AF$5,Z252) -> 62078.58229 | AE251: EUR | AG251: =IFERROR(AG252/$AF$5,AG252) -> 70250.68758
B252: =B251 -> School heads aged 35-44 | J252: =$J$5 -> EUR | L252: 57406.8277 | Q252: =$J$5 -> EUR | S252: 59743.90659 | X252: =$J$51 -> EUR | Z252: 62078.58229 | AE252: =$J$51 -> EUR | AG252: 70250.68758
B253: =B252 -> School heads aged 35-44 | J253: =$J$52 -> PPS | L253: =IFERROR(L252/$Z$5,L252) -> 49335.53429 | Q253: =$J$52 -> PPS | S253: =IFERROR(S252/$Z$5,S252) -> 51344.02422 | X253: =$J$52 -> PPS | Z253: =IFERROR(Z252/$Z$5,Z252) -> 53350.44886 | AE253: =$J$52 -> PPS | AG253: =IFERROR(AG252/$Z$5,AG252) -> 60373.57131
B254: School heads aged 45-54 | J254: EUR | L254: =IFERROR(L255/$AF$5,L255) -> 66184.14349 | Q254: EUR | S254: =IFERROR(S255/$AF$5,S255) -> 67327.30034 | X254: EUR | Z254: =IFERROR(Z255/$AF$5,Z255) -> 69536.42091 | AE254: EUR | AG254: =IFERROR(AG255/$AF$5,AG255) -> 79087.8773
B255: =B254 -> School heads aged 45-54 | J255: =$J$5 -> EUR | L255: 66184.14349 | Q255: =$J$5 -> EUR | S255: 67327.30034 | X255: =$J$51 -> EUR | Z255: 69536.42091 | AE255: =$J$51 -> EUR | AG255: 79087.8773
B256: =B255 -> School heads aged 45-54 | J256: =$J$52 -> PPS | L256: =IFERROR(L255/$Z$5,L255) -> 56878.77577 | Q256: =$J$52 -> PPS | S256: =IFERROR(S255/$Z$5,S255) -> 57861.2069 | X256: =$J$52 -> PPS | Z256: =IFERROR(Z255/$Z$5,Z255) -> 59759.72921 | AE256: =$J$52 -> PPS | AG256: =IFERROR(AG255/$Z$5,AG255) -> 67968.26857
... 59 more rows

Sheet BE_nl
A1: Flemish Community of Belgium | AK1: 2020/2021
B3: a | C3: not applicable | J3: m | K3: not available
B5: National currency: | J5: EUR | T5: 1 | Z5: 1.1636 | AF5: 1
B7: Contents
D8: =$A$37 -> 1. Teachers
D9: =$A$39 -> Annual gross statutory salaries of teachers in public schools
F11: =$B$43 -> Salary range for teachers with the minimum qualification
F12: =$B$67 -> Salary range for teachers with a higher qualification (when most prevalent)
D13: =$A$94 -> Average annual gross actual salaries of teachers in public schools
D14: =$A$119 -> Allowances for teachers in public schools
F16: =$B$120 -> Allowances related to other tasks and responsibilities
F17: =$B$143 -> Allowances related to qualifications, training and performance
F18: =$B$158 -> Allowances related to teaching conditions
F19: =$C$171 -> Other criteria
D20: =$A$186 -> 2. School heads
D21: =$A$188 -> Annual gross statutory salaries of school heads in public schools
F23: =$B$195 -> Single or lowest salary range (when more than one)
F24: =$B$209 -> Highest salary range
F25: =$B$223 -> Most prevalent range (when none of the above)
D27: =$A$241 -> Average annual gross actual salaries of school heads in public schools
D29: =$A$266 -> Allowances for school heads in public schools
F31: =$B$267 -> Allowances related to other tasks and responsibilities
F32: =$B$290 -> Allowances related to qualifications, training and performance
F33: =$B$305 -> Allowances related to working conditions
F34: =$B$318 -> Other criteria
A37: 1. Teachers
A39: Annual gross statutory salaries of teachers in public schools | AE39: 2020/2021
J40: ISCED 02 | Q40: ISCED 1 | X40: ISCED 24 | AE40: ISCED 34
B41: Authority level determining the statutory salaries of teachers | J41: Top-level authority
B43: Salary range for teachers with the minimum qualification
J45: ISCED 02 | Q45: ISCED 1 | X45: ISCED 24 | AE45: ISCED 34
B46: Minimum qualification to enter the teaching profession | J46: Bachelor of education for pre-primary (ISCED 6) | Q46: Bachelor of education for primary (ISCED 6) | X46: Bachelor of education for secondary education (ISCED 6) | AE46: Bachelor of education for secondary education (ISCED 6)
B49: FALSE | C49: TRUE | D49: TRUE | J49: ISCED 02 | Q49: ISCED 1 | X49: ISCED 24 | AE49: ISCED 34
B50: Starting salary | J50: EUR | L50: =IFERROR(L51/$T$5,L51) -> 33988 | Q50: EUR | S50: =IFERROR(S51/$T$5,S51) -> 33987.93193 | X50: EUR | Z50: =IFERROR(Z51/$T$5,Z51) -> 33987.93193 | AE50: EUR | AG50: =IFERROR(AG51/$T$5,AG51) -> 33987.93193
B51: =$B$50 -> Starting salary | J51: =$J$5 -> EUR | L51: 33988 | Q51: =$J$5 -> EUR | S51: 33987.93193 | X51: =$J$5 -> EUR | Z51: 33987.93193 | AE51: =$J$5 -> EUR | AG51: 33987.93193
B52: =$B$50 -> Starting salary | J52: PPS | L52: =IFERROR(L51/$Z$5,L51) -> 29209.35029 | Q52: =$J$52 -> PPS | S52: =IFERROR(S51/$Z$5,S51) -> 29209.29179 | X52: =$J$52 -> PPS | Z52: =IFERROR(Z51/$Z$5,Z51) -> 29209.29179 | AE52: =$J$52 -> PPS | AG52: =IFERROR(AG51/$Z$5,AG51) -> 29209.29179
B53: After 10 years' experience | J53: EUR | L53: =IFERROR(L54/$T$5,L54) -> 42620 | Q53: EUR | S53: =IFERROR(S54/$T$5,S54) -> 42620.08744 | X53: EUR | Z53: =IFERROR(Z54/$T$5,Z54) -> 42620.08744 | AE53: EUR | AG53: =IFERROR(AG54/$T$5,AG54) -> 42620.08744
B54: =$B$53 -> After 10 years' experience | J54: =$J$5 -> EUR | L54: 42620 | Q54: =$J$5 -> EUR | S54: 42620.08744 | X54: =$J$5 -> EUR | Z54: 42620.08744 | AE54: =$J$5 -> EUR | AG54: 42620.08744
B55: =$B$53 -> After 10 years' experience | J55: =$J$52 -> PPS | L55: =IFERROR(L54/$Z$5,L54) -> 36627.70712 | Q55: =$J$52 -> PPS | S55: =IFERROR(S54/$Z$5,S54) -> 36627.78227 | X55: =$J$52 -> PPS | Z55: =IFERROR(Z54/$Z$5,Z54) -> 36627.78227 | AE55: =$J$52 -> PPS | AG55: =IFERROR(AG54/$Z$5,AG54) -> 36627.78227
B56: After 15 years' experience | J56: EUR | L56: =IFERROR(L57/$T$5,L57) -> 47983 | Q56: EUR | S56: =IFERROR(S57/$T$5,S57) -> 47982.50695 | X56: EUR | Z56: =IFERROR(Z57/$T$5,Z57) -> 47982.50695 | AE56: EUR | AG56: =IFERROR(AG57/$T$5,AG57) -> 47982.50695
B57: =$B$56 -> After 15 years' experience | J57: =$J$5 -> EUR | L57: 47983 | Q57: =$J$5 -> EUR | S57: 47982.50695 | X57: =$J$5 -> EUR | Z57: 47982.50695 | AE57: =$J$5 -> EUR | AG57: 47982.50695
B58: =$B$56 -> After 15 years' experience | J58: =$J$52 -> PPS | L58: =IFERROR(L57/$Z$5,L57) -> 41236.67927 | Q58: =$J$52 -> PPS | S58: =IFERROR(S57/$Z$5,S57) -> 41236.25554 | X58: =$J$52 -> PPS | Z58: =IFERROR(Z57/$Z$5,Z57) -> 41236.25554 | AE58: =$J$52 -> PPS | AG58: =IFERROR(AG57/$Z$5,AG57) -> 41236.25554
B59: At the top of the range | J59: EUR | L59: =IFERROR(L60/$T$5,L60) -> 60495 | Q59: EUR | S59: =IFERROR(S60/$T$5,S60) -> 60494.81913 | X59: EUR | Z59: =IFERROR(Z60/$T$5,Z60) -> 60494.81913 | AE59: EUR | AG59: =IFERROR(AG60/$T$5,AG60) -> 60494.81913
B60: =$B$59 -> At the top of the range | J60: =$J$5 -> EUR | L60: 60495 | Q60: =$J$5 -> EUR | S60: 60494.81913 | X60: =$J$5 -> EUR | Z60: 60494.81913 | AE60: =$J$5 -> EUR | AG60: 60494.81913
B61: =$B$59 -> At the top of the range | J61: =$J$52 -> PPS | L61: =IFERROR(L60/$Z$5,L60) -> 51989.5153 | Q61: =$J$52 -> PPS | S61: =IFERROR(S60/$Z$5,S60) -> 51989.35986 | X61: =$J$52 -> PPS | Z61: =IFERROR(Z60/$Z$5,Z60) -> 51989.35986 | AE61: =$J$52 -> PPS | AG61: =IFERROR(AG60/$Z$5,AG60) -> 51989.35986
L63: ISCED 02 | Q63: ISCED 1 | X63: ISCED 24 | AE63: ISCED 34
B64: % teachers paid on this range | L64: 1 | Q64: 1 | X64: 0.92 | AE64: 0.25
B65: Average nr of years to reach the top | L65: 36 | Q65: 36 | X65: 36 | AE65: 36
B67: Salary range for teachers with a higher qualification (when most prevalent)
J69: ISCED 02 | Q69: ISCED 1 | X69: ISCED 24 | AE69: ISCED 34
B70: Minimum qualification to enter the teaching profession | J70: – | Q70: – | X70: – | AE70: Master's degree (ISCED 7) relevant to content of the course and certificate of teaching competence
B73: FALSE | C73: TRUE | D73: TRUE | J73: ISCED 02 | Q73: ISCED 1 | X73: ISCED 24 | AE73: ISCED 34
B74: Starting salary | J74: EUR | L74: =IFERROR(L75/$T$5,L75) -> a | Q74: EUR | S74: =IFERROR(S75/$T$5,S75) -> a | X74: EUR | Z74: =IFERROR(Z75/$T$5,Z75) -> a | AE74: EUR | AG74: =IFERROR(AG75/$T$5,AG75) -> 42402.26469
B75: =$B$50 -> Starting salary | J75: =$J$5 -> EUR | L75: a | Q75: =$J$51 -> EUR | S75: a | X75: =$J$5 -> EUR | Z75: a | AE75: =$J$5 -> EUR | AG75: 42402.26469
B76: =$B$50 -> Starting salary | J76: PPS | L76: =IFERROR(L75/$Z$5,L75) -> a | Q76: =$J$52 -> PPS | S76: =IFERROR(S75/$Z$5,S75) -> a | X76: =$J$52 -> PPS | Z76: =IFERROR(Z75/$Z$5,Z75) -> a | AE76: =$J$52 -> PPS | AG76: =IFERROR(AG75/$Z$5,AG75) -> 36440.58499
B77: After 10 years' experience | J77: EUR | L77: =IFERROR(L78/$T$5,L78) -> a | Q77: EUR | S77: =IFERROR(S78/$T$5,S78) -> a | X77: EUR | Z77: =IFERROR(Z78/$T$5,Z78) -> a | AE77: EUR | AG77: =IFERROR(AG78/$T$5,AG78) -> 54042.67768
B78: =$B$53 -> After 10 years' experience | J78: =$J$5 -> EUR | L78: a | Q78: =$J$51 -> EUR | S78: a | X78: =$J$5 -> EUR | Z78: a | AE78: =$J$5 -> EUR | AG78: 54042.67768
B79: =$B$53 -> After 10 years' experience | J79: =$J$52 -> PPS | L79: =IFERROR(L78/$Z$5,L78) -> a | Q79: =$J$52 -> PPS | S79: =IFERROR(S78/$Z$5,S78) -> a | X79: =$J$52 -> PPS | Z79: =IFERROR(Z78/$Z$5,Z78) -> a | AE79: =$J$52 -> PPS | AG79: =IFERROR(AG78/$Z$5,AG78) -> 46444.37752
B80: After 15 years' experience | J80: EUR | L80: =IFERROR(L81/$T$5,L81) -> a | Q80: EUR | S80: =IFERROR(S81/$T$5,S81) -> a | X80: EUR | Z80: =IFERROR(Z81/$T$5,Z81) -> a | AE80: EUR | AG80: =IFERROR(AG81/$T$5,AG81) -> 61628.63398
B81: =$B$56 -> After 15 years' experience | J81: =$J$5 -> EUR | L81: a | Q81: =$J$51 -> EUR | S81: a | X81: =$J$5 -> EUR | Z81: a | AE81: =$J$5 -> EUR | AG81: 61628.63398
B82: =$B$56 -> After 15 years' experience | J82: =$J$52 -> PPS | L82: =IFERROR(L81/$Z$5,L81) -> a | Q82: =$J$52 -> PPS | S82: =IFERROR(S81/$Z$5,S81) -> a | X82: =$J$52 -> PPS | Z82: =IFERROR(Z81/$Z$5,Z81) -> a | AE82: =$J$52 -> PPS | AG82: =IFERROR(AG81/$Z$5,AG81) -> 52963.76244
B83: At the top of the range | J83: EUR | L83: =IFERROR(L84/$T$5,L84) -> a | Q83: EUR | S83: =IFERROR(S84/$T$5,S84) -> a | X83: EUR | Z83: =IFERROR(Z84/$T$5,Z84) -> a | AE83: EUR | AG83: =IFERROR(AG84/$T$5,AG84) -> 76800.54659
B84: =$B$59 -> At the top of the range | J84: =$J$5 -> EUR | L84: a | Q84: =$J$51 -> EUR | S84: a | X84: =$J$5 -> EUR | Z84: a | AE84: =$J$5 -> EUR | AG84: 76800.54659
B85: =$B$59 -> At the top of the range | J85: =$J$52 -> PPS | L85: =IFERROR(L84/$Z$5,L84) -> a | Q85: =$J$52 -> PPS | S85: =IFERROR(S84/$Z$5,S84) -> a | X85: =$J$52 -> PPS | Z85: =IFERROR(Z84/$Z$5,Z84) -> a | AE85: =$J$52 -> PPS | AG85: =IFERROR(AG84/$Z$5,AG84) -> 66002.5323
L87: ISCED 02 | Q87: ISCED 1 | X87: ISCED 24 | AE87: ISCED 34
B88: % teachers paid on this range | L88: a | Q88: a | X88: a | AE88: 0.72
B89: Average nr of years to reach the top | L89: a | Q89: a | X89: a | AE89: 36
B91: Source | J91: Decisions of the Flemish government (https://codex.vlaanderen.be/Zoeken/Document.aspx?DID=1000252&param=inhoud&ref=search&AVIDS=); (https://codex.vlaanderen.be/Zoeken/Document.aspx?DID=1000266&param=inhoud&ref=search&AVIDS=); (https://codex.vlaanderen.be/Zoeken/Document.aspx?DID=1024254&param=inhoud&ref=search&AVIDS=).
B92: Explanatory notes | J92: Qualifications are defined as 'required', 'sufficient' or 'other'. 'Sufficient' qualifications in secondary education do not require specialisation on a specific subject. The reported data refer to the 'required' qualifications, but pay scales are similar. For the calculation of the 'proportion of teachers paid according to this salary range' both full-time and part-time teachers are included. The minimum qualification at ISCED level 34 is a bachelor's degree to teach in the first two years and a master's degree for the last two years. The annual gross statutory salaries are calculated based on the salary rate applicable as of January 2021.
A94: Average annual gross actual salaries of teachers in public schools | AE94: 2020/2021
B97: FALSE | C97: TRUE | D97: TRUE | J97: ISCED 02 | Q97: ISCED 1 | X97: ISCED 24 | AE97: ISCED 34
B98: Teachers aged 25-64 | J98: EUR | L98: =IFERROR(L99/$AF$5,L99) -> 48734 | Q98: EUR | S98: =IFERROR(S99/$AF$5,S99) -> 48139 | X98: EUR | Z98: =IFERROR(Z99/$AF$5,Z99) -> 47968 | AE98: EUR | AG98: =IFERROR(AG99/$AF$5,AG99) -> 57675
B99: =B98 -> Teachers aged 25-64 | J99: =$J$5 -> EUR | L99: 48734 | Q99: =$J$51 -> EUR | S99: 48139 | X99: =$J$5 -> EUR | Z99: 47968 | AE99: =$J$5 -> EUR | AG99: 57675
B100: =B99 -> Teachers aged 25-64 | J100: PPS | L100: =IFERROR(L99/$Z$5,L99) -> 41882.09007 | Q100: =$J$52 -> PPS | S100: =IFERROR(S99/$Z$5,S99) -> 41370.74596 | X100: =$J$52 -> PPS | Z100: =IFERROR(Z99/$Z$5,Z99) -> 41223.78824 | AE100: =$J$52 -> PPS | AG100: =IFERROR(AG99/$Z$5,AG99) -> 49566.00206
B101: Teachers aged 25-34 | J101: EUR | L101: =IFERROR(L102/$AF$5,L102) -> 39789.07322 | Q101: EUR | S101: =IFERROR(S102/$AF$5,S102) -> 39473.75356 | X101: EUR | Z101: =IFERROR(Z102/$AF$5,Z102) -> 39593.38637 | AE101: EUR | AG101: =IFERROR(AG102/$AF$5,AG102) -> 45345.94044
B102: =B101 -> Teachers aged 25-34 | J102: =$J$5 -> EUR | L102: 39789.07322 | Q102: =$J$51 -> EUR | S102: 39473.75356 | X102: =$J$5 -> EUR | Z102: 39593.38637 | AE102: =$J$5 -> EUR | AG102: 45345.94044
B103: =B102 -> Teachers aged 25-34 | J103: =$J$52 -> PPS | L103: =IFERROR(L102/$Z$5,L102) -> 34194.80339 | Q103: =$J$52 -> PPS | S103: =IFERROR(S102/$Z$5,S102) -> 33923.81709 | X103: =$J$52 -> PPS | Z103: =IFERROR(Z102/$Z$5,Z102) -> 34026.62974 | AE103: =$J$52 -> PPS | AG103: =IFERROR(AG102/$Z$5,AG102) -> 38970.38539
B104: Teachers aged 35-44 | J104: EUR | L104: =IFERROR(L105/$AF$5,L105) -> 47463.4391 | Q104: EUR | S104: =IFERROR(S105/$AF$5,S105) -> 47690.90573 | X104: EUR | Z104: =IFERROR(Z105/$AF$5,Z105) -> 47812.95051 | AE104: EUR | AG104: =IFERROR(AG105/$AF$5,AG105) -> 55939.97369
B105: =B104 -> Teachers aged 35-44 | J105: =$J$5 -> EUR | L105: 47463.4391 | Q105: =$J$51 -> EUR | S105: 47690.90573 | X105: =$J$5 -> EUR | Z105: 47812.95051 | AE105: =$J$5 -> EUR | AG105: 55939.97369
B106: =B105 -> Teachers aged 35-44 | J106: =$J$52 -> PPS | L106: =IFERROR(L105/$Z$5,L105) -> 40790.16767 | Q106: =$J$52 -> PPS | S106: =IFERROR(S105/$Z$5,S105) -> 40985.65291 | X106: =$J$52 -> PPS | Z106: =IFERROR(Z105/$Z$5,Z105) -> 41090.53842 | AE106: =$J$52 -> PPS | AG106: =IFERROR(AG105/$Z$5,AG105) -> 48074.91723
B107: Teachers aged 45-54 | J107: EUR | L107: =IFERROR(L108/$AF$5,L108) -> 56107.06752 | Q107: EUR | S107: =IFERROR(S108/$AF$5,S108) -> 55305.7699 | X107: EUR | Z107: =IFERROR(Z108/$AF$5,Z108) -> 54705.31579 | AE107: EUR | AG107: =IFERROR(AG108/$AF$5,AG108) -> 64812.69019
B108: =B107 -> Teachers aged 45-54 | J108: =$J$5 -> EUR | L108: 56107.06752 | Q108: =$J$51 -> EUR | S108: 55305.7699 | X108: =$J$5 -> EUR | Z108: 54705.31579 | AE108: =$J$5 -> EUR | AG108: 64812.69019
B109: =B108 -> Teachers aged 45-54 | J109: =$J$52 -> PPS | L109: =IFERROR(L108/$Z$5,L108) -> 48218.51798 | Q109: =$J$52 -> PPS | S109: =IFERROR(S108/$Z$5,S108) -> 47529.88132 | X109: =$J$52 -> PPS | Z109: =IFERROR(Z108/$Z$5,Z108) -> 47013.84994 | AE109: =$J$52 -> PPS | AG109: =IFERROR(AG108/$Z$5,AG108) -> 55700.14626
B110: Teachers aged 55-64 | J110: EUR | L110: =IFERROR(L111/$AF$5,L111) -> 58791.0325 | Q110: EUR | S110: =IFERROR(S111/$AF$5,S111) -> 58464.30712 | X110: EUR | Z110: =IFERROR(Z111/$AF$5,Z111) -> 57914.41091 | AE110: EUR | AG110: =IFERROR(AG111/$AF$5,AG111) -> 69028.7872
B111: =B110 -> Teachers aged 55-64 | J111: =$J$5 -> EUR | L111: 58791.0325 | Q111: =$J$51 -> EUR | S111: 58464.30712 | X111: =$J$5 -> EUR | Z111: 57914.41091 | AE111: =$J$5 -> EUR | AG111: 69028.7872
B112: =B111 -> Teachers aged 55-64 | J112: =$J$52 -> PPS | L112: =IFERROR(L111/$Z$5,L111) -> 50525.12247 | Q112: =$J$52 -> PPS | S112: =IFERROR(S111/$Z$5,S111) -> 50244.33407 | X112: =$J$52 -> PPS | Z112: =IFERROR(Z111/$Z$5,Z111) -> 49771.75224 | AE112: =$J$52 -> PPS | AG112: =IFERROR(AG111/$Z$5,AG111) -> 59323.46786
B115: Source | J115: Staff payment database and staff assignment database of the policy domain of education and training.
B116: Explanatory notes | J116: Actual salary figures refer to full-time teachers of general subjects with on January 2021.
A119: Allowances for teachers in public schools | B119: Salary range for teachers with a higher qualification (when most prevalent) | AE119: 2020/2021
B120: Allowances related to other tasks and responsibilities | N120: 1 | U120: 2
O122: Authority level | V122: Type of financial compensation | AD122: ISCED levels
AD123: 02 | AF123: 1 | AH123: 24 | AJ123: 34
B124: Participation in school or other management tasks in addition to teaching duties | O124: a | V124: a | AD124: ● | AF124: ● | AH124: ● | AJ124: ●
B125: Teaching more classes or hours than required by full-time contract | O125: Top-level authority | V125: % of salary | AD125: ● | AF125: ● | AH125: ● | AJ125: ●
B126: Students counselling | O126: a | V126: a | AD126: ● | AF126: ● | AH126: ● | AJ126: ●
B127: Engaging in extracurricular activities | O127: a | V127: a | AD127: ● | AF127: ● | AH127: ● | AJ127: ●
B128: Special tasks | O128: a | V128: a | AD128: ● | AF128: ● | AH128: ● | AJ128: ●
B129: Class teacher / form teacher | O129: a | V129: a | AD129: ● | AF129: ● | AH129: ● | AJ129: ●
B130: Supporting mentoring / induction programmes | O130: a | V130: a | AD130: ● | AF130: ● | AH130: ● | AJ130: ●
B131: Other | O131: a | V131: a | AD131: ● | AF131: ● | AH131: ● | AJ131: ●
O133: Explanatory notes
B134: =B124 -> Participation in school or other management tasks in addition to teaching duties | O134: –
B135: Teaching more classes or hours than required by full-time contract | O135: Maximum: 140 % of the basic salary.
B136: Students counselling | O136: –
B137: Engaging in extracurricular activities | O137: –
B138: Special tasks | O138: –
B139: Class teacher / form teacher | O139: –
B140: Supporting mentoring / induction programmes | O140: –
B141: Other | O141: –
B143: Allowances related to qualifications, training and performance | N143: 0 | U143: 0
O145: Authority level | V145: Type of financial compensation | AD145: ISCED levels
AD146: 02 | AF146: 1 | AH146: 24 | AJ146: 34
B147: Further formal qualifications | O147: Top-level authority | V147: Regular additional payments | AD147: ● | AF147: ● | AH147: ● | AJ147: ●
B148: Successful completion of continuing professional development (CPD) activities | O148: a | V148: a | AD148: ● | AF148: ● | AH148: ● | AJ148: ●
B149: Outstanding performance | O149: a | V149: a | AD149: ● | AF149: ● | AH149: ● | AJ149: ●
B150: Other | O150: a | V150: a | AD150: ● | AF150: ● | AH150: ● | AJ150: ●
O152: Explanatory notes
B153: =B147 -> Further formal qualifications | O153: From €45.82173 to €137.488 per month for the succesful completion of specific education leading to certain certificates and diplomas.
B154: Successful completion of continuing professional development (CPD) activities | O154: –
B155: Outstanding performance | O155: –
B156: Other | O156: –
B158: Allowances related to teaching conditions | N158: 0 | U158: 0
O160: Authority level | V160: Type of financial compensation | AD160: ISCED levels
AD161: 02 | AF161: 1 | AH161: 24 | AJ161: 34
B162: Teaching students with special educational needs | O162: a | V162: a | AD162: ● | AF162: ● | AH162: ● | AJ162: ●
B163: Teaching in a disadvantaged, remote or high cost area | O163: a | V163: a | AD163: ● | AF163: ● | AH163: ● | AJ163: ●
B164: Other | O164: a | V164: a | AD164: ● | AF164: ● | AH164: ● | AJ164: ●
O166: Explanatory notes
B167: =B162 -> Teaching students with special educational needs | O167: –
B168: Teaching in a disadvantaged, remote or high cost area | O168: –
B169: Other | O169: –
C171: Other criteria
O173: Authority level | V173: Type of financial compensation | AD173: ISCED levels
AD174: 02 | AF174: 1 | AH174: 24 | AJ174: 34
B175: Residence allowance | O175: a | V175: a | AD175: ● | AF175: ● | AH175: ● | AJ175: ●
B176: Family status | O176: a | V176: a | AD176: ● | AF176: ● | AH176: ● | AJ176: ●
B177: Other | O177: a | V177: a | AD177: ● | AF177: ● | AH177: ● | AJ177: ●
O179: Explanatory notes
B180: =B175 -> Residence allowance | O180: –
B181: Family status | O181: –
B182: Other | O182: –
B184: Source | O184: Decision of the Flemish government https://codex.vlaanderen.be/Zoeken/Document.aspx?DID=1013833&param=inhoud&ref=search&AVIDS=
A186: 2. School heads
A188: Annual gross statutory salaries of school heads in public schools | AE188: 2020/2021
J189: ISCED 02 | Q189: ISCED 1 | X189: ISCED 24 | AE189: ISCED 34
B190: Authority level determining the statutory salaries of school heads | J190: Top-level authority
J192: ISCED 02 | Q192: ISCED 1 | X192: ISCED 24 | AE192: ISCED 34
B193: Minimum qualification to become a school head | J193: Professional bachelor (ISCED 6) and certificate of teaching competence | AE193: Master (ISCED 7) and certificate of teaching competence
B195: Single or lowest salary range (when more than one)
J197: ISCED 02 | Q197: ISCED 1 | X197: ISCED 24 | AE197: ISCED 34
B198: Type of school | J198: a | Q198: a | X198: Less than 120 regular pupils | AE198: Less than 83 regular pupils or less then 120 regular pupils depending on grades in school (83: only pupils in year/grade 1 to 4 ; 120: also pupils from year/grade 5 or 6)
B199: FALSE | C199: TRUE | D199: TRUE
B200: Minimum salary | J200: EUR | L200: =IFERROR(L201/$T$5,L201) -> 50320.36221 | Q200: EUR | S200: =IFERROR(S201/$T$5,S201) -> 50320.36221 | X200: EUR | Z200: =IFERROR(Z201/$T$5,Z201) -> 45628.611 | AE200: EUR | AG200: =IFERROR(AG201/$T$5,AG201) -> 55525.2256
B201: =B200 -> Minimum salary | J201: =$J$5 -> EUR | L201: 50320.36221 | Q201: =$J$5 -> EUR | S201: 50320.36221 | X201: =$J$51 -> EUR | Z201: 45628.611 | AE201: =$J$51 -> EUR | AG201: 55525.2256
B202: =B201 -> Minimum salary | J202: =$J$52 -> PPS | L202: =IFERROR(L201/$Z$5,L201) -> 43245.41269 | Q202: =$J$52 -> PPS | S202: =IFERROR(S201/$Z$5,S201) -> 43245.41269 | X202: =$J$52 -> PPS | Z202: =IFERROR(Z201/$Z$5,Z201) -> 39213.31299 | AE202: =$J$52 -> PPS | AG202: =IFERROR(AG201/$Z$5,AG201) -> 47718.48195
B203: Maximum salary | J203: EUR | L203: =IFERROR(L204/$T$5,L204) -> 76827.2494 | Q203: EUR | S203: =IFERROR(S204/$T$5,S204) -> 76827.2494 | X203: EUR | Z203: =IFERROR(Z204/$T$5,Z204) -> 76366.17445 | AE203: EUR | AG203: =IFERROR(AG204/$T$5,AG204) -> 91232.26855
B204: =B203 -> Maximum salary | J204: =$J$5 -> EUR | L204: 76827.2494 | Q204: =$J$5 -> EUR | S204: 76827.2494 | X204: =$J$51 -> EUR | Z204: 76366.17445 | AE204: =$J$51 -> EUR | AG204: 91232.26855
B205: =B204 -> Maximum salary | J205: =$J$52 -> PPS | L205: =IFERROR(L204/$Z$5,L204) -> 66025.48075 | Q205: =$J$52 -> PPS | S205: =IFERROR(S204/$Z$5,S204) -> 66025.48075 | X205: =$J$52 -> PPS | Z205: =IFERROR(Z204/$Z$5,Z204) -> 65629.23208 | AE205: =$J$52 -> PPS | AG205: =IFERROR(AG204/$Z$5,AG204) -> 78405.18095
B206: Criteria for progression in this salary range | J206: 3 yearly increases followed by 12 2-yearly increases and one final increase after 36 years; criterium is seniority.
B207: % school heads paid on this range | J207: 1 | Q207: 1 | X207: 0.01 | AE207: 0
B209: Highest salary range
J211: ISCED 02 | Q211: ISCED 1 | X211: ISCED 24 | AE211: ISCED 34
B212: Type of school | J212: a | Q212: a | X212: More than 120 regular pupils | AE212: More than 83 regular pupils or more than 120 regular pupils depending on grades in school (83: only pupils in year/grade 1 to 4 ; 120: also pupils from year/grade 5 or 6)
B213: FALSE | C213: TRUE | D213: TRUE
B214: Minimum salary | J214: EUR | L214: =IF(IFERROR(L215/$T$5,L215)=0,"–",IFERROR(L215/$T$5,L215)) -> a | Q214: EUR | S214: =IF(IFERROR(S215/$T$5,S215)=0,"–",IFERROR(S215/$T$5,S215)) -> a | X214: EUR | Z214: =IF(IFERROR(Z215/$T$5,Z215)=0,"–",IFERROR(Z215/$T$5,Z215)) -> 50320.36221 | AE214: EUR | AG214: =IF(IFERROR(AG215/$T$5,AG215)=0,"–",IFERROR(AG215/$T$5,AG215)) -> 58734.69497
B215: =B214 -> Minimum salary | J215: =$J$5 -> EUR | L215: a | Q215: =$J$5 -> EUR | S215: a | X215: =$J$51 -> EUR | Z215: 50320.36221 | AE215: =$J$51 -> EUR | AG215: 58734.69497
B216: =B215 -> Minimum salary | J216: =$J$52 -> PPS | L216: =IFERROR(L215/$Z$5,L215) -> a | Q216: =$J$52 -> PPS | S216: =IFERROR(S215/$Z$5,S215) -> a | X216: =$J$52 -> PPS | Z216: =IFERROR(Z215/$Z$5,Z215) -> 43245.41269 | AE216: =$J$52 -> PPS | AG216: =IFERROR(AG215/$Z$5,AG215) -> 50476.70588
B217: Maximum salary | J217: EUR | L217: =IFERROR(L218/$T$5,L218) -> a | Q217: EUR | S217: =IFERROR(S218/$T$5,S218) -> a | X217: EUR | Z217: =IFERROR(Z218/$T$5,Z218) -> 76827.2494 | AE217: EUR | AG217: =IFERROR(AG218/$T$5,AG218) -> 93132.97686
B218: =B217 -> Maximum salary | J218: =$J$5 -> EUR | L218: a | Q218: =$J$5 -> EUR | S218: a | X218: =$J$51 -> EUR | Z218: 76827.2494 | AE218: =$J$51 -> EUR | AG218: 93132.97686
B219: =B218 -> Maximum salary | J219: =$J$52 -> PPS | L219: =IFERROR(L218/$Z$5,L218) -> a | Q219: =$J$52 -> PPS | S219: =IFERROR(S218/$Z$5,S218) -> a | X219: =$J$52 -> PPS | Z219: =IFERROR(Z218/$Z$5,Z218) -> 66025.48075 | AE219: =$J$52 -> PPS | AG219: =IFERROR(AG218/$Z$5,AG218) -> 80038.6532
B220: Criteria for progression in this salary range | J220: a | Q220: a | X220: 3 yearly increases followed by 12 2-yearly increases; criterium is seniority. | AE220: 3 yearly increases followed by 11 2-yearly increases; criterium is seniority.
B221: % school heads paid on this range | J221: a | Q221: a | X221: 0.99 | AE221: 1
B223: Most prevalent range (when none of the above)
J225: ISCED 02 | Q225: ISCED 1 | X225: ISCED 24 | AE225: ISCED 34
B226: Type of school | J226: – | Q226: – | X226: – | AE226: –
B227: FALSE | C227: TRUE | D227: FALSE
B228: Minimum salary | J228: EUR | L228: =IFERROR(L229/$T$5,L229) -> – | Q228: EUR | S228: =IFERROR(S229/$T$5,S229) -> – | X228: EUR | Z228: =IFERROR(Z229/$T$5,Z229) -> – | AE228: EUR | AG228: =IFERROR(AG229/$T$5,AG229) -> –
B229: =B228 -> Minimum salary | J229: =$J$5 -> EUR | L229: – | Q229: =$J$5 -> EUR | S229: – | X229: =$J$51 -> EUR | Z229: – | AE229: =$J$51 -> EUR | AG229: –
B230: =B229 -> Minimum salary | J230: =$J$52 -> PPS | L230: =IFERROR(L229/$Z$5,L229) -> – | Q230: =$J$52 -> PPS | S230: =IFERROR(S229/$Z$5,S229) -> – | X230: =$J$52 -> PPS | Z230: =IFERROR(Z229/$Z$5,Z229) -> – | AE230: =$J$52 -> PPS | AG230: =IFERROR(AG229/$Z$5,AG229) -> –
B231: Maximum salary | J231: EUR | L231: =IFERROR(L232/$T$5,L232) -> – | Q231: EUR | S231: =IFERROR(S232/$T$5,S232) -> – | X231: EUR | Z231: =IFERROR(Z232/$T$5,Z232) -> – | AE231: EUR | AG231: =IFERROR(AG232/$T$5,AG232) -> –
B232: =B231 -> Maximum salary | J232: =$J$5 -> EUR | L232: – | Q232: =$J$5 -> EUR | S232: – | X232: =$J$51 -> EUR | Z232: – | AE232: =$J$51 -> EUR | AG232: –
B233: =B232 -> Maximum salary | J233: =$J$52 -> PPS | L233: =IFERROR(L232/$Z$5,L232) -> – | Q233: =$J$52 -> PPS | S233: =IFERROR(S232/$Z$5,S232) -> – | X233: =$J$52 -> PPS | Z233: =IFERROR(Z232/$Z$5,Z232) -> – | AE233: =$J$52 -> PPS | AG233: =IFERROR(AG232/$Z$5,AG232) -> –
B234: Criteria for progression in this salary range | J234: – | Q234: – | X234: – | AE234: –
B235: % school heads paid on this range | J235: – | Q235: – | X235: – | AE235: –
B238: Source | J238: Decisions of the Flemish government. - https://codex.vlaanderen.be/Zoeken/Document.aspx?DID=1000252&param=inhoud&ref=search&AVIDS= - https://codex.vlaanderen.be/Zoeken/Document.aspx?DID=1000266&param=inhoud&ref=search&AVIDS= - https://codex.vlaanderen.be/Zoeken/Document.aspx?DID=1024254&param=inhoud&ref=search&AVIDS=
B239: Explanatory notes | J239: The annual gross statutory salaries are calculated based on the salary rate applicable as of January 2021.
A241: Average annual gross actual salaries of school heads in public schools | AE241: 2020/2021
B244: FALSE | C244: TRUE | D244: TRUE | J244: ISCED 02 | Q244: ISCED 1 | X244: ISCED 24 | AE244: ISCED 34
B245: School heads aged 25-64 | J245: EUR | L245: =IFERROR(L246/$AF$5,L246) -> 71132 | Q245: EUR | S245: =IFERROR(S246/$AF$5,S246) -> 71132 | X245: EUR | Z245: =IFERROR(Z246/$AF$5,Z246) -> 75824.38093 | AE245: EUR | AG245: =IFERROR(AG246/$AF$5,AG246) -> 85339.03091
B246: =B245 -> School heads aged 25-64 | J246: =$J$5 -> EUR | L246: 71132 | Q246: =$J$51 -> EUR | S246: 71132 | X246: =$J$51 -> EUR | Z246: 75824.38093 | AE246: =$J$51 -> EUR | AG246: 85339.03091
B247: =B246 -> School heads aged 25-64 | J247: PPS | L247: =IFERROR(L246/$Z$5,L246) -> 61130.97284 | Q247: =$J$52 -> PPS | S247: =IFERROR(S246/$Z$5,S246) -> 61130.97284 | X247: =$J$52 -> PPS | Z247: =IFERROR(Z246/$Z$5,Z246) -> 65163.61372 | AE247: =$J$52 -> PPS | AG247: =IFERROR(AG246/$Z$5,AG246) -> 73340.52158
B248: School heads aged 25-34 | J248: EUR | L248: =IFERROR(L249/$AF$5,L249) -> 57838.35153 | Q248: EUR | S248: =IFERROR(S249/$AF$5,S249) -> 57838.35153 | X248: EUR | Z248: =IFERROR(Z249/$AF$5,Z249) -> 58017.40533 | AE248: EUR | AG248: =IFERROR(AG249/$AF$5,AG249) -> 66490.63197
B249: =B248 -> School heads aged 25-34 | J249: =$J$5 -> EUR | L249: 57838.35153 | Q249: =$J$5 -> EUR | S249: 57838.35153 | X249: =$J$51 -> EUR | Z249: 58017.40533 | AE249: =$J$51 -> EUR | AG249: 66490.63197
B250: =B249 -> School heads aged 25-34 | J250: =$J$52 -> PPS | L250: =IFERROR(L249/$Z$5,L249) -> 49706.38667 | Q250: =$J$52 -> PPS | S250: =IFERROR(S249/$Z$5,S249) -> 49706.38667 | X250: =$J$52 -> PPS | Z250: =IFERROR(Z249/$Z$5,Z249) -> 49860.26584 | AE250: =$J$52 -> PPS | AG250: =IFERROR(AG249/$Z$5,AG249) -> 57142.17254
B251: School heads aged 35-44 | J251: EUR | L251: =IFERROR(L252/$AF$5,L252) -> 65513.33019 | Q251: EUR | S251: =IFERROR(S252/$AF$5,S252) -> 65513.33019 | X251: EUR | Z251: =IFERROR(Z252/$AF$5,Z252) -> 68943.51293 | AE251: EUR | AG251: =IFERROR(AG252/$AF$5,AG252) -> 76955.74973
B252: =B251 -> School heads aged 35-44 | J252: =$J$5 -> EUR | L252: 65513.33019 | Q252: =$J$5 -> EUR | S252: 65513.33019 | X252: =$J$51 -> EUR | Z252: 68943.51293 | AE252: =$J$51 -> EUR | AG252: 76955.74973
B253: =B252 -> School heads aged 35-44 | J253: =$J$52 -> PPS | L253: =IFERROR(L252/$Z$5,L252) -> 56302.27758 | Q253: =$J$52 -> PPS | S253: =IFERROR(S252/$Z$5,S252) -> 56302.27758 | X253: =$J$52 -> PPS | Z253: =IFERROR(Z252/$Z$5,Z252) -> 59250.18299 | AE253: =$J$52 -> PPS | AG253: =IFERROR(AG252/$Z$5,AG252) -> 66135.91417
B254: School heads aged 45-54 | J254: EUR | L254: =IFERROR(L255/$AF$5,L255) -> 72597.35973 | Q254: EUR | S254: =IFERROR(S255/$AF$5,S255) -> 72597.35973 | X254: EUR | Z254: =IFERROR(Z255/$AF$5,Z255) -> 77231.78586 | AE254: EUR | AG254: =IFERROR(AG255/$AF$5,AG255) -> 86645.04348
B255: =B254 -> School heads aged 45-54 | J255: =$J$5 -> EUR | L255: 72597.35973 | Q255: =$J$5 -> EUR | S255: 72597.35973 | X255: =$J$51 -> EUR | Z255: 77231.78586 | AE255: =$J$51 -> EUR | AG255: 86645.04348
B256: =B255 -> School heads aged 45-54 | J256: =$J$52 -> PPS | L256: =IFERROR(L255/$Z$5,L255) -> 62390.30572 | Q256: =$J$52 -> PPS | S256: =IFERROR(S255/$Z$5,S255) -> 62390.30572 | X256: =$J$52 -> PPS | Z256: =IFERROR(Z255/$Z$5,Z255) -> 66373.14014 | AE256: =$J$52 -> PPS | AG256: =IFERROR(AG255/$Z$5,AG255) -> 74462.91121
... 59 more rows

Sheet BG
A1: Bulgaria | AK1: 2020/2021
B3: a | C3: not applicable | J3: m | K3: not available
B5: National currency: | J5: BGN | T5: 1.9558 | Z5: 0.9974 | AF5: 1.9558
B7: Contents
D8: =$A$37 -> 1. Teachers
D9: =$A$39 -> Annual gross statutory salaries of teachers in public schools
F11: =$B$43 -> Salary range for teachers with the minimum qualification
F12: =$B$67 -> Salary range for teachers with a higher qualification (when most prevalent)
D13: =$A$94 -> Average annual gross actual salaries of teachers in public schools
D14: =$A$119 -> Allowances for teachers in public schools
F16: =$B$120 -> Allowances related to other tasks and responsibilities
F17: =$B$143 -> Allowances related to qualifications, training and performance
F18: =$B$158 -> Allowances related to teaching conditions
F19: =$C$171 -> Other criteria
D20: =$A$186 -> 2. School heads
D21: =$A$188 -> Annual gross statutory salaries of school heads in public schools
F23: =$B$195 -> Single or lowest salary range (when more than one)
F24: =$B$209 -> Highest salary range
F25: =$B$223 -> Most prevalent range (when none of the above)
D27: =$A$241 -> Average annual gross actual salaries of school heads in public schools
D29: =$A$266 -> Allowances for school heads in public schools
F31: =$B$267 -> Allowances related to other tasks and responsibilities
F32: =$B$290 -> Allowances related to qualifications, training and performance
F33: =$B$305 -> Allowances related to working conditions
F34: =$B$318 -> Other criteria
A37: 1. Teachers
A39: Annual gross statutory salaries of teachers in public schools | AE39: 2020/2021
J40: ISCED 02 | Q40: ISCED 1 | X40: ISCED 24 | AE40: ISCED 34
B41: Authority level determining the statutory salaries of teachers | J41: Top-level authority
B43: Salary range for teachers with the minimum qualification
J45: ISCED 02 | Q45: ISCED 1 | X45: ISCED 24 | AE45: ISCED 34
B46: Minimum qualification to enter the teaching profession | J46: Bachelor’s degree as teacher for children (ISCED 6) | Q46: Bachelor’s degree as primary teacher (ISCED 6) | X46: Bachelor’s degree in pedagogical sciences or relevant bachelor's degree (ISCED 6) | AE46: Bachelor’s degree in pedagogical sciences or relevant bachelor's degree (ISCED 6)
B49: TRUE | C49: TRUE | D49: TRUE | J49: ISCED 02 | Q49: ISCED 1 | X49: ISCED 24 | AE49: ISCED 34
B50: Starting salary | J50: EUR | L50: =IFERROR(L51/$T$5,L51) -> 7730.851825 | Q50: EUR | S50: =IFERROR(S51/$T$5,S51) -> 7730.851825 | X50: EUR | Z50: =IFERROR(Z51/$T$5,Z51) -> 7730.851825 | AE50: EUR | AG50: =IFERROR(AG51/$T$5,AG51) -> 7730.851825
B51: =$B$50 -> Starting salary | J51: =$J$5 -> BGN | L51: 15120 | Q51: =$J$5 -> BGN | S51: 15120 | X51: =$J$5 -> BGN | Z51: 15120 | AE51: =$J$5 -> BGN | AG51: 15120
B52: =$B$50 -> Starting salary | J52: PPS | L52: =IFERROR(L51/$Z$5,L51) -> 15159.41448 | Q52: =$J$52 -> PPS | S52: =IFERROR(S51/$Z$5,S51) -> 15159.41448 | X52: =$J$52 -> PPS | Z52: =IFERROR(Z51/$Z$5,Z51) -> 15159.41448 | AE52: =$J$52 -> PPS | AG52: =IFERROR(AG51/$Z$5,AG51) -> 15159.41448
B53: After 10 years' experience | J53: EUR | L53: =IFERROR(L54/$T$5,L54) -> 7976.275693 | Q53: EUR | S53: =IFERROR(S54/$T$5,S54) -> 7976.275693 | X53: EUR | Z53: =IFERROR(Z54/$T$5,Z54) -> 7976.275693 | AE53: EUR | AG53: =IFERROR(AG54/$T$5,AG54) -> 7976.275693
B54: =$B$53 -> After 10 years' experience | J54: =$J$5 -> BGN | L54: 15600 | Q54: =$J$5 -> BGN | S54: 15600 | X54: =$J$5 -> BGN | Z54: 15600 | AE54: =$J$5 -> BGN | AG54: 15600
B55: =$B$53 -> After 10 years' experience | J55: =$J$52 -> PPS | L55: =IFERROR(L54/$Z$5,L54) -> 15640.66573 | Q55: =$J$52 -> PPS | S55: =IFERROR(S54/$Z$5,S54) -> 15640.66573 | X55: =$J$52 -> PPS | Z55: =IFERROR(Z54/$Z$5,Z54) -> 15640.66573 | AE55: =$J$52 -> PPS | AG55: =IFERROR(AG54/$Z$5,AG54) -> 15640.66573
B56: After 15 years' experience | J56: EUR | L56: =IFERROR(L57/$T$5,L57) -> 8283.055527 | Q56: EUR | S56: =IFERROR(S57/$T$5,S57) -> 8283.055527 | X56: EUR | Z56: =IFERROR(Z57/$T$5,Z57) -> 8283.055527 | AE56: EUR | AG56: =IFERROR(AG57/$T$5,AG57) -> 8283.055527
B57: =$B$56 -> After 15 years' experience | J57: =$J$5 -> BGN | L57: 16200 | Q57: =$J$5 -> BGN | S57: 16200 | X57: =$J$5 -> BGN | Z57: 16200 | AE57: =$J$5 -> BGN | AG57: 16200
B58: =$B$56 -> After 15 years' experience | J58: =$J$52 -> PPS | L58: =IFERROR(L57/$Z$5,L57) -> 16242.2298 | Q58: =$J$52 -> PPS | S58: =IFERROR(S57/$Z$5,S57) -> 16242.2298 | X58: =$J$52 -> PPS | Z58: =IFERROR(Z57/$Z$5,Z57) -> 16242.2298 | AE58: =$J$52 -> PPS | AG58: =IFERROR(AG57/$Z$5,AG57) -> 16242.2298
B59: At the top of the range | J59: EUR | L59: =IFERROR(L60/$T$5,L60) -> m | Q59: EUR | S59: =IFERROR(S60/$T$5,S60) -> m | X59: EUR | Z59: =IFERROR(Z60/$T$5,Z60) -> m | AE59: EUR | AG59: =IFERROR(AG60/$T$5,AG60) -> m
B60: =$B$59 -> At the top of the range | J60: =$J$5 -> BGN | L60: m | Q60: =$J$5 -> BGN | S60: m | X60: =$J$5 -> BGN | Z60: m | AE60: =$J$5 -> BGN | AG60: m
B61: =$B$59 -> At the top of the range | J61: =$J$52 -> PPS | L61: =IFERROR(L60/$Z$5,L60) -> m | Q61: =$J$52 -> PPS | S61: =IFERROR(S60/$Z$5,S60) -> m | X61: =$J$52 -> PPS | Z61: =IFERROR(Z60/$Z$5,Z60) -> m | AE61: =$J$52 -> PPS | AG61: =IFERROR(AG60/$Z$5,AG60) -> m
L63: ISCED 02 | Q63: ISCED 1 | X63: ISCED 24 | AE63: ISCED 34
B64: % teachers paid on this range | L64: m | Q64: m | X64: m | AE64: m
B65: Average nr of years to reach the top | L65: m | Q65: m | X65: m | AE65: m
B67: Salary range for teachers with a higher qualification (when most prevalent)
J69: ISCED 02 | Q69: ISCED 1 | X69: ISCED 24 | AE69: ISCED 34
B70: Minimum qualification to enter the teaching profession | J70: – | Q70: – | X70: – | AE70: –
B73: FALSE | C73: TRUE | D73: FALSE | J73: ISCED 02 | Q73: ISCED 1 | X73: ISCED 24 | AE73: ISCED 34
B74: Starting salary | J74: EUR | L74: =IFERROR(L75/$T$5,L75) -> – | Q74: EUR | S74: =IFERROR(S75/$T$5,S75) -> – | X74: EUR | Z74: =IFERROR(Z75/$T$5,Z75) -> – | AE74: EUR | AG74: =IFERROR(AG75/$T$5,AG75) -> –
B75: =$B$50 -> Starting salary | J75: =$J$5 -> BGN | L75: – | Q75: =$J$51 -> BGN | S75: – | X75: =$J$5 -> BGN | Z75: – | AE75: =$J$5 -> BGN | AG75: –
B76: =$B$50 -> Starting salary | J76: PPS | L76: =IFERROR(L75/$Z$5,L75) -> – | Q76: =$J$52 -> PPS | S76: =IFERROR(S75/$Z$5,S75) -> – | X76: =$J$52 -> PPS | Z76: =IFERROR(Z75/$Z$5,Z75) -> – | AE76: =$J$52 -> PPS | AG76: =IFERROR(AG75/$Z$5,AG75) -> –
B77: After 10 years' experience | J77: EUR | L77: =IFERROR(L78/$T$5,L78) -> – | Q77: EUR | S77: =IFERROR(S78/$T$5,S78) -> – | X77: EUR | Z77: =IFERROR(Z78/$T$5,Z78) -> – | AE77: EUR | AG77: =IFERROR(AG78/$T$5,AG78) -> –
B78: =$B$53 -> After 10 years' experience | J78: =$J$5 -> BGN | L78: – | Q78: =$J$51 -> BGN | S78: – | X78: =$J$5 -> BGN | Z78: – | AE78: =$J$5 -> BGN | AG78: –
B79: =$B$53 -> After 10 years' experience | J79: =$J$52 -> PPS | L79: =IFERROR(L78/$Z$5,L78) -> – | Q79: =$J$52 -> PPS | S79: =IFERROR(S78/$Z$5,S78) -> – | X79: =$J$52 -> PPS | Z79: =IFERROR(Z78/$Z$5,Z78) -> – | AE79: =$J$52 -> PPS | AG79: =IFERROR(AG78/$Z$5,AG78) -> –
B80: After 15 years' experience | J80: EUR | L80: =IFERROR(L81/$T$5,L81) -> – | Q80: EUR | S80: =IFERROR(S81/$T$5,S81) -> – | X80: EUR | Z80: =IFERROR(Z81/$T$5,Z81) -> – | AE80: EUR | AG80: =IFERROR(AG81/$T$5,AG81) -> –
B81: =$B$56 -> After 15 years' experience | J81: =$J$5 -> BGN | L81: – | Q81: =$J$51 -> BGN | S81: – | X81: =$J$5 -> BGN | Z81: – | AE81: =$J$5 -> BGN | AG81: –
B82: =$B$56 -> After 15 years' experience | J82: =$J$52 -> PPS | L82: =IFERROR(L81/$Z$5,L81) -> – | Q82: =$J$52 -> PPS | S82: =IFERROR(S81/$Z$5,S81) -> – | X82: =$J$52 -> PPS | Z82: =IFERROR(Z81/$Z$5,Z81) -> – | AE82: =$J$52 -> PPS | AG82: =IFERROR(AG81/$Z$5,AG81) -> –
B83: At the top of the range | J83: EUR | L83: =IFERROR(L84/$T$5,L84) -> – | Q83: EUR | S83: =IFERROR(S84/$T$5,S84) -> – | X83: EUR | Z83: =IFERROR(Z84/$T$5,Z84) -> – | AE83: EUR | AG83: =IFERROR(AG84/$T$5,AG84) -> –
B84: =$B$59 -> At the top of the range | J84: =$J$5 -> BGN | L84: – | Q84: =$J$51 -> BGN | S84: – | X84: =$J$5 -> BGN | Z84: – | AE84: =$J$5 -> BGN | AG84: –
B85: =$B$59 -> At the top of the range | J85: =$J$52 -> PPS | L85: =IFERROR(L84/$Z$5,L84) -> – | Q85: =$J$52 -> PPS | S85: =IFERROR(S84/$Z$5,S84) -> – | X85: =$J$52 -> PPS | Z85: =IFERROR(Z84/$Z$5,Z84) -> – | AE85: =$J$52 -> PPS | AG85: =IFERROR(AG84/$Z$5,AG84) -> –
L87: ISCED 02 | Q87: ISCED 1 | X87: ISCED 24 | AE87: ISCED 34
B88: % teachers paid on this range | L88: – | Q88: – | X88: – | AE88: –
B89: Average nr of years to reach the top | L89: – | Q89: – | X89: – | AE89: –
B91: Source | J91: The frame for the statutory salary is regulated by Ordinance 4/2017 issued by the Minister of Education and Science. Collective agreements are regularly signed between the Minister of Education and Science and teacher trade unions. Pre-school and School Education Act (https://www.lex.bg/bg/laws/ldoc/2136641509); Ordinance 4/2017 for the work and remuneration rate (https://www.lex.bg/bg/laws/ldoc/2137089558); Ordinance 15/2019 for the statute and the professional development of the teachers, heads of schools and other pedagogical staff (https://www.lex.bg/bg/laws/ldoc/2137195301); Ordinance on the State requirements for acquiring the 'teacher' professional qualification (https://www.lex.bg/bg/laws/ldoc/2136927893); The 2020 collective agreement and its annexes (https://www.mon.bg/upload/23723/KTD-197_17082020.pdf; https://www.mon.bg/upload/28599/aneks_112021_kamKTD197_11112021.pdf; https://www.mon.bg/upload/24694/aneks_07122020_kamKTD197_17082020.pdf).
B92: Explanatory notes | J92: Regulations only set the minimum statutory salary for the three levels of a teacher’s career: ‘teacher’, ‘senior teacher’ and ‘chief teacher’. The salary after 10 years corresponds to the minimum salary of a ‘senior teachers’, and the salary after 15 years to the minimum salary of a ‘chief teacher’.
A94: Average annual gross actual salaries of teachers in public schools | AE94: 2020/2021
B97: FALSE | C97: TRUE | D97: FALSE | J97: ISCED 02 | Q97: ISCED 1 | X97: ISCED 24 | AE97: ISCED 34
B98: Teachers aged 25-64 | J98: EUR | L98: =IFERROR(L99/$AF$5,L99) -> m | Q98: EUR | S98: =IFERROR(S99/$AF$5,S99) -> m | X98: EUR | Z98: =IFERROR(Z99/$AF$5,Z99) -> m | AE98: EUR | AG98: =IFERROR(AG99/$AF$5,AG99) -> m
B99: =B98 -> Teachers aged 25-64 | J99: =$J$5 -> BGN | L99: m | Q99: =$J$51 -> BGN | S99: m | X99: =$J$5 -> BGN | Z99: m | AE99: =$J$5 -> BGN | AG99: m
B100: =B99 -> Teachers aged 25-64 | J100: PPS | L100: =IFERROR(L99/$Z$5,L99) -> m | Q100: =$J$52 -> PPS | S100: =IFERROR(S99/$Z$5,S99) -> m | X100: =$J$52 -> PPS | Z100: =IFERROR(Z99/$Z$5,Z99) -> m | AE100: =$J$52 -> PPS | AG100: =IFERROR(AG99/$Z$5,AG99) -> m
B101: Teachers aged 25-34 | J101: EUR | L101: =IFERROR(L102/$AF$5,L102) -> m | Q101: EUR | S101: =IFERROR(S102/$AF$5,S102) -> m | X101: EUR | Z101: =IFERROR(Z102/$AF$5,Z102) -> m | AE101: EUR | AG101: =IFERROR(AG102/$AF$5,AG102) -> m
B102: =B101 -> Teachers aged 25-34 | J102: =$J$5 -> BGN | L102: m | Q102: =$J$51 -> BGN | S102: m | X102: =$J$5 -> BGN | Z102: m | AE102: =$J$5 -> BGN | AG102: m
B103: =B102 -> Teachers aged 25-34 | J103: =$J$52 -> PPS | L103: =IFERROR(L102/$Z$5,L102) -> m | Q103: =$J$52 -> PPS | S103: =IFERROR(S102/$Z$5,S102) -> m | X103: =$J$52 -> PPS | Z103: =IFERROR(Z102/$Z$5,Z102) -> m | AE103: =$J$52 -> PPS | AG103: =IFERROR(AG102/$Z$5,AG102) -> m
B104: Teachers aged 35-44 | J104: EUR | L104: =IFERROR(L105/$AF$5,L105) -> m | Q104: EUR | S104: =IFERROR(S105/$AF$5,S105) -> m | X104: EUR | Z104: =IFERROR(Z105/$AF$5,Z105) -> m | AE104: EUR | AG104: =IFERROR(AG105/$AF$5,AG105) -> m
B105: =B104 -> Teachers aged 35-44 | J105: =$J$5 -> BGN | L105: m | Q105: =$J$51 -> BGN | S105: m | X105: =$J$5 -> BGN | Z105: m | AE105: =$J$5 -> BGN | AG105: m
B106: =B105 -> Teachers aged 35-44 | J106: =$J$52 -> PPS | L106: =IFERROR(L105/$Z$5,L105) -> m | Q106: =$J$52 -> PPS | S106: =IFERROR(S105/$Z$5,S105) -> m | X106: =$J$52 -> PPS | Z106: =IFERROR(Z105/$Z$5,Z105) -> m | AE106: =$J$52 -> PPS | AG106: =IFERROR(AG105/$Z$5,AG105) -> m
B107: Teachers aged 45-54 | J107: EUR | L107: =IFERROR(L108/$AF$5,L108) -> m | Q107: EUR | S107: =IFERROR(S108/$AF$5,S108) -> m | X107: EUR | Z107: =IFERROR(Z108/$AF$5,Z108) -> m | AE107: EUR | AG107: =IFERROR(AG108/$AF$5,AG108) -> m
B108: =B107 -> Teachers aged 45-54 | J108: =$J$5 -> BGN | L108: m | Q108: =$J$51 -> BGN | S108: m | X108: =$J$5 -> BGN | Z108: m | AE108: =$J$5 -> BGN | AG108: m
B109: =B108 -> Teachers aged 45-54 | J109: =$J$52 -> PPS | L109: =IFERROR(L108/$Z$5,L108) -> m | Q109: =$J$52 -> PPS | S109: =IFERROR(S108/$Z$5,S108) -> m | X109: =$J$52 -> PPS | Z109: =IFERROR(Z108/$Z$5,Z108) -> m | AE109: =$J$52 -> PPS | AG109: =IFERROR(AG108/$Z$5,AG108) -> m
B110: Teachers aged 55-64 | J110: EUR | L110: =IFERROR(L111/$AF$5,L111) -> m | Q110: EUR | S110: =IFERROR(S111/$AF$5,S111) -> m | X110: EUR | Z110: =IFERROR(Z111/$AF$5,Z111) -> m | AE110: EUR | AG110: =IFERROR(AG111/$AF$5,AG111) -> m
B111: =B110 -> Teachers aged 55-64 | J111: =$J$5 -> BGN | L111: m | Q111: =$J$51 -> BGN | S111: m | X111: =$J$5 -> BGN | Z111: m | AE111: =$J$5 -> BGN | AG111: m
B112: =B111 -> Teachers aged 55-64 | J112: =$J$52 -> PPS | L112: =IFERROR(L111/$Z$5,L111) -> m | Q112: =$J$52 -> PPS | S112: =IFERROR(S111/$Z$5,S111) -> m | X112: =$J$52 -> PPS | Z112: =IFERROR(Z111/$Z$5,Z111) -> m | AE112: =$J$52 -> PPS | AG112: =IFERROR(AG111/$Z$5,AG111) -> m
B115: Source | J115: –
B116: Explanatory notes | J116: –
A119: Allowances for teachers in public schools | B119: Salary range for teachers with a higher qualification (when most prevalent) | AE119: 2020/2021
B120: Allowances related to other tasks and responsibilities | N120: 1 | U120: 2
O122: Authority level | V122: Type of financial compensation | AD122: ISCED levels
AD123: 02 | AF123: 1 | AH123: 24 | AJ123: 34
B124: Participation in school or other management tasks in addition to teaching duties | O124: Top-level authority | V124: Incidental payments | AD124: ● | AF124: ● | AH124: ● | AJ124: ●
B125: Teaching more classes or hours than required by full-time contract | O125: Top-level authority | V125: Incidental payments | AD125: ● | AF125: ● | AH125: ● | AJ125: ●
B126: Students counselling | O126: Top-level authority | V126: Regular additional payments | AD126: ● | AF126: ● | AH126: ● | AJ126: ●
B127: Engaging in extracurricular activities | O127: Top-level authority | V127: Regular additional payments | AD127: ● | AF127: ● | AH127: ● | AJ127: ●
B128: Special tasks | O128: Top-level authority | V128: Regular additional payments | AD128: ● | AF128: ● | AH128: ● | AJ128: ●
B129: Class teacher / form teacher | O129: Top-level authority | V129: Regular additional payments | AD129: ● | AF129: ● | AH129: ● | AJ129: ●
B130: Supporting mentoring / induction programmes | O130: Top-level authority | V130: Regular additional payments | AD130: ● | AF130: ● | AH130: ● | AJ130: ●
B131: Other | O131: Top-level authority | V131: Incidental payments | AD131: ● | AF131: ● | AH131: ● | AJ131: ●
O133: Explanatory notes
B134: =B124 -> Participation in school or other management tasks in addition to teaching duties | O134: At least 70% of the basic salary.
B135: Teaching more classes or hours than required by full-time contract | O135: For teaching extra hours and also for work with students that need learning support depending on the educational qualification degrees of the teacher: at least BGN 6.30 - 7.00 - 8.50 per hour.
B136: Students counselling | O136: For the pedagogical specialists in centers for personal development support: at least BGN 15 per month.
B137: Engaging in extracurricular activities | O137: For participation in teams for joint work of institutions on including and integrating children and pupils in the education system: additional remuneration shall be paid, in accordance with the internal rules.
B138: Special tasks | O138: For organising and keeping updated the obligatory school documentation, depending of the activity and position: at least BGN 15-22-30-46 per month or at least BGN 60 per year.
B139: Class teacher / form teacher | O139: At least BGN 46 per month.
B140: Supporting mentoring / induction programmes | O140: For teachers' mentoring: BGN 60 per month up to 1 year
B141: Other | O141: For evaluation/assessment of pupils' performance within olympiads, competitions, national external evaluation, assessments of pupils attending other forms of education: the payment corresponds to the rates for overtime hours. For additional training of students who have been absent for more than 10 school days due to illness, for counselling of students who have switched to an independent form of education due to health reasons and for conducting additional training in academic subjects when teaching students non-synchronously at a distance in an electronic environment: 15 BGN per hour.
B143: Allowances related to qualifications, training and performance | N143: 0 | U143: 0
O145: Authority level | V145: Type of financial compensation | AD145: ISCED levels
AD146: 02 | AF146: 1 | AH146: 24 | AJ146: 34
B147: Further formal qualifications | O147: Collective agreement | V147: Regular additional payments | AD147: ● | AF147: ● | AH147: ● | AJ147: ●
B148: Successful completion of continuing professional development (CPD) activities | O148: Collective agreement | V148: Regular additional payments | AD148: ● | AF148: ● | AH148: ● | AJ148: ●
B149: Outstanding performance | O149: a | V149: a | AD149: ● | AF149: ● | AH149: ● | AJ149: ●
B150: Other | O150: a | V150: a | AD150: ● | AF150: ● | AH150: ● | AJ150: ●
O152: Explanatory notes
B153: =B147 -> Further formal qualifications | O153: For a PhD degree: between BGN 130 and 160. For teaching a subject in a foreign language: minimum BGN 30.
B154: Successful completion of continuing professional development (CPD) activities | O154: The regulations established the exact amounts - between min BGN 30 and 90 depending on the level of the professional qualification degree (PQD). PQD V: at least BGN 30; PQD IV: at least BGN 35; PQD III: at least BGN 50; PQD II: at least BGN 70 and PQD I: at least BGN 90.
B155: Outstanding performance | O155: –
B156: Other | O156: –
B158: Allowances related to teaching conditions | N158: 0 | U158: 0
O160: Authority level | V160: Type of financial compensation | AD160: ISCED levels
AD161: 02 | AF161: 1 | AH161: 24 | AJ161: 34
B162: Teaching students with special educational needs | O162: Top-level authority | V162: Regular additional payments | AD162: ● | AF162: ● | AH162: ● | AJ162: ●
B163: Teaching in a disadvantaged, remote or high cost area | O163: Top-level authority | V163: Regular additional payments | AD163: ● | AF163: ● | AH163: ● | AJ163: ●
B164: Other | O164: Top-level authority | V164: Incidental payments | AD164: ● | AF164: ● | AH164: ● | AJ164: ●
O166: Explanatory notes
B167: =B162 -> Teaching students with special educational needs | O167: At least BGN 30 for work with pupils with special educational needs.
B168: Teaching in a disadvantaged, remote or high cost area | O168: For work under specific conditions, paid to the staff in the boarding schools providing education depending on the kind of the school: not less than 10% - 12% and 20% of the minimum basic salary for the respective position. For work in centres for special educational support – not less than 10% of the minimum basic salary for the respective position.
B169: Other | O169: For the duration of distance learning in an electronic environment in the conditions of pandemics, epidemics, etc., BGN 30 per month shall be paid as additional remuneration to pedagogical specialists to compensate the cost of consumables.
C171: Other criteria
O173: Authority level | V173: Type of financial compensation | AD173: ISCED levels
AD174: 02 | AF174: 1 | AH174: 24 | AJ174: 34
B175: Residence allowance | O175: a | V175: a | AD175: ● | AF175: ● | AH175: ● | AJ175: ●
B176: Family status | O176: a | V176: a | AD176: ● | AF176: ● | AH176: ● | AJ176: ●
B177: Other | O177: a | V177: a | AD177: ● | AF177: ● | AH177: ● | AJ177: ●
O179: Explanatory notes
B180: =B175 -> Residence allowance | O180: –
B181: Family status | O181: –
B182: Other | O182: –
B184: Source | O184: Ordinance 4/2017 for the work and remuneration rate (https://www.lex.bg/bg/laws/ldoc/2137089558); The 2020 collective agreement and its annexes (https://www.mon.bg/upload/23723/KTD-197_17082020.pdf; https://www.mon.bg/upload/28599/aneks_112021_kamKTD197_11112021.pdf; https://www.mon.bg/upload/24694/aneks_07122020_kamKTD197_17082020.pdf); Ordinance 4/2017 regulates the state educational standard for the norms and remuneration rate in the institutions in the system of pre-school and school education, including kindergartens and schools. The types of allowances and additional payments of teaching staff and non-teaching staff, with the exception of the head of schools, and the mechanisms for determining their amount shall be agreed in a collective agreement and/or included in the internal salary rules of each institution. For the institutions applying the system of delegated budgets, the specific amounts of allowances and additional payments is agreed by the director in accordance with the collective agreement and/or the internal salary rules within the framework of the approved budget of the institution and included in the individual employment contract.
A186: 2. School heads
A188: Annual gross statutory salaries of school heads in public schools | AE188: 2020/2021
J189: ISCED 02 | Q189: ISCED 1 | X189: ISCED 24 | AE189: ISCED 34
B190: Authority level determining the statutory salaries of school heads | J190: Provincial/regional authorities | Q190: Top-level authority | X190: Top-level authority | AE190: Top-level authority
J192: ISCED 02 | Q192: ISCED 1 | X192: ISCED 24 | AE192: ISCED 34
B193: Minimum qualification to become a school head | J193: Master's degree (ISCED 7) + 5 years of teaching
B195: Single or lowest salary range (when more than one)
J197: ISCED 02 | Q197: ISCED 1 | X197: ISCED 24 | AE197: ISCED 34
B198: Type of school | J198: Kindergarten or basic school (preparatory groups + grades I – IV) | Q198: Basic school (grades I – VII) | X198: Secondary school (grades I – XII) | AE198: Secondary and vocational school (grades VIII – XII)
B199: TRUE | C199: TRUE | D199: FALSE
B200: Minimum salary | J200: EUR | L200: =IFERROR(L201/$T$5,L201) -> 9418.140914 | Q200: EUR | S200: =IFERROR(S201/$T$5,S201) -> 10307.80243 | X200: EUR | Z200: =IFERROR(Z201/$T$5,Z201) -> 11780.34564 | AE200: EUR | AG200: =IFERROR(AG201/$T$5,AG201) -> 10001.0226
B201: =B200 -> Minimum salary | J201: =$J$5 -> BGN | L201: 18420 | Q201: =$J$5 -> BGN | S201: 20160 | X201: =$J$51 -> BGN | Z201: 23040 | AE201: =$J$51 -> BGN | AG201: 19560
B202: =B201 -> Minimum salary | J202: =$J$52 -> PPS | L202: =IFERROR(L201/$Z$5,L201) -> 18468.01684 | Q202: =$J$52 -> PPS | S202: =IFERROR(S201/$Z$5,S201) -> 20212.55264 | X202: =$J$52 -> PPS | Z202: =IFERROR(Z201/$Z$5,Z201) -> 23100.06016 | AE202: =$J$52 -> PPS | AG202: =IFERROR(AG201/$Z$5,AG201) -> 19610.98857
B203: Maximum salary | J203: EUR | L203: =IFERROR(L204/$T$5,L204) -> 14848.14398 | Q203: EUR | S203: =IFERROR(S204/$T$5,S204) -> 14848.14398 | X203: EUR | Z203: =IFERROR(Z204/$T$5,Z204) -> 15246.95777 | AE203: EUR | AG203: =IFERROR(AG204/$T$5,AG204) -> 15246.95777
B204: =B203 -> Maximum salary | J204: =$J$5 -> BGN | L204: 29040 | Q204: =$J$5 -> BGN | S204: 29040 | X204: =$J$51 -> BGN | Z204: 29820 | AE204: =$J$51 -> BGN | AG204: 29820
B205: =B204 -> Maximum salary | J205: =$J$52 -> PPS | L205: =IFERROR(L204/$Z$5,L204) -> 29115.70082 | Q205: =$J$52 -> PPS | S205: =IFERROR(S204/$Z$5,S204) -> 29115.70082 | X205: =$J$52 -> PPS | Z205: =IFERROR(Z204/$Z$5,Z204) -> 29897.73411 | AE205: =$J$52 -> PPS | AG205: =IFERROR(AG204/$Z$5,AG204) -> 29897.73411
B206: Criteria for progression in this salary range | J206: Number of pupils enrolled in the kindergarten/number of pupils enrolled and type of school | Q206: Number of pupils and type of school | X206: Number of pupils and type of school | AE206: Number of pupils and type of school
B207: % school heads paid on this range | J207: The scales for defining the kindergarten heads' statutory salary vary slightly among the municipalities depending on their economic capacity. All school heads are paid following same regulation. | Q207: All school heads are paid following same regulation. | X207: All school heads are paid following same regulation. | AE207: All school heads are paid following same regulation.
B209: Highest salary range
J211: ISCED 02 | Q211: ISCED 1 | X211: ISCED 24 | AE211: ISCED 34
B212: Type of school | J212: – | Q212: – | X212: – | AE212: –
B213: FALSE | C213: TRUE | D213: FALSE
B214: Minimum salary | J214: EUR | L214: =IF(IFERROR(L215/$T$5,L215)=0,"–",IFERROR(L215/$T$5,L215)) -> – | Q214: EUR | S214: =IF(IFERROR(S215/$T$5,S215)=0,"–",IFERROR(S215/$T$5,S215)) -> – | X214: EUR | Z214: =IF(IFERROR(Z215/$T$5,Z215)=0,"–",IFERROR(Z215/$T$5,Z215)) -> – | AE214: EUR | AG214: =IF(IFERROR(AG215/$T$5,AG215)=0,"–",IFERROR(AG215/$T$5,AG215)) -> –
B215: =B214 -> Minimum salary | J215: =$J$5 -> BGN | L215: – | Q215: =$J$5 -> BGN | S215: – | X215: =$J$51 -> BGN | Z215: – | AE215: =$J$51 -> BGN | AG215: –
B216: =B215 -> Minimum salary | J216: =$J$52 -> PPS | L216: =IFERROR(L215/$Z$5,L215) -> – | Q216: =$J$52 -> PPS | S216: =IFERROR(S215/$Z$5,S215) -> – | X216: =$J$52 -> PPS | Z216: =IFERROR(Z215/$Z$5,Z215) -> – | AE216: =$J$52 -> PPS | AG216: =IFERROR(AG215/$Z$5,AG215) -> –
B217: Maximum salary | J217: EUR | L217: =IFERROR(L218/$T$5,L218) -> – | Q217: EUR | S217: =IFERROR(S218/$T$5,S218) -> – | X217: EUR | Z217: =IFERROR(Z218/$T$5,Z218) -> – | AE217: EUR | AG217: =IFERROR(AG218/$T$5,AG218) -> –
B218: =B217 -> Maximum salary | J218: =$J$5 -> BGN | L218: – | Q218: =$J$5 -> BGN | S218: – | X218: =$J$51 -> BGN | Z218: – | AE218: =$J$51 -> BGN | AG218: –
B219: =B218 -> Maximum salary | J219: =$J$52 -> PPS | L219: =IFERROR(L218/$Z$5,L218) -> – | Q219: =$J$52 -> PPS | S219: =IFERROR(S218/$Z$5,S218) -> – | X219: =$J$52 -> PPS | Z219: =IFERROR(Z218/$Z$5,Z218) -> – | AE219: =$J$52 -> PPS | AG219: =IFERROR(AG218/$Z$5,AG218) -> –
B220: Criteria for progression in this salary range | J220: – | Q220: – | X220: – | AE220: –
B221: % school heads paid on this range | J221: – | Q221: – | X221: – | AE221: –
B223: Most prevalent range (when none of the above)
J225: ISCED 02 | Q225: ISCED 1 | X225: ISCED 24 | AE225: ISCED 34
B226: Type of school | J226: – | Q226: – | X226: – | AE226: –
B227: FALSE | C227: TRUE | D227: FALSE
B228: Minimum salary | J228: EUR | L228: =IFERROR(L229/$T$5,L229) -> – | Q228: EUR | S228: =IFERROR(S229/$T$5,S229) -> – | X228: EUR | Z228: =IFERROR(Z229/$T$5,Z229) -> – | AE228: EUR | AG228: =IFERROR(AG229/$T$5,AG229) -> –
B229: =B228 -> Minimum salary | J229: =$J$5 -> BGN | L229: – | Q229: =$J$5 -> BGN | S229: – | X229: =$J$51 -> BGN | Z229: – | AE229: =$J$51 -> BGN | AG229: –
B230: =B229 -> Minimum salary | J230: =$J$52 -> PPS | L230: =IFERROR(L229/$Z$5,L229) -> – | Q230: =$J$52 -> PPS | S230: =IFERROR(S229/$Z$5,S229) -> – | X230: =$J$52 -> PPS | Z230: =IFERROR(Z229/$Z$5,Z229) -> – | AE230: =$J$52 -> PPS | AG230: =IFERROR(AG229/$Z$5,AG229) -> –
B231: Maximum salary | J231: EUR | L231: =IFERROR(L232/$T$5,L232) -> – | Q231: EUR | S231: =IFERROR(S232/$T$5,S232) -> – | X231: EUR | Z231: =IFERROR(Z232/$T$5,Z232) -> – | AE231: EUR | AG231: =IFERROR(AG232/$T$5,AG232) -> –
B232: =B231 -> Maximum salary | J232: =$J$5 -> BGN | L232: – | Q232: =$J$5 -> BGN | S232: – | X232: =$J$51 -> BGN | Z232: – | AE232: =$J$51 -> BGN | AG232: –
B233: =B232 -> Maximum salary | J233: =$J$52 -> PPS | L233: =IFERROR(L232/$Z$5,L232) -> – | Q233: =$J$52 -> PPS | S233: =IFERROR(S232/$Z$5,S232) -> – | X233: =$J$52 -> PPS | Z233: =IFERROR(Z232/$Z$5,Z232) -> – | AE233: =$J$52 -> PPS | AG233: =IFERROR(AG232/$Z$5,AG232) -> –
B234: Criteria for progression in this salary range | J234: – | Q234: – | X234: – | AE234: –
B235: % school heads paid on this range | J235: – | Q235: – | X235: – | AE235: –
B238: Source | J238: Ordinance 15/2019 for the statute and the professional development of the teachers, heads of schools and other pedagogical staff (https://www.mon.bg/upload/20374/nrdb15_22072019_statut_uchiteli.pdf); Ordinance RD09-137 dated 15.01.2021 of the Minister of Education and Science for the adoption of rules determining the salaries of the heads of municipal, State schools and other units within the educational system (https://www.mon.bg/upload/24905/zap137_zapl-direktori-150121.pdf).
B239: Explanatory notes | J239: –
A241: Average annual gross actual salaries of school heads in public schools | AE241: 2020/2021
B244: FALSE | C244: TRUE | D244: FALSE | J244: ISCED 02 | Q244: ISCED 1 | X244: ISCED 24 | AE244: ISCED 34
B245: School heads aged 25-64 | J245: EUR | L245: =IFERROR(L246/$AF$5,L246) -> m | Q245: EUR | S245: =IFERROR(S246/$AF$5,S246) -> m | X245: EUR | Z245: =IFERROR(Z246/$AF$5,Z246) -> m | AE245: EUR | AG245: =IFERROR(AG246/$AF$5,AG246) -> m
B246: =B245 -> School heads aged 25-64 | J246: =$J$5 -> BGN | L246: m | Q246: =$J$51 -> BGN | S246: m | X246: =$J$51 -> BGN | Z246: m | AE246: =$J$51 -> BGN | AG246: m
B247: =B246 -> School heads aged 25-64 | J247: PPS | L247: =IFERROR(L246/$Z$5,L246) -> m | Q247: =$J$52 -> PPS | S247: =IFERROR(S246/$Z$5,S246) -> m | X247: =$J$52 -> PPS | Z247: =IFERROR(Z246/$Z$5,Z246) -> m | AE247: =$J$52 -> PPS | AG247: =IFERROR(AG246/$Z$5,AG246) -> m
B248: School heads aged 25-34 | J248: EUR | L248: =IFERROR(L249/$AF$5,L249) -> m | Q248: EUR | S248: =IFERROR(S249/$AF$5,S249) -> m | X248: EUR | Z248: =IFERROR(Z249/$AF$5,Z249) -> m | AE248: EUR | AG248: =IFERROR(AG249/$AF$5,AG249) -> m
B249: =B248 -> School heads aged 25-34 | J249: =$J$5 -> BGN | L249: m | Q249: =$J$5 -> BGN | S249: m | X249: =$J$51 -> BGN | Z249: m | AE249: =$J$51 -> BGN | AG249: m
B250: =B249 -> School heads aged 25-34 | J250: =$J$52 -> PPS | L250: =IFERROR(L249/$Z$5,L249) -> m | Q250: =$J$52 -> PPS | S250: =IFERROR(S249/$Z$5,S249) -> m | X250: =$J$52 -> PPS | Z250: =IFERROR(Z249/$Z$5,Z249) -> m | AE250: =$J$52 -> PPS | AG250: =IFERROR(AG249/$Z$5,AG249) -> m
B251: School heads aged 35-44 | J251: EUR | L251: =IFERROR(L252/$AF$5,L252) -> m | Q251: EUR | S251: =IFERROR(S252/$AF$5,S252) -> m | X251: EUR | Z251: =IFERROR(Z252/$AF$5,Z252) -> m | AE251: EUR | AG251: =IFERROR(AG252/$AF$5,AG252) -> m
B252: =B251 -> School heads aged 35-44 | J252: =$J$5 -> BGN | L252: m | Q252: =$J$5 -> BGN | S252: m | X252: =$J$51 -> BGN | Z252: m | AE252: =$J$51 -> BGN | AG252: m
B253: =B252 -> School heads aged 35-44 | J253: =$J$52 -> PPS | L253: =IFERROR(L252/$Z$5,L252) -> m | Q253: =$J$52 -> PPS | S253: =IFERROR(S252/$Z$5,S252) -> m | X253: =$J$52 -> PPS | Z253: =IFERROR(Z252/$Z$5,Z252) -> m | AE253: =$J$52 -> PPS | AG253: =IFERROR(AG252/$Z$5,AG252) -> m
B254: School heads aged 45-54 | J254: EUR | L254: =IFERROR(L255/$AF$5,L255) -> m | Q254: EUR | S254: =IFERROR(S255/$AF$5,S255) -> m | X254: EUR | Z254: =IFERROR(Z255/$AF$5,Z255) -> m | AE254: EUR | AG254: =IFERROR(AG255/$AF$5,AG255) -> m
B255: =B254 -> School heads aged 45-54 | J255: =$J$5 -> BGN | L255: m | Q255: =$J$5 -> BGN | S255: m | X255: =$J$51 -> BGN | Z255: m | AE255: =$J$51 -> BGN | AG255: m
B256: =B255 -> School heads aged 45-54 | J256: =$J$52 -> PPS | L256: =IFERROR(L255/$Z$5,L255) -> m | Q256: =$J$52 -> PPS | S256: =IFERROR(S255/$Z$5,S255) -> m | X256: =$J$52 -> PPS | Z256: =IFERROR(Z255/$Z$5,Z255) -> m | AE256: =$J$52 -> PPS | AG256: =IFERROR(AG255/$Z$5,AG255) -> m
... 59 more rows

Sheet CH
A1: Switzerland | AK1: 2020/2021
B3: a | C3: not applicable | J3: m | K3: not available
B5: National currency: | J5: CHF | T5: 1.1124 | Z5: 1.93 | AF5: 1.1124
B7: Contents
D8: =$A$37 -> 1. Teachers
D9: =$A$39 -> Annual gross statutory salaries of teachers in public schools
F11: =$B$43 -> Salary range for teachers with the minimum qualification
F12: =$B$67 -> Salary range for teachers with a higher qualification (when most prevalent)
D13: =$A$94 -> Average annual gross actual salaries of teachers in public schools
D14: =$A$119 -> Allowances for teachers in public schools
F16: =$B$120 -> Allowances related to other tasks and responsibilities
F17: =$B$143 -> Allowances related to qualifications, training and performance
F18: =$B$158 -> Allowances related to teaching conditions
F19: =$C$171 -> Other criteria
D20: =$A$186 -> 2. School heads
D21: =$A$188 -> Annual gross statutory salaries of school heads in public schools
F23: =$B$195 -> Single or lowest salary range (when more than one)
F24: =$B$209 -> Highest salary range
F25: =$B$223 -> Most prevalent range (when none of the above)
D27: =$A$241 -> Average annual gross actual salaries of school heads in public schools
D29: =$A$266 -> Allowances for school heads in public schools
F31: =$B$267 -> Allowances related to other tasks and responsibilities
F32: =$B$290 -> Allowances related to qualifications, training and performance
F33: =$B$305 -> Allowances related to working conditions
F34: =$B$318 -> Other criteria
A37: 1. Teachers
A39: Annual gross statutory salaries of teachers in public schools | AE39: 2020/2021
J40: ISCED 02 | Q40: ISCED 1 | X40: ISCED 24 | AE40: ISCED 34
B41: Authority level determining the statutory salaries of teachers | J41: Top-level authority
B43: Salary range for teachers with the minimum qualification
J45: ISCED 02 | Q45: ISCED 1 | X45: ISCED 24 | AE45: ISCED 34
B46: Minimum qualification to enter the teaching profession | J46: Bachelor's degree (ISCED 6) | Q46: Bachelor's degree (ISCED 6) | X46: Master's degree (ISCED 7) | AE46: Master's degree (ISCED 7)
B49: TRUE | C49: TRUE | D49: TRUE | J49: ISCED 02 | Q49: ISCED 1 | X49: ISCED 24 | AE49: ISCED 34
B50: Starting salary | J50: EUR | L50: =IFERROR(L51/$T$5,L51) -> 66972.31212 | Q50: EUR | S50: =IFERROR(S51/$T$5,S51) -> 72366.05538 | X50: EUR | Z50: =IFERROR(Z51/$T$5,Z51) -> 80546.56598 | AE50: EUR | AG50: =IFERROR(AG51/$T$5,AG51) -> 90704.78245
B51: =$B$50 -> Starting salary | J51: =$J$5 -> CHF | L51: 74500 | Q51: =$J$5 -> CHF | S51: 80500 | X51: =$J$5 -> CHF | Z51: 89600 | AE51: =$J$5 -> CHF | AG51: 100900
B52: =$B$50 -> Starting salary | J52: PPS | L52: =IFERROR(L51/$Z$5,L51) -> 38601.03627 | Q52: =$J$52 -> PPS | S52: =IFERROR(S51/$Z$5,S51) -> 41709.84456 | X52: =$J$52 -> PPS | Z52: =IFERROR(Z51/$Z$5,Z51) -> 46424.87047 | AE52: =$J$52 -> PPS | AG52: =IFERROR(AG51/$Z$5,AG51) -> 52279.79275
B53: After 10 years' experience | J53: EUR | L53: =IFERROR(L54/$T$5,L54) -> 83333.33333 | Q53: EUR | S53: =IFERROR(S54/$T$5,S54) -> 89985.61668 | X53: EUR | Z53: =IFERROR(Z54/$T$5,Z54) -> 102750.8091 | AE53: EUR | AG53: =IFERROR(AG54/$T$5,AG54) -> 117134.1244
B54: =$B$53 -> After 10 years' experience | J54: =$J$5 -> CHF | L54: 92700 | Q54: =$J$5 -> CHF | S54: 100100 | X54: =$J$5 -> CHF | Z54: 114300 | AE54: =$J$5 -> CHF | AG54: 130300
B55: =$B$53 -> After 10 years' experience | J55: =$J$52 -> PPS | L55: =IFERROR(L54/$Z$5,L54) -> 48031.08808 | Q55: =$J$52 -> PPS | S55: =IFERROR(S54/$Z$5,S54) -> 51865.28497 | X55: =$J$52 -> PPS | Z55: =IFERROR(Z54/$Z$5,Z54) -> 59222.79793 | AE55: =$J$52 -> PPS | AG55: =IFERROR(AG54/$Z$5,AG54) -> 67512.95337
B56: After 15 years' experience | J56: EUR | L56: =IFERROR(L57/$T$5,L57) -> m | Q56: EUR | S56: =IFERROR(S57/$T$5,S57) -> m | X56: EUR | Z56: =IFERROR(Z57/$T$5,Z57) -> m | AE56: EUR | AG56: =IFERROR(AG57/$T$5,AG57) -> m
B57: =$B$56 -> After 15 years' experience | J57: =$J$5 -> CHF | L57: m | Q57: =$J$5 -> CHF | S57: m | X57: =$J$5 -> CHF | Z57: m | AE57: =$J$5 -> CHF | AG57: m
B58: =$B$56 -> After 15 years' experience | J58: =$J$52 -> PPS | L58: =IFERROR(L57/$Z$5,L57) -> m | Q58: =$J$52 -> PPS | S58: =IFERROR(S57/$Z$5,S57) -> m | X58: =$J$52 -> PPS | Z58: =IFERROR(Z57/$Z$5,Z57) -> m | AE58: =$J$52 -> PPS | AG58: =IFERROR(AG57/$Z$5,AG57) -> m
B59: At the top of the range | J59: EUR | L59: =IFERROR(L60/$T$5,L60) -> 102481.1219 | Q59: EUR | S59: =IFERROR(S60/$T$5,S60) -> 110032.3625 | X59: EUR | Z59: =IFERROR(Z60/$T$5,Z60) -> 123426.8249 | AE59: EUR | AG59: =IFERROR(AG60/$T$5,AG60) -> 139608.0547
B60: =$B$59 -> At the top of the range | J60: =$J$5 -> CHF | L60: 114000 | Q60: =$J$5 -> CHF | S60: 122400 | X60: =$J$5 -> CHF | Z60: 137300 | AE60: =$J$5 -> CHF | AG60: 155300
B61: =$B$59 -> At the top of the range | J61: =$J$52 -> PPS | L61: =IFERROR(L60/$Z$5,L60) -> 59067.35751 | Q61: =$J$52 -> PPS | S61: =IFERROR(S60/$Z$5,S60) -> 63419.68912 | X61: =$J$52 -> PPS | Z61: =IFERROR(Z60/$Z$5,Z60) -> 71139.89637 | AE61: =$J$52 -> PPS | AG61: =IFERROR(AG60/$Z$5,AG60) -> 80466.32124
L63: ISCED 02 | Q63: ISCED 1 | X63: ISCED 24 | AE63: ISCED 34
B64: % teachers paid on this range | L64: 1 | Q64: 1 | X64: 1 | AE64: 1
B65: Average nr of years to reach the top | L65: 26 | Q65: 25 | X65: 25 | AE65: 25
B67: Salary range for teachers with a higher qualification (when most prevalent)
J69: ISCED 02 | Q69: ISCED 1 | X69: ISCED 24 | AE69: ISCED 34
B70: Minimum qualification to enter the teaching profession | J70: – | Q70: – | X70: – | AE70: –
B73: FALSE | C73: TRUE | D73: FALSE | J73: ISCED 02 | Q73: ISCED 1 | X73: ISCED 24 | AE73: ISCED 34
B74: Starting salary | J74: EUR | L74: =IFERROR(L75/$T$5,L75) -> – | Q74: EUR | S74: =IFERROR(S75/$T$5,S75) -> – | X74: EUR | Z74: =IFERROR(Z75/$T$5,Z75) -> – | AE74: EUR | AG74: =IFERROR(AG75/$T$5,AG75) -> –
B75: =$B$50 -> Starting salary | J75: =$J$5 -> CHF | L75: – | Q75: =$J$51 -> CHF | S75: – | X75: =$J$5 -> CHF | Z75: – | AE75: =$J$5 -> CHF | AG75: –
B76: =$B$50 -> Starting salary | J76: PPS | L76: =IFERROR(L75/$Z$5,L75) -> – | Q76: =$J$52 -> PPS | S76: =IFERROR(S75/$Z$5,S75) -> – | X76: =$J$52 -> PPS | Z76: =IFERROR(Z75/$Z$5,Z75) -> – | AE76: =$J$52 -> PPS | AG76: =IFERROR(AG75/$Z$5,AG75) -> –
B77: After 10 years' experience | J77: EUR | L77: =IFERROR(L78/$T$5,L78) -> – | Q77: EUR | S77: =IFERROR(S78/$T$5,S78) -> – | X77: EUR | Z77: =IFERROR(Z78/$T$5,Z78) -> – | AE77: EUR | AG77: =IFERROR(AG78/$T$5,AG78) -> –
B78: =$B$53 -> After 10 years' experience | J78: =$J$5 -> CHF | L78: – | Q78: =$J$51 -> CHF | S78: – | X78: =$J$5 -> CHF | Z78: – | AE78: =$J$5 -> CHF | AG78: –
B79: =$B$53 -> After 10 years' experience | J79: =$J$52 -> PPS | L79: =IFERROR(L78/$Z$5,L78) -> – | Q79: =$J$52 -> PPS | S79: =IFERROR(S78/$Z$5,S78) -> – | X79: =$J$52 -> PPS | Z79: =IFERROR(Z78/$Z$5,Z78) -> – | AE79: =$J$52 -> PPS | AG79: =IFERROR(AG78/$Z$5,AG78) -> –
B80: After 15 years' experience | J80: EUR | L80: =IFERROR(L81/$T$5,L81) -> – | Q80: EUR | S80: =IFERROR(S81/$T$5,S81) -> – | X80: EUR | Z80: =IFERROR(Z81/$T$5,Z81) -> – | AE80: EUR | AG80: =IFERROR(AG81/$T$5,AG81) -> –
B81: =$B$56 -> After 15 years' experience | J81: =$J$5 -> CHF | L81: – | Q81: =$J$51 -> CHF | S81: – | X81: =$J$5 -> CHF | Z81: – | AE81: =$J$5 -> CHF | AG81: –
B82: =$B$56 -> After 15 years' experience | J82: =$J$52 -> PPS | L82: =IFERROR(L81/$Z$5,L81) -> – | Q82: =$J$52 -> PPS | S82: =IFERROR(S81/$Z$5,S81) -> – | X82: =$J$52 -> PPS | Z82: =IFERROR(Z81/$Z$5,Z81) -> – | AE82: =$J$52 -> PPS | AG82: =IFERROR(AG81/$Z$5,AG81) -> –
B83: At the top of the range | J83: EUR | L83: =IFERROR(L84/$T$5,L84) -> – | Q83: EUR | S83: =IFERROR(S84/$T$5,S84) -> – | X83: EUR | Z83: =IFERROR(Z84/$T$5,Z84) -> – | AE83: EUR | AG83: =IFERROR(AG84/$T$5,AG84) -> –
B84: =$B$59 -> At the top of the range | J84: =$J$5 -> CHF | L84: – | Q84: =$J$51 -> CHF | S84: – | X84: =$J$5 -> CHF | Z84: – | AE84: =$J$5 -> CHF | AG84: –
B85: =$B$59 -> At the top of the range | J85: =$J$52 -> PPS | L85: =IFERROR(L84/$Z$5,L84) -> – | Q85: =$J$52 -> PPS | S85: =IFERROR(S84/$Z$5,S84) -> – | X85: =$J$52 -> PPS | Z85: =IFERROR(Z84/$Z$5,Z84) -> – | AE85: =$J$52 -> PPS | AG85: =IFERROR(AG84/$Z$5,AG84) -> –
L87: ISCED 02 | Q87: ISCED 1 | X87: ISCED 24 | AE87: ISCED 34
B88: % teachers paid on this range | L88: – | Q88: – | X88: – | AE88: –
B89: Average nr of years to reach the top
B91: Source | J91: FSO: Labour cost structural statistics, Swiss Teacher Association LCH: Earnings statistics 2020.
B92: Explanatory notes | J92: Teachers' salaries are determined by the 26 cantons as top-level authorities. The minimum qualification to enter the teaching profession is the same across cantons. The average number of years of service necessary to go from the starting to the top of the salary scale is an average of the 26 canton pay scales. Figures represent the weighted average of the cantonal legal requirements (2020) taking into account the number of full-time equivalents (2019/2020).
A94: Average annual gross actual salaries of teachers in public schools | AE94: 2020/2021
B97: FALSE | C97: TRUE | D97: FALSE | J97: ISCED 02 | Q97: ISCED 1 | X97: ISCED 24 | AE97: ISCED 34
B98: Teachers aged 25-64 | J98: EUR | L98: =IFERROR(L99/$AF$5,L99) -> m | Q98: EUR | S98: =IFERROR(S99/$AF$5,S99) -> m | X98: EUR | Z98: =IFERROR(Z99/$AF$5,Z99) -> m | AE98: EUR | AG98: =IFERROR(AG99/$AF$5,AG99) -> m
B99: =B98 -> Teachers aged 25-64 | J99: =$J$5 -> CHF | L99: m | Q99: =$J$51 -> CHF | S99: m | X99: =$J$5 -> CHF | Z99: m | AE99: =$J$5 -> CHF | AG99: m
B100: =B99 -> Teachers aged 25-64 | J100: PPS | L100: =IFERROR(L99/$Z$5,L99) -> m | Q100: =$J$52 -> PPS | S100: =IFERROR(S99/$Z$5,S99) -> m | X100: =$J$52 -> PPS | Z100: =IFERROR(Z99/$Z$5,Z99) -> m | AE100: =$J$52 -> PPS | AG100: =IFERROR(AG99/$Z$5,AG99) -> m
B101: Teachers aged 25-34 | J101: EUR | L101: =IFERROR(L102/$AF$5,L102) -> m | Q101: EUR | S101: =IFERROR(S102/$AF$5,S102) -> m | X101: EUR | Z101: =IFERROR(Z102/$AF$5,Z102) -> m | AE101: EUR | AG101: =IFERROR(AG102/$AF$5,AG102) -> m
B102: =B101 -> Teachers aged 25-34 | J102: =$J$5 -> CHF | L102: m | Q102: =$J$51 -> CHF | S102: m | X102: =$J$5 -> CHF | Z102: m | AE102: =$J$5 -> CHF | AG102: m
B103: =B102 -> Teachers aged 25-34 | J103: =$J$52 -> PPS | L103: =IFERROR(L102/$Z$5,L102) -> m | Q103: =$J$52 -> PPS | S103: =IFERROR(S102/$Z$5,S102) -> m | X103: =$J$52 -> PPS | Z103: =IFERROR(Z102/$Z$5,Z102) -> m | AE103: =$J$52 -> PPS | AG103: =IFERROR(AG102/$Z$5,AG102) -> m
B104: Teachers aged 35-44 | J104: EUR | L104: =IFERROR(L105/$AF$5,L105) -> m | Q104: EUR | S104: =IFERROR(S105/$AF$5,S105) -> m | X104: EUR | Z104: =IFERROR(Z105/$AF$5,Z105) -> m | AE104: EUR | AG104: =IFERROR(AG105/$AF$5,AG105) -> m
B105: =B104 -> Teachers aged 35-44 | J105: =$J$5 -> CHF | L105: m | Q105: =$J$51 -> CHF | S105: m | X105: =$J$5 -> CHF | Z105: m | AE105: =$J$5 -> CHF | AG105: m
B106: =B105 -> Teachers aged 35-44 | J106: =$J$52 -> PPS | L106: =IFERROR(L105/$Z$5,L105) -> m | Q106: =$J$52 -> PPS | S106: =IFERROR(S105/$Z$5,S105) -> m | X106: =$J$52 -> PPS | Z106: =IFERROR(Z105/$Z$5,Z105) -> m | AE106: =$J$52 -> PPS | AG106: =IFERROR(AG105/$Z$5,AG105) -> m
B107: Teachers aged 45-54 | J107: EUR | L107: =IFERROR(L108/$AF$5,L108) -> m | Q107: EUR | S107: =IFERROR(S108/$AF$5,S108) -> m | X107: EUR | Z107: =IFERROR(Z108/$AF$5,Z108) -> m | AE107: EUR | AG107: =IFERROR(AG108/$AF$5,AG108) -> m
B108: =B107 -> Teachers aged 45-54 | J108: =$J$5 -> CHF | L108: m | Q108: =$J$51 -> CHF | S108: m | X108: =$J$5 -> CHF | Z108: m | AE108: =$J$5 -> CHF | AG108: m
B109: =B108 -> Teachers aged 45-54 | J109: =$J$52 -> PPS | L109: =IFERROR(L108/$Z$5,L108) -> m | Q109: =$J$52 -> PPS | S109: =IFERROR(S108/$Z$5,S108) -> m | X109: =$J$52 -> PPS | Z109: =IFERROR(Z108/$Z$5,Z108) -> m | AE109: =$J$52 -> PPS | AG109: =IFERROR(AG108/$Z$5,AG108) -> m
B110: Teachers aged 55-64 | J110: EUR | L110: =IFERROR(L111/$AF$5,L111) -> m | Q110: EUR | S110: =IFERROR(S111/$AF$5,S111) -> m | X110: EUR | Z110: =IFERROR(Z111/$AF$5,Z111) -> m | AE110: EUR | AG110: =IFERROR(AG111/$AF$5,AG111) -> m
B111: =B110 -> Teachers aged 55-64 | J111: =$J$5 -> CHF | L111: m | Q111: =$J$51 -> CHF | S111: m | X111: =$J$5 -> CHF | Z111: m | AE111: =$J$5 -> CHF | AG111: m
B112: =B111 -> Teachers aged 55-64 | J112: =$J$52 -> PPS | L112: =IFERROR(L111/$Z$5,L111) -> m | Q112: =$J$52 -> PPS | S112: =IFERROR(S111/$Z$5,S111) -> m | X112: =$J$52 -> PPS | Z112: =IFERROR(Z111/$Z$5,Z111) -> m | AE112: =$J$52 -> PPS | AG112: =IFERROR(AG111/$Z$5,AG111) -> m
B115: Source | J115: –
B116: Explanatory notes | J116: –
A119: Allowances for teachers in public schools | B119: Salary range for teachers with a higher qualification (when most prevalent) | AE119: 2020/2021
B120: Allowances related to other tasks and responsibilities | N120: 1 | U120: 2
O122: Authority level | V122: Type of financial compensation | AD122: ISCED levels
AD123: 02 | AF123: 1 | AH123: 24 | AJ123: 34
B124: Participation in school or other management tasks in addition to teaching duties | O124: a | V124: a | AD124: ● | AF124: ● | AH124: ● | AJ124: ●
B125: Teaching more classes or hours than required by full-time contract | O125: a | V125: a | AD125: ● | AF125: ● | AH125: ● | AJ125: ●
B126: Students counselling | O126: a | V126: No payment (stat. duty) | AD126: ● | AF126: ● | AH126: ● | AJ126: ●
B127: Engaging in extracurricular activities | O127: a | V127: a | AD127: ● | AF127: ● | AH127: ● | AJ127: ●
B128: Special tasks | O128: Top-level authority | V128: m | AD128: ● | AF128: ● | AH128: ● | AJ128: ●
B129: Class teacher / form teacher | O129: a | V129: a | AD129: ● | AF129: ● | AH129: ● | AJ129: ●
B130: Supporting mentoring / induction programmes | O130: Top-level authority | V130: m | AD130: ● | AF130: ● | AH130: ● | AJ130: ●
B131: Other | O131: a | V131: a | AD131: ● | AF131: ● | AH131: ● | AJ131: ●
O133: Explanatory notes
B134: =B124 -> Participation in school or other management tasks in addition to teaching duties | O134: Reduction in teaching time
B135: Teaching more classes or hours than required by full-time contract | O135: Teachers are usually not paid if they work overtime.
B136: Students counselling | O136: Teachers' duty
B137: Engaging in extracurricular activities | O137: –
B138: Special tasks | O138: The canton decides on the amount and type of financial compensation.
B139: Class teacher / form teacher | O139: Reduction in teaching time
B140: Supporting mentoring / induction programmes | O140: Usually reduction in teaching time
B141: Other | O141: –
B143: Allowances related to qualifications, training and performance | N143: 0 | U143: 0
O145: Authority level | V145: Type of financial compensation | AD145: ISCED levels
AD146: 02 | AF146: 1 | AH146: 24 | AJ146: 34
B147: Further formal qualifications | O147: a | V147: a | AD147: ● | AF147: ● | AH147: ● | AJ147: ●
B148: Successful completion of continuing professional development (CPD) activities | O148: a | V148: No payment (stat. duty) | AD148: ● | AF148: ● | AH148: ● | AJ148: ●
B149: Outstanding performance | O149: a | V149: No payment (stat. duty) | AD149: ● | AF149: ● | AH149: ● | AJ149: ●
B150: Other | O150: a | V150: a | AD150: ● | AF150: ● | AH150: ● | AJ150: ●
O152: Explanatory notes
B153: =B147 -> Further formal qualifications | O153: –
B154: Successful completion of continuing professional development (CPD) activities | O154: CPD is compulsory and part of the cantonal employment conditions.
B155: Outstanding performance | O155: Teachers' performance is typically evaluated by cantonal bodies. In some cantons, teachers are assessed in the context of the evaluation of schools. The method generally involves classroom observation and an interview with the teacher. Practice varies greatly across and within cantons in terms of the frequency, methodology, inspectors’ qualifications and instruments for assessment. Often the school head is directly involved in the feedback that is provided to teachers.
B156: Other | O156: –
B158: Allowances related to teaching conditions | N158: 0 | U158: 0
O160: Authority level | V160: Type of financial compensation | AD160: ISCED levels
AD161: 02 | AF161: 1 | AH161: 24 | AJ161: 34
B162: Teaching students with special educational needs | O162: a | V162: a | AD162: ● | AF162: ● | AH162: ● | AJ162: ●
B163: Teaching in a disadvantaged, remote or high cost area | O163: a | V163: a | AD163: ● | AF163: ● | AH163: ● | AJ163: ●
B164: Other | O164: a | V164: a | AD164: ● | AF164: ● | AH164: ● | AJ164: ●
O166: Explanatory notes
B167: =B162 -> Teaching students with special educational needs | O167: Students or classes receive more resources (additional lessons)
B168: Teaching in a disadvantaged, remote or high cost area | O168: The state government (cantonal authorities) can provide additional lessons.
B169: Other | O169: –
C171: Other criteria
O173: Authority level | V173: Type of financial compensation | AD173: ISCED levels
AD174: 02 | AF174: 1 | AH174: 24 | AJ174: 34
B175: Residence allowance | O175: Top-level authority | V175: % of salary | AD175: ● | AF175: ● | AH175: ● | AJ175: ●
B176: Family status | O176: Top-level authority | V176: % of salary | AD176: ● | AF176: ● | AH176: ● | AJ176: ●
B177: Other | O177: a | V177: a | AD177: ● | AF177: ● | AH177: ● | AJ177: ●
O179: Explanatory notes
B180: =B175 -> Residence allowance | O180: The canton decides on the amount.
B181: Family status | O181: The canton decides on the amount.
B182: Other | O182: –
B184: Source | O184: https://www.edk.ch; Swiss Teacher Association LCH: Earnings statistics 2020
A186: 2. School heads
A188: Annual gross statutory salaries of school heads in public schools | AE188: 2020/2021
J189: ISCED 02 | Q189: ISCED 1 | X189: ISCED 24 | AE189: ISCED 34
B190: Authority level determining the statutory salaries of school heads | J190: Top-level authority
J192: ISCED 02 | Q192: ISCED 1 | X192: ISCED 24 | AE192: ISCED 34
B193: Minimum qualification to become a school head | J193: m | Q193: m | X193: m | AE193: m
B195: Single or lowest salary range (when more than one)
J197: ISCED 02 | Q197: ISCED 1 | X197: ISCED 24 | AE197: ISCED 34
B198: Type of school | J198: m | Q198: m | X198: m | AE198: m
B199: FALSE | C199: TRUE | D199: FALSE
B200: Minimum salary | J200: EUR | L200: =IFERROR(L201/$T$5,L201) -> m | Q200: EUR | S200: =IFERROR(S201/$T$5,S201) -> m | X200: EUR | Z200: =IFERROR(Z201/$T$5,Z201) -> m | AE200: EUR | AG200: =IFERROR(AG201/$T$5,AG201) -> m
B201: =B200 -> Minimum salary | J201: =$J$5 -> CHF | L201: m | Q201: =$J$5 -> CHF | S201: m | X201: =$J$51 -> CHF | Z201: m | AE201: =$J$51 -> CHF | AG201: m
B202: =B201 -> Minimum salary | J202: =$J$52 -> PPS | L202: =IFERROR(L201/$Z$5,L201) -> m | Q202: =$J$52 -> PPS | S202: =IFERROR(S201/$Z$5,S201) -> m | X202: =$J$52 -> PPS | Z202: =IFERROR(Z201/$Z$5,Z201) -> m | AE202: =$J$52 -> PPS | AG202: =IFERROR(AG201/$Z$5,AG201) -> m
B203: Maximum salary | J203: EUR | L203: =IFERROR(L204/$T$5,L204) -> m | Q203: EUR | S203: =IFERROR(S204/$T$5,S204) -> m | X203: EUR | Z203: =IFERROR(Z204/$T$5,Z204) -> m | AE203: EUR | AG203: =IFERROR(AG204/$T$5,AG204) -> m
B204: =B203 -> Maximum salary | J204: =$J$5 -> CHF | L204: m | Q204: =$J$5 -> CHF | S204: m | X204: =$J$51 -> CHF | Z204: m | AE204: =$J$51 -> CHF | AG204: m
B205: =B204 -> Maximum salary | J205: =$J$52 -> PPS | L205: =IFERROR(L204/$Z$5,L204) -> m | Q205: =$J$52 -> PPS | S205: =IFERROR(S204/$Z$5,S204) -> m | X205: =$J$52 -> PPS | Z205: =IFERROR(Z204/$Z$5,Z204) -> m | AE205: =$J$52 -> PPS | AG205: =IFERROR(AG204/$Z$5,AG204) -> m
B206: Criteria for progression in this salary range | J206: m | Q206: m | X206: m | AE206: m
B207: % school heads paid on this range | J207: m | Q207: m | X207: m | AE207: m
B209: Highest salary range
J211: ISCED 02 | Q211: ISCED 1 | X211: ISCED 24 | AE211: ISCED 34
B212: Type of school | J212: – | Q212: – | X212: – | AE212: –
B213: FALSE | C213: TRUE | D213: FALSE
B214: Minimum salary | J214: EUR | L214: =IF(IFERROR(L215/$T$5,L215)=0,"–",IFERROR(L215/$T$5,L215)) -> – | Q214: EUR | S214: =IF(IFERROR(S215/$T$5,S215)=0,"–",IFERROR(S215/$T$5,S215)) -> – | X214: EUR | Z214: =IF(IFERROR(Z215/$T$5,Z215)=0,"–",IFERROR(Z215/$T$5,Z215)) -> – | AE214: EUR | AG214: =IF(IFERROR(AG215/$T$5,AG215)=0,"–",IFERROR(AG215/$T$5,AG215)) -> –
B215: =B214 -> Minimum salary | J215: =$J$5 -> CHF | L215: – | Q215: =$J$5 -> CHF | S215: – | X215: =$J$51 -> CHF | Z215: – | AE215: =$J$51 -> CHF | AG215: –
B216: =B215 -> Minimum salary | J216: =$J$52 -> PPS | L216: =IFERROR(L215/$Z$5,L215) -> – | Q216: =$J$52 -> PPS | S216: =IFERROR(S215/$Z$5,S215) -> – | X216: =$J$52 -> PPS | Z216: =IFERROR(Z215/$Z$5,Z215) -> – | AE216: =$J$52 -> PPS | AG216: =IFERROR(AG215/$Z$5,AG215) -> –
B217: Maximum salary | J217: EUR | L217: =IFERROR(L218/$T$5,L218) -> – | Q217: EUR | S217: =IFERROR(S218/$T$5,S218) -> – | X217: EUR | Z217: =IFERROR(Z218/$T$5,Z218) -> – | AE217: EUR | AG217: =IFERROR(AG218/$T$5,AG218) -> –
B218: =B217 -> Maximum salary | J218: =$J$5 -> CHF | L218: – | Q218: =$J$5 -> CHF | S218: – | X218: =$J$51 -> CHF | Z218: – | AE218: =$J$51 -> CHF | AG218: –
B219: =B218 -> Maximum salary | J219: =$J$52 -> PPS | L219: =IFERROR(L218/$Z$5,L218) -> – | Q219: =$J$52 -> PPS | S219: =IFERROR(S218/$Z$5,S218) -> – | X219: =$J$52 -> PPS | Z219: =IFERROR(Z218/$Z$5,Z218) -> – | AE219: =$J$52 -> PPS | AG219: =IFERROR(AG218/$Z$5,AG218) -> –
B220: Criteria for progression in this salary range | J220: – | Q220: – | X220: – | AE220: –
B221: % school heads paid on this range | J221: – | Q221: – | X221: – | AE221: –
B223: Most prevalent range (when none of the above)
J225: ISCED 02 | Q225: ISCED 1 | X225: ISCED 24 | AE225: ISCED 34
B226: Type of school | J226: – | Q226: – | X226: – | AE226: –
B227: FALSE | C227: TRUE | D227: FALSE
B228: Minimum salary | J228: EUR | L228: =IFERROR(L229/$T$5,L229) -> – | Q228: EUR | S228: =IFERROR(S229/$T$5,S229) -> – | X228: EUR | Z228: =IFERROR(Z229/$T$5,Z229) -> – | AE228: EUR | AG228: =IFERROR(AG229/$T$5,AG229) -> –
B229: =B228 -> Minimum salary | J229: =$J$5 -> CHF | L229: – | Q229: =$J$5 -> CHF | S229: – | X229: =$J$51 -> CHF | Z229: – | AE229: =$J$51 -> CHF | AG229: –
B230: =B229 -> Minimum salary | J230: =$J$52 -> PPS | L230: =IFERROR(L229/$Z$5,L229) -> – | Q230: =$J$52 -> PPS | S230: =IFERROR(S229/$Z$5,S229) -> – | X230: =$J$52 -> PPS | Z230: =IFERROR(Z229/$Z$5,Z229) -> – | AE230: =$J$52 -> PPS | AG230: =IFERROR(AG229/$Z$5,AG229) -> –
B231: Maximum salary | J231: EUR | L231: =IFERROR(L232/$T$5,L232) -> – | Q231: EUR | S231: =IFERROR(S232/$T$5,S232) -> – | X231: EUR | Z231: =IFERROR(Z232/$T$5,Z232) -> – | AE231: EUR | AG231: =IFERROR(AG232/$T$5,AG232) -> –
B232: =B231 -> Maximum salary | J232: =$J$5 -> CHF | L232: – | Q232: =$J$5 -> CHF | S232: – | X232: =$J$51 -> CHF | Z232: – | AE232: =$J$51 -> CHF | AG232: –
B233: =B232 -> Maximum salary | J233: =$J$52 -> PPS | L233: =IFERROR(L232/$Z$5,L232) -> – | Q233: =$J$52 -> PPS | S233: =IFERROR(S232/$Z$5,S232) -> – | X233: =$J$52 -> PPS | Z233: =IFERROR(Z232/$Z$5,Z232) -> – | AE233: =$J$52 -> PPS | AG233: =IFERROR(AG232/$Z$5,AG232) -> –
B234: Criteria for progression in this salary range | J234: – | Q234: – | X234: – | AE234: –
B235: % school heads paid on this range | J235: – | Q235: – | X235: – | AE235: –
B238: Source | J238: –
B239: Explanatory notes | J239: –
A241: Average annual gross actual salaries of school heads in public schools | AE241: 2020/2021
B244: FALSE | C244: TRUE | D244: FALSE | J244: ISCED 02 | Q244: ISCED 1 | X244: ISCED 24 | AE244: ISCED 34
B245: School heads aged 25-64 | J245: EUR | L245: =IFERROR(L246/$AF$5,L246) -> m | Q245: EUR | S245: =IFERROR(S246/$AF$5,S246) -> m | X245: EUR | Z245: =IFERROR(Z246/$AF$5,Z246) -> m | AE245: EUR | AG245: =IFERROR(AG246/$AF$5,AG246) -> m
B246: =B245 -> School heads aged 25-64 | J246: =$J$5 -> CHF | L246: m | Q246: =$J$51 -> CHF | S246: m | X246: =$J$51 -> CHF | Z246: m | AE246: =$J$51 -> CHF | AG246: m
B247: =B246 -> School heads aged 25-64 | J247: PPS | L247: =IFERROR(L246/$Z$5,L246) -> m | Q247: =$J$52 -> PPS | S247: =IFERROR(S246/$Z$5,S246) -> m | X247: =$J$52 -> PPS | Z247: =IFERROR(Z246/$Z$5,Z246) -> m | AE247: =$J$52 -> PPS | AG247: =IFERROR(AG246/$Z$5,AG246) -> m
B248: School heads aged 25-34 | J248: EUR | L248: =IFERROR(L249/$AF$5,L249) -> m | Q248: EUR | S248: =IFERROR(S249/$AF$5,S249) -> m | X248: EUR | Z248: =IFERROR(Z249/$AF$5,Z249) -> m | AE248: EUR | AG248: =IFERROR(AG249/$AF$5,AG249) -> m
B249: =B248 -> School heads aged 25-34 | J249: =$J$5 -> CHF | L249: m | Q249: =$J$5 -> CHF | S249: m | X249: =$J$51 -> CHF | Z249: m | AE249: =$J$51 -> CHF | AG249: m
B250: =B249 -> School heads aged 25-34 | J250: =$J$52 -> PPS | L250: =IFERROR(L249/$Z$5,L249) -> m | Q250: =$J$52 -> PPS | S250: =IFERROR(S249/$Z$5,S249) -> m | X250: =$J$52 -> PPS | Z250: =IFERROR(Z249/$Z$5,Z249) -> m | AE250: =$J$52 -> PPS | AG250: =IFERROR(AG249/$Z$5,AG249) -> m
B251: School heads aged 35-44 | J251: EUR | L251: =IFERROR(L252/$AF$5,L252) -> m | Q251: EUR | S251: =IFERROR(S252/$AF$5,S252) -> m | X251: EUR | Z251: =IFERROR(Z252/$AF$5,Z252) -> m | AE251: EUR | AG251: =IFERROR(AG252/$AF$5,AG252) -> m
B252: =B251 -> School heads aged 35-44 | J252: =$J$5 -> CHF | L252: m | Q252: =$J$5 -> CHF | S252: m | X252: =$J$51 -> CHF | Z252: m | AE252: =$J$51 -> CHF | AG252: m
B253: =B252 -> School heads aged 35-44 | J253: =$J$52 -> PPS | L253: =IFERROR(L252/$Z$5,L252) -> m | Q253: =$J$52 -> PPS | S253: =IFERROR(S252/$Z$5,S252) -> m | X253: =$J$52 -> PPS | Z253: =IFERROR(Z252/$Z$5,Z252) -> m | AE253: =$J$52 -> PPS | AG253: =IFERROR(AG252/$Z$5,AG252) -> m
B254: School heads aged 45-54 | J254: EUR | L254: =IFERROR(L255/$AF$5,L255) -> m | Q254: EUR | S254: =IFERROR(S255/$AF$5,S255) -> m | X254: EUR | Z254: =IFERROR(Z255/$AF$5,Z255) -> m | AE254: EUR | AG254: =IFERROR(AG255/$AF$5,AG255) -> m
B255: =B254 -> School heads aged 45-54 | J255: =$J$5 -> CHF | L255: m | Q255: =$J$5 -> CHF | S255: m | X255: =$J$51 -> CHF | Z255: m | AE255: =$J$51 -> CHF | AG255: m
B256: =B255 -> School heads aged 45-54 | J256: =$J$52 -> PPS | L256: =IFERROR(L255/$Z$5,L255) -> m | Q256: =$J$52 -> PPS | S256: =IFERROR(S255/$Z$5,S255) -> m | X256: =$J$52 -> PPS | Z256: =IFERROR(Z255/$Z$5,Z255) -> m | AE256: =$J$52 -> PPS | AG256: =IFERROR(AG255/$Z$5,AG255) -> m
... 59 more rows

Sheet CY
A1: Cyprus | AK1: 2020/2021
B3: a | C3: not applicable | J3: m | K3: not available
B5: National currency: | J5: EUR | T5: 1 | Z5: 0.9499 | AF5: 1
B7: Contents
D8: =$A$37 -> 1. Teachers
D9: =$A$39 -> Annual gross statutory salaries of teachers in public schools
F11: =$B$43 -> Salary range for teachers with the minimum qualification
F12: =$B$67 -> Salary range for teachers with a higher qualification (when most prevalent)
D13: =$A$94 -> Average annual gross actual salaries of teachers in public schools
D14: =$A$119 -> Allowances for teachers in public schools
F16: =$B$120 -> Allowances related to other tasks and responsibilities
F17: =$B$143 -> Allowances related to qualifications, training and performance
F18: =$B$158 -> Allowances related to teaching conditions
F19: =$C$171 -> Other criteria
D20: =$A$186 -> 2. School heads
D21: =$A$188 -> Annual gross statutory salaries of school heads in public schools
F23: =$B$195 -> Single or lowest salary range (when more than one)
F24: =$B$209 -> Highest salary range
F25: =$B$223 -> Most prevalent range (when none of the above)
D27: =$A$241 -> Average annual gross actual salaries of school heads in public schools
D29: =$A$266 -> Allowances for school heads in public schools
F31: =$B$267 -> Allowances related to other tasks and responsibilities
F32: =$B$290 -> Allowances related to qualifications, training and performance
F33: =$B$305 -> Allowances related to working conditions
F34: =$B$318 -> Other criteria
A37: 1. Teachers
A39: Annual gross statutory salaries of teachers in public schools | AE39: 2020/2021
J40: ISCED 02 | Q40: ISCED 1 | X40: ISCED 24 | AE40: ISCED 34
B41: Authority level determining the statutory salaries of teachers | J41: Top-level authority
B43: Salary range for teachers with the minimum qualification
J45: ISCED 02 | Q45: ISCED 1 | X45: ISCED 24 | AE45: ISCED 34
B46: Minimum qualification to enter the teaching profession | J46: Bachelor’s degree in preprimary teaching (ISCED 6) | Q46: Bachelor Degree (ISCED 6) | X46: Bachelor's Degree in a relevant field (ISCED 6) + a 9-month pre-service training course | AE46: Bachelor's Degree in a relevant field (ISCED 6) + a 9-month pre-service training course
B49: FALSE | C49: TRUE | D49: TRUE | J49: ISCED 02 | Q49: ISCED 1 | X49: ISCED 24 | AE49: ISCED 34
B50: Starting salary | J50: EUR | L50: =IFERROR(L51/$T$5,L51) -> 24189 | Q50: EUR | S50: =IFERROR(S51/$T$5,S51) -> 24189 | X50: EUR | Z50: =IFERROR(Z51/$T$5,Z51) -> 24189 | AE50: EUR | AG50: =IFERROR(AG51/$T$5,AG51) -> 24189
B51: =$B$50 -> Starting salary | J51: =$J$5 -> EUR | L51: 24189 | Q51: =$J$5 -> EUR | S51: 24189 | X51: =$J$5 -> EUR | Z51: 24189 | AE51: =$J$5 -> EUR | AG51: 24189
B52: =$B$50 -> Starting salary | J52: PPS | L52: =IFERROR(L51/$Z$5,L51) -> 25464.78577 | Q52: =$J$52 -> PPS | S52: =IFERROR(S51/$Z$5,S51) -> 25464.78577 | X52: =$J$52 -> PPS | Z52: =IFERROR(Z51/$Z$5,Z51) -> 25464.78577 | AE52: =$J$52 -> PPS | AG52: =IFERROR(AG51/$Z$5,AG51) -> 25464.78577
B53: After 10 years' experience | J53: EUR | L53: =IFERROR(L54/$T$5,L54) -> 37385 | Q53: EUR | S53: =IFERROR(S54/$T$5,S54) -> 37385 | X53: EUR | Z53: =IFERROR(Z54/$T$5,Z54) -> 37385 | AE53: EUR | AG53: =IFERROR(AG54/$T$5,AG54) -> 37385
B54: =$B$53 -> After 10 years' experience | J54: =$J$5 -> EUR | L54: 37385 | Q54: =$J$5 -> EUR | S54: 37385 | X54: =$J$5 -> EUR | Z54: 37385 | AE54: =$J$5 -> EUR | AG54: 37385
B55: =$B$53 -> After 10 years' experience | J55: =$J$52 -> PPS | L55: =IFERROR(L54/$Z$5,L54) -> 39356.7744 | Q55: =$J$52 -> PPS | S55: =IFERROR(S54/$Z$5,S54) -> 39356.7744 | X55: =$J$52 -> PPS | Z55: =IFERROR(Z54/$Z$5,Z54) -> 39356.7744 | AE55: =$J$52 -> PPS | AG55: =IFERROR(AG54/$Z$5,AG54) -> 39356.7744
B56: After 15 years' experience | J56: EUR | L56: =IFERROR(L57/$T$5,L57) -> 44805 | Q56: EUR | S56: =IFERROR(S57/$T$5,S57) -> 44805 | X56: EUR | Z56: =IFERROR(Z57/$T$5,Z57) -> 44805 | AE56: EUR | AG56: =IFERROR(AG57/$T$5,AG57) -> 44805
B57: =$B$56 -> After 15 years' experience | J57: =$J$5 -> EUR | L57: 44805 | Q57: =$J$5 -> EUR | S57: 44805 | X57: =$J$5 -> EUR | Z57: 44805 | AE57: =$J$5 -> EUR | AG57: 44805
B58: =$B$56 -> After 15 years' experience | J58: =$J$52 -> PPS | L58: =IFERROR(L57/$Z$5,L57) -> 47168.12296 | Q58: =$J$52 -> PPS | S58: =IFERROR(S57/$Z$5,S57) -> 47168.12296 | X58: =$J$52 -> PPS | Z58: =IFERROR(Z57/$Z$5,Z57) -> 47168.12296 | AE58: =$J$52 -> PPS | AG58: =IFERROR(AG57/$Z$5,AG57) -> 47168.12296
B59: At the top of the range | J59: EUR | L59: =IFERROR(L60/$T$5,L60) -> 58845 | Q59: EUR | S59: =IFERROR(S60/$T$5,S60) -> 58845 | X59: EUR | Z59: =IFERROR(Z60/$T$5,Z60) -> 58845 | AE59: EUR | AG59: =IFERROR(AG60/$T$5,AG60) -> 58845
B60: =$B$59 -> At the top of the range | J60: =$J$5 -> EUR | L60: 58845 | Q60: =$J$5 -> EUR | S60: 58845 | X60: =$J$5 -> EUR | Z60: 58845 | AE60: =$J$5 -> EUR | AG60: 58845
B61: =$B$59 -> At the top of the range | J61: =$J$52 -> PPS | L61: =IFERROR(L60/$Z$5,L60) -> 61948.62617 | Q61: =$J$52 -> PPS | S61: =IFERROR(S60/$Z$5,S60) -> 61948.62617 | X61: =$J$52 -> PPS | Z61: =IFERROR(Z60/$Z$5,Z60) -> 61948.62617 | AE61: =$J$52 -> PPS | AG61: =IFERROR(AG60/$Z$5,AG60) -> 61948.62617
L63: ISCED 02 | Q63: ISCED 1 | X63: ISCED 24 | AE63: ISCED 34
B64: % teachers paid on this range | L64: m | Q64: m | X64: m | AE64: m
B65: Average nr of years to reach the top | L65: 24 | Q65: 24 | X65: 24 | AE65: 24
B67: Salary range for teachers with a higher qualification (when most prevalent)
J69: ISCED 02 | Q69: ISCED 1 | X69: ISCED 24 | AE69: ISCED 34
B70: Minimum qualification to enter the teaching profession | J70: – | Q70: – | X70: – | AE70: –
B73: FALSE | C73: TRUE | D73: FALSE | J73: ISCED 02 | Q73: ISCED 1 | X73: ISCED 24 | AE73: ISCED 34
B74: Starting salary | J74: EUR | L74: =IFERROR(L75/$T$5,L75) -> – | Q74: EUR | S74: =IFERROR(S75/$T$5,S75) -> – | X74: EUR | Z74: =IFERROR(Z75/$T$5,Z75) -> – | AE74: EUR | AG74: =IFERROR(AG75/$T$5,AG75) -> –
B75: =$B$50 -> Starting salary | J75: =$J$5 -> EUR | L75: – | Q75: =$J$51 -> EUR | S75: – | X75: =$J$5 -> EUR | Z75: – | AE75: =$J$5 -> EUR | AG75: –
B76: =$B$50 -> Starting salary | J76: PPS | L76: =IFERROR(L75/$Z$5,L75) -> – | Q76: =$J$52 -> PPS | S76: =IFERROR(S75/$Z$5,S75) -> – | X76: =$J$52 -> PPS | Z76: =IFERROR(Z75/$Z$5,Z75) -> – | AE76: =$J$52 -> PPS | AG76: =IFERROR(AG75/$Z$5,AG75) -> –
B77: After 10 years' experience | J77: EUR | L77: =IFERROR(L78/$T$5,L78) -> – | Q77: EUR | S77: =IFERROR(S78/$T$5,S78) -> – | X77: EUR | Z77: =IFERROR(Z78/$T$5,Z78) -> – | AE77: EUR | AG77: =IFERROR(AG78/$T$5,AG78) -> –
B78: =$B$53 -> After 10 years' experience | J78: =$J$5 -> EUR | L78: – | Q78: =$J$51 -> EUR | S78: – | X78: =$J$5 -> EUR | Z78: – | AE78: =$J$5 -> EUR | AG78: –
B79: =$B$53 -> After 10 years' experience | J79: =$J$52 -> PPS | L79: =IFERROR(L78/$Z$5,L78) -> – | Q79: =$J$52 -> PPS | S79: =IFERROR(S78/$Z$5,S78) -> – | X79: =$J$52 -> PPS | Z79: =IFERROR(Z78/$Z$5,Z78) -> – | AE79: =$J$52 -> PPS | AG79: =IFERROR(AG78/$Z$5,AG78) -> –
B80: After 15 years' experience | J80: EUR | L80: =IFERROR(L81/$T$5,L81) -> – | Q80: EUR | S80: =IFERROR(S81/$T$5,S81) -> – | X80: EUR | Z80: =IFERROR(Z81/$T$5,Z81) -> – | AE80: EUR | AG80: =IFERROR(AG81/$T$5,AG81) -> –
B81: =$B$56 -> After 15 years' experience | J81: =$J$5 -> EUR | L81: – | Q81: =$J$51 -> EUR | S81: – | X81: =$J$5 -> EUR | Z81: – | AE81: =$J$5 -> EUR | AG81: –
B82: =$B$56 -> After 15 years' experience | J82: =$J$52 -> PPS | L82: =IFERROR(L81/$Z$5,L81) -> – | Q82: =$J$52 -> PPS | S82: =IFERROR(S81/$Z$5,S81) -> – | X82: =$J$52 -> PPS | Z82: =IFERROR(Z81/$Z$5,Z81) -> – | AE82: =$J$52 -> PPS | AG82: =IFERROR(AG81/$Z$5,AG81) -> –
B83: At the top of the range | J83: EUR | L83: =IFERROR(L84/$T$5,L84) -> – | Q83: EUR | S83: =IFERROR(S84/$T$5,S84) -> – | X83: EUR | Z83: =IFERROR(Z84/$T$5,Z84) -> – | AE83: EUR | AG83: =IFERROR(AG84/$T$5,AG84) -> –
B84: =$B$59 -> At the top of the range | J84: =$J$5 -> EUR | L84: – | Q84: =$J$51 -> EUR | S84: – | X84: =$J$5 -> EUR | Z84: – | AE84: =$J$5 -> EUR | AG84: –
B85: =$B$59 -> At the top of the range | J85: =$J$52 -> PPS | L85: =IFERROR(L84/$Z$5,L84) -> – | Q85: =$J$52 -> PPS | S85: =IFERROR(S84/$Z$5,S84) -> – | X85: =$J$52 -> PPS | Z85: =IFERROR(Z84/$Z$5,Z84) -> – | AE85: =$J$52 -> PPS | AG85: =IFERROR(AG84/$Z$5,AG84) -> –
L87: ISCED 02 | Q87: ISCED 1 | X87: ISCED 24 | AE87: ISCED 34
B88: % teachers paid on this range | L88: – | Q88: – | X88: – | AE88: –
B89: Average nr of years to reach the top | L89: – | Q89: – | X89: – | AE89: –
B91: Source | J91: Treasury of the Republic of Cyprus - Public Servants Remuneration Tables (http://www.treasury.gov.cy/treasury/treasurynew.nsf/All/3F6393476A4031F4C22584510028FBA2?OpenDocument).
B92: Explanatory notes | J92: –
A94: Average annual gross actual salaries of teachers in public schools | AE94: 2020/2021
B97: FALSE | C97: TRUE | D97: TRUE | J97: ISCED 02 | Q97: ISCED 1 | X97: ISCED 24 | AE97: ISCED 34
B98: Teachers aged 25-64 | J98: EUR | L98: =IFERROR(L99/$AF$5,L99) -> 47964 | Q98: EUR | S98: =IFERROR(S99/$AF$5,S99) -> 47964 | X98: EUR | Z98: =IFERROR(Z99/$AF$5,Z99) -> 47964 | AE98: EUR | AG98: =IFERROR(AG99/$AF$5,AG99) -> 47964
B99: =B98 -> Teachers aged 25-64 | J99: =$J$5 -> EUR | L99: 47964 | Q99: =$J$51 -> EUR | S99: 47964 | X99: =$J$5 -> EUR | Z99: 47964 | AE99: =$J$5 -> EUR | AG99: 47964
B100: =B99 -> Teachers aged 25-64 | J100: PPS | L100: =IFERROR(L99/$Z$5,L99) -> 50493.73618 | Q100: =$J$52 -> PPS | S100: =IFERROR(S99/$Z$5,S99) -> 50493.73618 | X100: =$J$52 -> PPS | Z100: =IFERROR(Z99/$Z$5,Z99) -> 50493.73618 | AE100: =$J$52 -> PPS | AG100: =IFERROR(AG99/$Z$5,AG99) -> 50493.73618
B101: Teachers aged 25-34 | J101: EUR | L101: =IFERROR(L102/$AF$5,L102) -> 31337 | Q101: EUR | S101: =IFERROR(S102/$AF$5,S102) -> 31337 | X101: EUR | Z101: =IFERROR(Z102/$AF$5,Z102) -> 31337 | AE101: EUR | AG101: =IFERROR(AG102/$AF$5,AG102) -> 31337
B102: =B101 -> Teachers aged 25-34 | J102: =$J$5 -> EUR | L102: 31337 | Q102: =$J$51 -> EUR | S102: 31337 | X102: =$J$5 -> EUR | Z102: 31337 | AE102: =$J$5 -> EUR | AG102: 31337
B103: =B102 -> Teachers aged 25-34 | J103: =$J$52 -> PPS | L103: =IFERROR(L102/$Z$5,L102) -> 32989.7884 | Q103: =$J$52 -> PPS | S103: =IFERROR(S102/$Z$5,S102) -> 32989.7884 | X103: =$J$52 -> PPS | Z103: =IFERROR(Z102/$Z$5,Z102) -> 32989.7884 | AE103: =$J$52 -> PPS | AG103: =IFERROR(AG102/$Z$5,AG102) -> 32989.7884
B104: Teachers aged 35-44 | J104: EUR | L104: =IFERROR(L105/$AF$5,L105) -> 44626 | Q104: EUR | S104: =IFERROR(S105/$AF$5,S105) -> 44626 | X104: EUR | Z104: =IFERROR(Z105/$AF$5,Z105) -> 44626 | AE104: EUR | AG104: =IFERROR(AG105/$AF$5,AG105) -> 44626
B105: =B104 -> Teachers aged 35-44 | J105: =$J$5 -> EUR | L105: 44626 | Q105: =$J$51 -> EUR | S105: 44626 | X105: =$J$5 -> EUR | Z105: 44626 | AE105: =$J$5 -> EUR | AG105: 44626
B106: =B105 -> Teachers aged 35-44 | J106: =$J$52 -> PPS | L106: =IFERROR(L105/$Z$5,L105) -> 46979.68207 | Q106: =$J$52 -> PPS | S106: =IFERROR(S105/$Z$5,S105) -> 46979.68207 | X106: =$J$52 -> PPS | Z106: =IFERROR(Z105/$Z$5,Z105) -> 46979.68207 | AE106: =$J$52 -> PPS | AG106: =IFERROR(AG105/$Z$5,AG105) -> 46979.68207
B107: Teachers aged 45-54 | J107: EUR | L107: =IFERROR(L108/$AF$5,L108) -> 57047 | Q107: EUR | S107: =IFERROR(S108/$AF$5,S108) -> 57047 | X107: EUR | Z107: =IFERROR(Z108/$AF$5,Z108) -> 57047 | AE107: EUR | AG107: =IFERROR(AG108/$AF$5,AG108) -> 57047
B108: =B107 -> Teachers aged 45-54 | J108: =$J$5 -> EUR | L108: 57047 | Q108: =$J$51 -> EUR | S108: 57047 | X108: =$J$5 -> EUR | Z108: 57047 | AE108: =$J$5 -> EUR | AG108: 57047
B109: =B108 -> Teachers aged 45-54 | J109: =$J$52 -> PPS | L109: =IFERROR(L108/$Z$5,L108) -> 60055.79535 | Q109: =$J$52 -> PPS | S109: =IFERROR(S108/$Z$5,S108) -> 60055.79535 | X109: =$J$52 -> PPS | Z109: =IFERROR(Z108/$Z$5,Z108) -> 60055.79535 | AE109: =$J$52 -> PPS | AG109: =IFERROR(AG108/$Z$5,AG108) -> 60055.79535
B110: Teachers aged 55-64 | J110: EUR | L110: =IFERROR(L111/$AF$5,L111) -> 58845 | Q110: EUR | S110: =IFERROR(S111/$AF$5,S111) -> 58845 | X110: EUR | Z110: =IFERROR(Z111/$AF$5,Z111) -> 58845 | AE110: EUR | AG110: =IFERROR(AG111/$AF$5,AG111) -> 58845
B111: =B110 -> Teachers aged 55-64 | J111: =$J$5 -> EUR | L111: 58845 | Q111: =$J$51 -> EUR | S111: 58845 | X111: =$J$5 -> EUR | Z111: 58845 | AE111: =$J$5 -> EUR | AG111: 58845
B112: =B111 -> Teachers aged 55-64 | J112: =$J$52 -> PPS | L112: =IFERROR(L111/$Z$5,L111) -> 61948.62617 | Q112: =$J$52 -> PPS | S112: =IFERROR(S111/$Z$5,S111) -> 61948.62617 | X112: =$J$52 -> PPS | Z112: =IFERROR(Z111/$Z$5,Z111) -> 61948.62617 | AE112: =$J$52 -> PPS | AG112: =IFERROR(AG111/$Z$5,AG111) -> 61948.62617
B115: Source | J115: Treasury of the Republic of Cyprus - Public Servants Remuneration Tables (http://www.treasury.gov.cy/treasury/treasurynew.nsf/All/3F6393476A4031F4C22584510028FBA2?OpenDocument)
B116: Explanatory notes | J116: –
A119: Allowances for teachers in public schools | B119: Salary range for teachers with a higher qualification (when most prevalent) | AE119: 2020/2021
B120: Allowances related to other tasks and responsibilities | N120: 1 | U120: 2
O122: Authority level | V122: Type of financial compensation | AD122: ISCED levels
AD123: 02 | AF123: 1 | AH123: 24 | AJ123: 34
B124: Participation in school or other management tasks in addition to teaching duties | O124: Top-level authority | V124: Progression in pay range | AD124: ● | AF124: ● | AH124: ● | AJ124: ●
B125: Teaching more classes or hours than required by full-time contract | O125: a | V125: a | AD125: ● | AF125: ● | AH125: ● | AJ125: ●
B126: Students counselling | O126: a | V126: a | AD126: ● | AF126: ● | AH126: ● | AJ126: ●
B127: Engaging in extracurricular activities | O127: a | V127: a | AD127: ● | AF127: ● | AH127: ● | AJ127: ●
B128: Special tasks | O128: a | V128: a | AD128: ● | AF128: ● | AH128: ● | AJ128: ●
B129: Class teacher / form teacher | O129: a | V129: a | AD129: ● | AF129: ● | AH129: ● | AJ129: ●
B130: Supporting mentoring / induction programmes | O130: a | V130: a | AD130: ● | AF130: ● | AH130: ● | AJ130: ●
B131: Other | O131: a | V131: a | AD131: ● | AF131: ● | AH131: ● | AJ131: ●
O133: Explanatory notes
B134: =B124 -> Participation in school or other management tasks in addition to teaching duties | O134: –
B135: Teaching more classes or hours than required by full-time contract | O135: –
B136: Students counselling | O136: –
B137: Engaging in extracurricular activities | O137: –
B138: Special tasks | O138: –
B139: Class teacher / form teacher | O139: –
B140: Supporting mentoring / induction programmes | O140: –
B141: Other | O141: –
B143: Allowances related to qualifications, training and performance | N143: 0 | U143: 0
O145: Authority level | V145: Type of financial compensation | AD145: ISCED levels
AD146: 02 | AF146: 1 | AH146: 24 | AJ146: 34
B147: Further formal qualifications | O147: a | V147: a | AD147: ● | AF147: ● | AH147: ● | AJ147: ●
B148: Successful completion of continuing professional development (CPD) activities | O148: a | V148: a | AD148: ● | AF148: ● | AH148: ● | AJ148: ●
B149: Outstanding performance | O149: a | V149: a | AD149: ● | AF149: ● | AH149: ● | AJ149: ●
B150: Other | O150: a | V150: a | AD150: ● | AF150: ● | AH150: ● | AJ150: ●
O152: Explanatory notes
B153: =B147 -> Further formal qualifications | O153: –
B154: Successful completion of continuing professional development (CPD) activities | O154: –
B155: Outstanding performance | O155: –
B156: Other | O156: –
B158: Allowances related to teaching conditions | N158: 0 | U158: 0
O160: Authority level | V160: Type of financial compensation | AD160: ISCED levels
AD161: 02 | AF161: 1 | AH161: 24 | AJ161: 34
B162: Teaching students with special educational needs | O162: a | V162: a | AD162: ● | AF162: ● | AH162: ● | AJ162: ●
B163: Teaching in a disadvantaged, remote or high cost area | O163: a | V163: a | AD163: ● | AF163: ● | AH163: ● | AJ163: ●
B164: Other | O164: a | V164: a | AD164: ● | AF164: ● | AH164: ● | AJ164: ●
O166: Explanatory notes
B167: =B162 -> Teaching students with special educational needs | O167: –
B168: Teaching in a disadvantaged, remote or high cost area | O168: –
B169: Other | O169: –
C171: Other criteria
O173: Authority level | V173: Type of financial compensation | AD173: ISCED levels
AD174: 02 | AF174: 1 | AH174: 24 | AJ174: 34
B175: Residence allowance | O175: a | V175: a | AD175: ● | AF175: ● | AH175: ● | AJ175: ●
B176: Family status | O176: a | V176: a | AD176: ● | AF176: ● | AH176: ● | AJ176: ●
B177: Other | O177: a | V177: a | AD177: ● | AF177: ● | AH177: ● | AJ177: ●
O179: Explanatory notes
B180: =B175 -> Residence allowance | O180: –
B181: Family status | O181: –
B182: Other | O182: –
B184: Source | O184: Treasury of the Republic of Cyprus - Public Servants Remuneration Tables (http://www.treasury.gov.cy/treasury/treasurynew.nsf/All/3F6393476A4031F4C22584510028FBA2?OpenDocument)
A186: 2. School heads
A188: Annual gross statutory salaries of school heads in public schools | AE188: 2020/2021
J189: ISCED 02 | Q189: ISCED 1 | X189: ISCED 24 | AE189: ISCED 34
B190: Authority level determining the statutory salaries of school heads | J190: Top-level authority
J192: ISCED 02 | Q192: ISCED 1 | X192: ISCED 24 | AE192: ISCED 34
B193: Minimum qualification to become a school head | J193: Bachelor's Degree
B195: Single or lowest salary range (when more than one)
J197: ISCED 02 | Q197: ISCED 1 | X197: ISCED 24 | AE197: ISCED 34
B198: Type of school | J198: The characteristics of the school don't affect Headteachers' salary.
B199: FALSE | C199: TRUE | D199: TRUE
B200: Minimum salary | J200: EUR | L200: =IFERROR(L201/$T$5,L201) -> 49345 | Q200: EUR | S200: =IFERROR(S201/$T$5,S201) -> 49345 | X200: EUR | Z200: =IFERROR(Z201/$T$5,Z201) -> 58429 | AE200: EUR | AG200: =IFERROR(AG201/$T$5,AG201) -> 58429
B201: =B200 -> Minimum salary | J201: =$J$5 -> EUR | L201: 49345 | Q201: =$J$5 -> EUR | S201: 49345 | X201: =$J$51 -> EUR | Z201: 58429 | AE201: =$J$51 -> EUR | AG201: 58429
B202: =B201 -> Minimum salary | J202: =$J$52 -> PPS | L202: =IFERROR(L201/$Z$5,L201) -> 51947.57343 | Q202: =$J$52 -> PPS | S202: =IFERROR(S201/$Z$5,S201) -> 51947.57343 | X202: =$J$52 -> PPS | Z202: =IFERROR(Z201/$Z$5,Z201) -> 61510.68534 | AE202: =$J$52 -> PPS | AG202: =IFERROR(AG201/$Z$5,AG201) -> 61510.68534
B203: Maximum salary | J203: EUR | L203: =IFERROR(L204/$T$5,L204) -> 70100 | Q203: EUR | S203: =IFERROR(S204/$T$5,S204) -> 70100 | X203: EUR | Z203: =IFERROR(Z204/$T$5,Z204) -> 72265 | AE203: EUR | AG203: =IFERROR(AG204/$T$5,AG204) -> 72265
B204: =B203 -> Maximum salary | J204: =$J$5 -> EUR | L204: 70100 | Q204: =$J$5 -> EUR | S204: 70100 | X204: =$J$51 -> EUR | Z204: 72265 | AE204: =$J$51 -> EUR | AG204: 72265
B205: =B204 -> Maximum salary | J205: =$J$52 -> PPS | L205: =IFERROR(L204/$Z$5,L204) -> 73797.24181 | Q205: =$J$52 -> PPS | S205: =IFERROR(S204/$Z$5,S204) -> 73797.24181 | X205: =$J$52 -> PPS | Z205: =IFERROR(Z204/$Z$5,Z204) -> 76076.4291 | AE205: =$J$52 -> PPS | AG205: =IFERROR(AG204/$Z$5,AG204) -> 76076.4291
B206: Criteria for progression in this salary range | J206: Position in base salary (step increment or other progression within the salary range). Minimum and maximum salaries are related with years in service.
B207: % school heads paid on this range | J207: 1 | Q207: 1 | X207: 1 | AE207: 1
B209: Highest salary range
J211: ISCED 02 | Q211: ISCED 1 | X211: ISCED 24 | AE211: ISCED 34
B212: Type of school | J212: – | Q212: – | X212: – | AE212: –
B213: FALSE | C213: TRUE | D213: FALSE
B214: Minimum salary | J214: EUR | L214: =IF(IFERROR(L215/$T$5,L215)=0,"–",IFERROR(L215/$T$5,L215)) -> – | Q214: EUR | S214: =IF(IFERROR(S215/$T$5,S215)=0,"–",IFERROR(S215/$T$5,S215)) -> – | X214: EUR | Z214: =IF(IFERROR(Z215/$T$5,Z215)=0,"–",IFERROR(Z215/$T$5,Z215)) -> – | AE214: EUR | AG214: =IF(IFERROR(AG215/$T$5,AG215)=0,"–",IFERROR(AG215/$T$5,AG215)) -> –
B215: =B214 -> Minimum salary | J215: =$J$5 -> EUR | L215: – | Q215: =$J$5 -> EUR | S215: – | X215: =$J$51 -> EUR | Z215: – | AE215: =$J$51 -> EUR | AG215: –
B216: =B215 -> Minimum salary | J216: =$J$52 -> PPS | L216: =IFERROR(L215/$Z$5,L215) -> – | Q216: =$J$52 -> PPS | S216: =IFERROR(S215/$Z$5,S215) -> – | X216: =$J$52 -> PPS | Z216: =IFERROR(Z215/$Z$5,Z215) -> – | AE216: =$J$52 -> PPS | AG216: =IFERROR(AG215/$Z$5,AG215) -> –
B217: Maximum salary | J217: EUR | L217: =IFERROR(L218/$T$5,L218) -> – | Q217: EUR | S217: =IFERROR(S218/$T$5,S218) -> – | X217: EUR | Z217: =IFERROR(Z218/$T$5,Z218) -> – | AE217: EUR | AG217: =IFERROR(AG218/$T$5,AG218) -> –
B218: =B217 -> Maximum salary | J218: =$J$5 -> EUR | L218: – | Q218: =$J$5 -> EUR | S218: – | X218: =$J$51 -> EUR | Z218: – | AE218: =$J$51 -> EUR | AG218: –
B219: =B218 -> Maximum salary | J219: =$J$52 -> PPS | L219: =IFERROR(L218/$Z$5,L218) -> – | Q219: =$J$52 -> PPS | S219: =IFERROR(S218/$Z$5,S218) -> – | X219: =$J$52 -> PPS | Z219: =IFERROR(Z218/$Z$5,Z218) -> – | AE219: =$J$52 -> PPS | AG219: =IFERROR(AG218/$Z$5,AG218) -> –
B220: Criteria for progression in this salary range | J220: – | Q220: – | X220: – | AE220: –
B221: % school heads paid on this range | J221: – | Q221: – | X221: – | AE221: –
B223: Most prevalent range (when none of the above)
J225: ISCED 02 | Q225: ISCED 1 | X225: ISCED 24 | AE225: ISCED 34
B226: Type of school | J226: – | Q226: – | X226: – | AE226: –
B227: FALSE | C227: TRUE | D227: FALSE
B228: Minimum salary | J228: EUR | L228: =IFERROR(L229/$T$5,L229) -> – | Q228: EUR | S228: =IFERROR(S229/$T$5,S229) -> – | X228: EUR | Z228: =IFERROR(Z229/$T$5,Z229) -> – | AE228: EUR | AG228: =IFERROR(AG229/$T$5,AG229) -> –
B229: =B228 -> Minimum salary | J229: =$J$5 -> EUR | L229: – | Q229: =$J$5 -> EUR | S229: – | X229: =$J$51 -> EUR | Z229: – | AE229: =$J$51 -> EUR | AG229: –
B230: =B229 -> Minimum salary | J230: =$J$52 -> PPS | L230: =IFERROR(L229/$Z$5,L229) -> – | Q230: =$J$52 -> PPS | S230: =IFERROR(S229/$Z$5,S229) -> – | X230: =$J$52 -> PPS | Z230: =IFERROR(Z229/$Z$5,Z229) -> – | AE230: =$J$52 -> PPS | AG230: =IFERROR(AG229/$Z$5,AG229) -> –
B231: Maximum salary | J231: EUR | L231: =IFERROR(L232/$T$5,L232) -> – | Q231: EUR | S231: =IFERROR(S232/$T$5,S232) -> – | X231: EUR | Z231: =IFERROR(Z232/$T$5,Z232) -> – | AE231: EUR | AG231: =IFERROR(AG232/$T$5,AG232) -> –
B232: =B231 -> Maximum salary | J232: =$J$5 -> EUR | L232: – | Q232: =$J$5 -> EUR | S232: – | X232: =$J$51 -> EUR | Z232: – | AE232: =$J$51 -> EUR | AG232: –
B233: =B232 -> Maximum salary | J233: =$J$52 -> PPS | L233: =IFERROR(L232/$Z$5,L232) -> – | Q233: =$J$52 -> PPS | S233: =IFERROR(S232/$Z$5,S232) -> – | X233: =$J$52 -> PPS | Z233: =IFERROR(Z232/$Z$5,Z232) -> – | AE233: =$J$52 -> PPS | AG233: =IFERROR(AG232/$Z$5,AG232) -> –
B234: Criteria for progression in this salary range | J234: – | Q234: – | X234: – | AE234: –
B235: % school heads paid on this range | J235: – | Q235: – | X235: – | AE235: –
B238: Source | J238: Treasury of the Republic of Cyprus - Public Servants Remuneration Tables (http://www.treasury.gov.cy/treasury/treasurynew.nsf/All/3F6393476A4031F4C22584510028FBA2?OpenDocument)
B239: Explanatory notes | J239: –
A241: Average annual gross actual salaries of school heads in public schools | AE241: 2020/2021
B244: TRUE | C244: TRUE | D244: TRUE | J244: ISCED 02 | Q244: ISCED 1 | X244: ISCED 24 | AE244: ISCED 34
B245: School heads aged 25-64 | J245: EUR | L245: =IFERROR(L246/$AF$5,L246) -> 59722 | Q245: EUR | S245: =IFERROR(S246/$AF$5,S246) -> 59722 | X245: EUR | Z245: =IFERROR(Z246/$AF$5,Z246) -> 65347 | AE245: EUR | AG245: =IFERROR(AG246/$AF$5,AG246) -> 65347
B246: =B245 -> School heads aged 25-64 | J246: =$J$5 -> EUR | L246: 59722 | Q246: =$J$51 -> EUR | S246: 59722 | X246: =$J$51 -> EUR | Z246: 65347 | AE246: =$J$51 -> EUR | AG246: 65347
B247: =B246 -> School heads aged 25-64 | J247: PPS | L247: =IFERROR(L246/$Z$5,L246) -> 62871.88125 | Q247: =$J$52 -> PPS | S247: =IFERROR(S246/$Z$5,S246) -> 62871.88125 | X247: =$J$52 -> PPS | Z247: =IFERROR(Z246/$Z$5,Z246) -> 68793.55722 | AE247: =$J$52 -> PPS | AG247: =IFERROR(AG246/$Z$5,AG246) -> 68793.55722
B248: School heads aged 25-34 | J248: EUR | L248: =IFERROR(L249/$AF$5,L249) -> N/A | Q248: EUR | S248: =IFERROR(S249/$AF$5,S249) -> N/A | X248: EUR | Z248: =IFERROR(Z249/$AF$5,Z249) -> N/A | AE248: EUR | AG248: =IFERROR(AG249/$AF$5,AG249) -> N/A
B249: =B248 -> School heads aged 25-34 | J249: =$J$5 -> EUR | L249: N/A | Q249: =$J$5 -> EUR | S249: N/A | X249: =$J$51 -> EUR | Z249: N/A | AE249: =$J$51 -> EUR | AG249: N/A
B250: =B249 -> School heads aged 25-34 | J250: =$J$52 -> PPS | L250: =IFERROR(L249/$Z$5,L249) -> N/A | Q250: =$J$52 -> PPS | S250: =IFERROR(S249/$Z$5,S249) -> N/A | X250: =$J$52 -> PPS | Z250: =IFERROR(Z249/$Z$5,Z249) -> N/A | AE250: =$J$52 -> PPS | AG250: =IFERROR(AG249/$Z$5,AG249) -> N/A
B251: School heads aged 35-44 | J251: EUR | L251: =IFERROR(L252/$AF$5,L252) -> N/A | Q251: EUR | S251: =IFERROR(S252/$AF$5,S252) -> N/A | X251: EUR | Z251: =IFERROR(Z252/$AF$5,Z252) -> N/A | AE251: EUR | AG251: =IFERROR(AG252/$AF$5,AG252) -> N/A
B252: =B251 -> School heads aged 35-44 | J252: =$J$5 -> EUR | L252: N/A | Q252: =$J$5 -> EUR | S252: N/A | X252: =$J$51 -> EUR | Z252: N/A | AE252: =$J$51 -> EUR | AG252: N/A
B253: =B252 -> School heads aged 35-44 | J253: =$J$52 -> PPS | L253: =IFERROR(L252/$Z$5,L252) -> N/A | Q253: =$J$52 -> PPS | S253: =IFERROR(S252/$Z$5,S252) -> N/A | X253: =$J$52 -> PPS | Z253: =IFERROR(Z252/$Z$5,Z252) -> N/A | AE253: =$J$52 -> PPS | AG253: =IFERROR(AG252/$Z$5,AG252) -> N/A
B254: School heads aged 45-54 | J254: EUR | L254: =IFERROR(L255/$AF$5,L255) -> 59722 | Q254: EUR | S254: =IFERROR(S255/$AF$5,S255) -> 59722 | X254: EUR | Z254: =IFERROR(Z255/$AF$5,Z255) -> 65347 | AE254: EUR | AG254: =IFERROR(AG255/$AF$5,AG255) -> 65347
B255: =B254 -> School heads aged 45-54 | J255: =$J$5 -> EUR | L255: 59722 | Q255: =$J$5 -> EUR | S255: 59722 | X255: =$J$51 -> EUR | Z255: 65347 | AE255: =$J$51 -> EUR | AG255: 65347
B256: =B255 -> School heads aged 45-54 | J256: =$J$52 -> PPS | L256: =IFERROR(L255/$Z$5,L255) -> 62871.88125 | Q256: =$J$52 -> PPS | S256: =IFERROR(S255/$Z$5,S255) -> 62871.88125 | X256: =$J$52 -> PPS | Z256: =IFERROR(Z255/$Z$5,Z255) -> 68793.55722 | AE256: =$J$52 -> PPS | AG256: =IFERROR(AG255/$Z$5,AG255) -> 68793.55722
... 59 more rows

Sheet CZ
A1: Czech Republic | AK1: 2020/2021
B3: a | C3: not applicable | J3: m | K3: not available
B5: National currency: | J5: CZK | T5: 25.64 | Z5: 18.5678 | AF5: 25.67
B7: Contents
D8: =$A$37 -> 1. Teachers
D9: =$A$39 -> Annual gross statutory salaries of teachers in public schools
F11: =$B$43 -> Salary range for teachers with the minimum qualification
F12: =$B$67 -> Salary range for teachers with a higher qualification (when most prevalent)
D13: =$A$94 -> Average annual gross actual salaries of teachers in public schools
D14: =$A$119 -> Allowances for teachers in public schools
F16: =$B$120 -> Allowances related to other tasks and responsibilities
F17: =$B$143 -> Allowances related to qualifications, training and performance
F18: =$B$158 -> Allowances related to teaching conditions
F19: =$C$171 -> Other criteria
D20: =$A$186 -> 2. School heads
D21: =$A$188 -> Annual gross statutory salaries of school heads in public schools
F23: =$B$195 -> Single or lowest salary range (when more than one)
F24: =$B$209 -> Highest salary range
F25: =$B$223 -> Most prevalent range (when none of the above)
D27: =$A$241 -> Average annual gross actual salaries of school heads in public schools
D29: =$A$266 -> Allowances for school heads in public schools
F31: =$B$267 -> Allowances related to other tasks and responsibilities
F32: =$B$290 -> Allowances related to qualifications, training and performance
F33: =$B$305 -> Allowances related to working conditions
F34: =$B$318 -> Other criteria
A37: 1. Teachers
A39: Annual gross statutory salaries of teachers in public schools | AE39: 2020/2021
J40: ISCED 02 | Q40: ISCED 1 | X40: ISCED 24 | AE40: ISCED 34
B41: Authority level determining the statutory salaries of teachers | J41: Top-level authority
B43: Salary range for teachers with the minimum qualification
J45: ISCED 02 | Q45: ISCED 1 | X45: ISCED 24 | AE45: ISCED 34
B46: Minimum qualification to enter the teaching profession | J46: Certificate on completing upper secondary education with Maturita examination in a field aimed specially at pre-primary school teacher training (ISCED 3) | Q46: Master’s degree (ISCED 7) and pedagogical qualification | X46: Master’s degree (ISCED 7) and pedagogical qualification | AE46: Master’s degree (ISCED 7) and pedagogical qualification
B49: TRUE | C49: TRUE | D49: TRUE | J49: ISCED 02 | Q49: ISCED 1 | X49: ISCED 24 | AE49: ISCED 34
B50: Starting salary | J50: EUR | L50: =IFERROR(L51/$T$5,L51) -> 13806.55226 | Q50: EUR | S50: =IFERROR(S51/$T$5,S51) -> 14789.39158 | X50: EUR | Z50: =IFERROR(Z51/$T$5,Z51) -> 14789.39158 | AE50: EUR | AG50: =IFERROR(AG51/$T$5,AG51) -> 14789.39158
B51: =$B$50 -> Starting salary | J51: =$J$5 -> CZK | L51: 354000 | Q51: =$J$5 -> CZK | S51: 379200 | X51: =$J$5 -> CZK | Z51: 379200 | AE51: =$J$5 -> CZK | AG51: 379200
B52: =$B$50 -> Starting salary | J52: PPS | L52: =IFERROR(L51/$Z$5,L51) -> 19065.26352 | Q52: =$J$52 -> PPS | S52: =IFERROR(S51/$Z$5,S51) -> 20422.45177 | X52: =$J$52 -> PPS | Z52: =IFERROR(Z51/$Z$5,Z51) -> 20422.45177 | AE52: =$J$52 -> PPS | AG52: =IFERROR(AG51/$Z$5,AG51) -> 20422.45177
B53: After 10 years' experience | J53: EUR | L53: =IFERROR(L54/$T$5,L54) -> 14368.17473 | Q53: EUR | S53: =IFERROR(S54/$T$5,S54) -> 15725.42902 | X53: EUR | Z53: =IFERROR(Z54/$T$5,Z54) -> 15772.23089 | AE53: EUR | AG53: =IFERROR(AG54/$T$5,AG54) -> 15772.23089
B54: =$B$53 -> After 10 years' experience | J54: =$J$5 -> CZK | L54: 368400 | Q54: =$J$5 -> CZK | S54: 403200 | X54: =$J$5 -> CZK | Z54: 404400 | AE54: =$J$5 -> CZK | AG54: 404400
B55: =$B$53 -> After 10 years' experience | J55: =$J$52 -> PPS | L55: =IFERROR(L54/$Z$5,L54) -> 19840.79966 | Q55: =$J$52 -> PPS | S55: =IFERROR(S54/$Z$5,S54) -> 21715.01201 | X55: =$J$52 -> PPS | Z55: =IFERROR(Z54/$Z$5,Z54) -> 21779.64002 | AE55: =$J$52 -> PPS | AG55: =IFERROR(AG54/$Z$5,AG54) -> 21779.64002
B56: After 15 years' experience | J56: EUR | L56: =IFERROR(L57/$T$5,L57) -> 14742.5897 | Q56: EUR | S56: =IFERROR(S57/$T$5,S57) -> 16427.4571 | X56: EUR | Z56: =IFERROR(Z57/$T$5,Z57) -> 16474.25897 | AE56: EUR | AG56: =IFERROR(AG57/$T$5,AG57) -> 16474.25897
B57: =$B$56 -> After 15 years' experience | J57: =$J$5 -> CZK | L57: 378000 | Q57: =$J$5 -> CZK | S57: 421200 | X57: =$J$5 -> CZK | Z57: 422400 | AE57: =$J$5 -> CZK | AG57: 422400
B58: =$B$56 -> After 15 years' experience | J58: =$J$52 -> PPS | L58: =IFERROR(L57/$Z$5,L57) -> 20357.82376 | Q58: =$J$52 -> PPS | S58: =IFERROR(S57/$Z$5,S57) -> 22684.43219 | X58: =$J$52 -> PPS | Z58: =IFERROR(Z57/$Z$5,Z57) -> 22749.0602 | AE58: =$J$52 -> PPS | AG58: =IFERROR(AG57/$Z$5,AG57) -> 22749.0602
B59: At the top of the range | J59: EUR | L59: =IFERROR(L60/$T$5,L60) -> 16380.65523 | Q59: EUR | S59: =IFERROR(S60/$T$5,S60) -> 19375.97504 | X59: EUR | Z59: =IFERROR(Z60/$T$5,Z60) -> 19516.38066 | AE59: EUR | AG59: =IFERROR(AG60/$T$5,AG60) -> 19469.57878
B60: =$B$59 -> At the top of the range | J60: =$J$5 -> CZK | L60: 420000 | Q60: =$J$5 -> CZK | S60: 496800 | X60: =$J$5 -> CZK | Z60: 500400 | AE60: =$J$5 -> CZK | AG60: 499200
B61: =$B$59 -> At the top of the range | J61: =$J$52 -> PPS | L61: =IFERROR(L60/$Z$5,L60) -> 22619.80418 | Q61: =$J$52 -> PPS | S61: =IFERROR(S60/$Z$5,S60) -> 26755.99694 | X61: =$J$52 -> PPS | Z61: =IFERROR(Z60/$Z$5,Z60) -> 26949.88098 | AE61: =$J$52 -> PPS | AG61: =IFERROR(AG60/$Z$5,AG60) -> 26885.25296
L63: ISCED 02 | Q63: ISCED 1 | X63: ISCED 24 | AE63: ISCED 34
B64: % teachers paid on this range | L64: 1 | Q64: 1 | X64: 1 | AE64: 1
B65: Average nr of years to reach the top | L65: 32 | Q65: 32 | X65: 32 | AE65: 32
B67: Salary range for teachers with a higher qualification (when most prevalent)
J69: ISCED 02 | Q69: ISCED 1 | X69: ISCED 24 | AE69: ISCED 34
B70: Minimum qualification to enter the teaching profession | J70: – | Q70: – | X70: – | AE70: –
B73: FALSE | C73: TRUE | D73: FALSE | J73: ISCED 02 | Q73: ISCED 1 | X73: ISCED 24 | AE73: ISCED 34
B74: Starting salary | J74: EUR | L74: =IFERROR(L75/$T$5,L75) -> – | Q74: EUR | S74: =IFERROR(S75/$T$5,S75) -> – | X74: EUR | Z74: =IFERROR(Z75/$T$5,Z75) -> – | AE74: EUR | AG74: =IFERROR(AG75/$T$5,AG75) -> –
B75: =$B$50 -> Starting salary | J75: =$J$5 -> CZK | L75: – | Q75: =$J$51 -> CZK | S75: – | X75: =$J$5 -> CZK | Z75: – | AE75: =$J$5 -> CZK | AG75: –
B76: =$B$50 -> Starting salary | J76: PPS | L76: =IFERROR(L75/$Z$5,L75) -> – | Q76: =$J$52 -> PPS | S76: =IFERROR(S75/$Z$5,S75) -> – | X76: =$J$52 -> PPS | Z76: =IFERROR(Z75/$Z$5,Z75) -> – | AE76: =$J$52 -> PPS | AG76: =IFERROR(AG75/$Z$5,AG75) -> –
B77: After 10 years' experience | J77: EUR | L77: =IFERROR(L78/$T$5,L78) -> – | Q77: EUR | S77: =IFERROR(S78/$T$5,S78) -> – | X77: EUR | Z77: =IFERROR(Z78/$T$5,Z78) -> – | AE77: EUR | AG77: =IFERROR(AG78/$T$5,AG78) -> –
B78: =$B$53 -> After 10 years' experience | J78: =$J$5 -> CZK | L78: – | Q78: =$J$51 -> CZK | S78: – | X78: =$J$5 -> CZK | Z78: – | AE78: =$J$5 -> CZK | AG78: –
B79: =$B$53 -> After 10 years' experience | J79: =$J$52 -> PPS | L79: =IFERROR(L78/$Z$5,L78) -> – | Q79: =$J$52 -> PPS | S79: =IFERROR(S78/$Z$5,S78) -> – | X79: =$J$52 -> PPS | Z79: =IFERROR(Z78/$Z$5,Z78) -> – | AE79: =$J$52 -> PPS | AG79: =IFERROR(AG78/$Z$5,AG78) -> –
B80: After 15 years' experience | J80: EUR | L80: =IFERROR(L81/$T$5,L81) -> – | Q80: EUR | S80: =IFERROR(S81/$T$5,S81) -> – | X80: EUR | Z80: =IFERROR(Z81/$T$5,Z81) -> – | AE80: EUR | AG80: =IFERROR(AG81/$T$5,AG81) -> –
B81: =$B$56 -> After 15 years' experience | J81: =$J$5 -> CZK | L81: – | Q81: =$J$51 -> CZK | S81: – | X81: =$J$5 -> CZK | Z81: – | AE81: =$J$5 -> CZK | AG81: –
B82: =$B$56 -> After 15 years' experience | J82: =$J$52 -> PPS | L82: =IFERROR(L81/$Z$5,L81) -> – | Q82: =$J$52 -> PPS | S82: =IFERROR(S81/$Z$5,S81) -> – | X82: =$J$52 -> PPS | Z82: =IFERROR(Z81/$Z$5,Z81) -> – | AE82: =$J$52 -> PPS | AG82: =IFERROR(AG81/$Z$5,AG81) -> –
B83: At the top of the range | J83: EUR | L83: =IFERROR(L84/$T$5,L84) -> – | Q83: EUR | S83: =IFERROR(S84/$T$5,S84) -> – | X83: EUR | Z83: =IFERROR(Z84/$T$5,Z84) -> – | AE83: EUR | AG83: =IFERROR(AG84/$T$5,AG84) -> –
B84: =$B$59 -> At the top of the range | J84: =$J$5 -> CZK | L84: – | Q84: =$J$51 -> CZK | S84: – | X84: =$J$5 -> CZK | Z84: – | AE84: =$J$5 -> CZK | AG84: –
B85: =$B$59 -> At the top of the range | J85: =$J$52 -> PPS | L85: =IFERROR(L84/$Z$5,L84) -> – | Q85: =$J$52 -> PPS | S85: =IFERROR(S84/$Z$5,S84) -> – | X85: =$J$52 -> PPS | Z85: =IFERROR(Z84/$Z$5,Z84) -> – | AE85: =$J$52 -> PPS | AG85: =IFERROR(AG84/$Z$5,AG84) -> –
L87: ISCED 02 | Q87: ISCED 1 | X87: ISCED 24 | AE87: ISCED 34
B88: % teachers paid on this range | L88: – | Q88: – | X88: – | AE88: –
B89: Average nr of years to reach the top | L89: – | Q89: – | X89: – | AE89: –
B91: Source | J91: Government Regulation on Pay Terms of Employees in Public Services and Administration (salary tables with statutory salaries). Information system of salaries in the public sector of the Ministry of Finance - ISS (estimated data).
B92: Explanatory notes | J92: The annual gross statutory salary is calculated combining two different salary tables from the Government Regulation on Pay Terms of Employees in Public Services and Administration: one valid from September 2020 to December 2020 (4 months in school year 2020/2021) and the second from January 2021 to August 2021 (8 months in school year 2020/2021). Salary tables consist of 6 pay categories (8th-10th for pre-primary teachers, 11th-13th for primary and secondary teachers) depending on complexity, responsibility and demandingness of the work they perform, and 7 pay grades according to the length of professional experience (0-2 years, 2-6 years, 6-12 years, 12-19 years, 19-27 years, 27-32 years, 32+ years). Teachers are placed to the 10th pay category (pre-primary teachers) and to the 13th pay category (primary and secondary teachers) only on exceptional circumstances (usually school counsellors with completed prescribed qualification). The reported statutory salaries are estimates combining the salary tables with data on number of teachers in each pay category and pay grade according to the database ISS 2019 and ISS 2020 (reference year 2019/20).
A94: Average annual gross actual salaries of teachers in public schools | AE94: 2020/2021
B97: TRUE | C97: TRUE | D97: TRUE | J97: ISCED 02 | Q97: ISCED 1 | X97: ISCED 24 | AE97: ISCED 34
B98: Teachers aged 25-64 | J98: EUR | L98: =IFERROR(L99/$AF$5,L99) -> 16194.00078 | Q98: EUR | S98: =IFERROR(S99/$AF$5,S99) -> 20085.70316 | X98: EUR | Z98: =IFERROR(Z99/$AF$5,Z99) -> 19945.46163 | AE98: EUR | AG98: =IFERROR(AG99/$AF$5,AG99) -> 20923.25672
B99: =B98 -> Teachers aged 25-64 | J99: =$J$5 -> CZK | L99: 415700 | Q99: =$J$51 -> CZK | S99: 515600 | X99: =$J$5 -> CZK | Z99: 512000 | AE99: =$J$5 -> CZK | AG99: 537100
B100: =B99 -> Teachers aged 25-64 | J100: PPS | L100: =IFERROR(L99/$Z$5,L99) -> 22388.22047 | Q100: =$J$52 -> PPS | S100: =IFERROR(S99/$Z$5,S99) -> 27768.50246 | X100: =$J$52 -> PPS | Z100: =IFERROR(Z99/$Z$5,Z99) -> 27574.61843 | AE100: =$J$52 -> PPS | AG100: =IFERROR(AG99/$Z$5,AG99) -> 28926.42101
B101: Teachers aged 25-34 | J101: EUR | L101: =IFERROR(L102/$AF$5,L102) -> 14803.2723 | Q101: EUR | S101: =IFERROR(S102/$AF$5,S102) -> 17569.14686 | X101: EUR | Z101: =IFERROR(Z102/$AF$5,Z102) -> 17686.0148 | AE101: EUR | AG101: =IFERROR(AG102/$AF$5,AG102) -> 18391.11804
B102: =B101 -> Teachers aged 25-34 | J102: =$J$5 -> CZK | L102: 380000 | Q102: =$J$51 -> CZK | S102: 451000 | X102: =$J$5 -> CZK | Z102: 454000 | AE102: =$J$5 -> CZK | AG102: 472100
B103: =B102 -> Teachers aged 25-34 | J103: =$J$52 -> PPS | L103: =IFERROR(L102/$Z$5,L102) -> 20465.53711 | Q103: =$J$52 -> PPS | S103: =IFERROR(S102/$Z$5,S102) -> 24289.36115 | X103: =$J$52 -> PPS | Z103: =IFERROR(Z102/$Z$5,Z102) -> 24450.93118 | AE103: =$J$52 -> PPS | AG103: =IFERROR(AG102/$Z$5,AG102) -> 25425.73703
B104: Teachers aged 35-44 | J104: EUR | L104: =IFERROR(L105/$AF$5,L105) -> 15640.82587 | Q104: EUR | S104: =IFERROR(S105/$AF$5,S105) -> 19065.05649 | X104: EUR | Z104: =IFERROR(Z105/$AF$5,Z105) -> 19201.40242 | AE104: EUR | AG104: =IFERROR(AG105/$AF$5,AG105) -> 19832.48929
B105: =B104 -> Teachers aged 35-44 | J105: =$J$5 -> CZK | L105: 401500 | Q105: =$J$51 -> CZK | S105: 489400 | X105: =$J$5 -> CZK | Z105: 492900 | AE105: =$J$5 -> CZK | AG105: 509100
B106: =B105 -> Teachers aged 35-44 | J106: =$J$52 -> PPS | L106: =IFERROR(L105/$Z$5,L105) -> 21623.45566 | Q106: =$J$52 -> PPS | S106: =IFERROR(S105/$Z$5,S105) -> 26357.45753 | X106: =$J$52 -> PPS | Z106: =IFERROR(Z105/$Z$5,Z105) -> 26545.9559 | AE106: =$J$52 -> PPS | AG106: =IFERROR(AG105/$Z$5,AG105) -> 27418.43406
B107: Teachers aged 45-54 | J107: EUR | L107: =IFERROR(L108/$AF$5,L108) -> 16751.07129 | Q107: EUR | S107: =IFERROR(S108/$AF$5,S108) -> 20751.85041 | X107: EUR | Z107: =IFERROR(Z108/$AF$5,Z108) -> 20849.24036 | AE107: EUR | AG107: =IFERROR(AG108/$AF$5,AG108) -> 21289.44293
B108: =B107 -> Teachers aged 45-54 | J108: =$J$5 -> CZK | L108: 430000 | Q108: =$J$51 -> CZK | S108: 532700 | X108: =$J$5 -> CZK | Z108: 535200 | AE108: =$J$5 -> CZK | AG108: 546500
B109: =B108 -> Teachers aged 45-54 | J109: =$J$52 -> PPS | L109: =IFERROR(L108/$Z$5,L108) -> 23158.37094 | Q109: =$J$52 -> PPS | S109: =IFERROR(S108/$Z$5,S108) -> 28689.45163 | X109: =$J$52 -> PPS | Z109: =IFERROR(Z108/$Z$5,Z108) -> 28824.09332 | AE109: =$J$52 -> PPS | AG109: =IFERROR(AG108/$Z$5,AG108) -> 29432.67377
B110: Teachers aged 55-64 | J110: EUR | L110: =IFERROR(L111/$AF$5,L111) -> 17113.3619 | Q110: EUR | S110: =IFERROR(S111/$AF$5,S111) -> 21573.82158 | X110: EUR | Z110: =IFERROR(Z111/$AF$5,Z111) -> 21780.28827 | AE110: EUR | AG110: =IFERROR(AG111/$AF$5,AG111) -> 22236.07324
B111: =B110 -> Teachers aged 55-64 | J111: =$J$5 -> CZK | L111: 439300 | Q111: =$J$51 -> CZK | S111: 553800 | X111: =$J$5 -> CZK | Z111: 559100 | AE111: =$J$5 -> CZK | AG111: 570800
B112: =B111 -> Teachers aged 55-64 | J112: =$J$52 -> PPS | L112: =IFERROR(L111/$Z$5,L111) -> 23659.23804 | Q112: =$J$52 -> PPS | S112: =IFERROR(S111/$Z$5,S111) -> 29825.82751 | X112: =$J$52 -> PPS | Z112: =IFERROR(Z111/$Z$5,Z111) -> 30111.26789 | AE112: =$J$52 -> PPS | AG112: =IFERROR(AG111/$Z$5,AG111) -> 30741.39101
B115: Source | J115: The Information system of salaries in the public sector database (ISS) of the Ministry of Finance.
B116: Explanatory notes | J116: Data refers to 2019/2020. Lower grades of multi-years 'gymnazia' (ISCED 24) and vocational programmes of secondary education (ISCED 35) are included in the upper secondary level (ISCED 34).
A119: Allowances for teachers in public schools | B119: Salary range for teachers with a higher qualification (when most prevalent) | AE119: 2020/2021
B120: Allowances related to other tasks and responsibilities | N120: 1 | U120: 2
O122: Authority level | V122: Type of financial compensation | AD122: ISCED levels
AD123: 02 | AF123: 1 | AH123: 24 | AJ123: 34
B124: Participation in school or other management tasks in addition to teaching duties | O124: > 1 authority level | V124: % of salary | AD124: ● | AF124: ● | AH124: ● | AJ124: ●
B125: Teaching more classes or hours than required by full-time contract | O125: Top-level authority | V125: % of salary | AD125: ● | AF125: ● | AH125: ● | AJ125: ●
B126: Students counselling | O126: > 1 authority level | V126: Regular additional payments | AF126: ● | AH126: ● | AJ126: ●
B127: Engaging in extracurricular activities | O127: > 1 authority level | V127: % of salary | AD127: ● | AF127: ● | AH127: ● | AJ127: ●
B128: Special tasks | O128: > 1 authority level | V128: % of salary | AD128: ● | AF128: ● | AH128: ● | AJ128: ●
B129: Class teacher / form teacher | O129: > 1 authority level | V129: Regular additional payments | AF129: ● | AH129: ● | AJ129: ●
B130: Supporting mentoring / induction programmes | O130: > 1 authority level | V130: % of salary | AD130: ● | AF130: ● | AH130: ● | AJ130: ●
B131: Other | O131: > 1 authority level | V131: Incidental payments | AD131: ● | AF131: ● | AH131: ● | AJ131: ●
O133: Explanatory notes
B134: =B124 -> Participation in school or other management tasks in addition to teaching duties | O134: Leadership of other employees set in the percentage of the highest salary step in the given category: 5-50% according to the level of leadership. The school head sets the criteria for assigning the exact amount.
B135: Teaching more classes or hours than required by full-time contract | O135: An allowance for direct teaching above a specified range for teachers is equal to a double of the hourly average earnings for every hour of direct teaching.
B136: Students counselling | O136: School prevention specialist in the area of social-risky behaviour prevention is entitled to CZK 1 000 - 2 000 monthly (further qualification required). School head decides on exact amount. School counsellor performing specialised methodical and complex counselling activities provided that he/she has fulfilled the further qualification defined by law is entitled to progression to higher salary category.
B137: Engaging in extracurricular activities | O137: Individual allowances can be paid for performing additional tasks such as administration of a school library, checking school materials, organising school competitions, mentoring and support for other teachers. The individual allowance can amount to 50% (in some cases up to 100%) of the pay rate of the highest pay grade of the pay category. The exact amount is within the discretion of the school head.
B138: Special tasks | O138: Teachers can also get the individual allowance for supporting other teachers.
B139: Class teacher / form teacher | O139: Allowance for a 'class teacher': CZK 1 500 - 3 000 monthly. School head sets the criteria for assigning the exact amount.
B140: Supporting mentoring / induction programmes | O140: Teachers can also get the individual allowance for mentoring new teachers.
B141: Other | O141: Remuneration for the successful completion of an extraordinary or exceptionally important work task. School head decides on exact amount.
B143: Allowances related to qualifications, training and performance | N143: 0 | U143: 0
O145: Authority level | V145: Type of financial compensation | AD145: ISCED levels
AD146: 02 | AF146: 1 | AH146: 24 | AJ146: 34
B147: Further formal qualifications | O147: a | V147: a | AD147: ● | AF147: ● | AH147: ● | AJ147: ●
B148: Successful completion of continuing professional development (CPD) activities | O148: > 1 authority level | V148: Regular additional payments | AF148: ● | AH148: ● | AJ148: ●
B149: Outstanding performance | O149: > 1 authority level | V149: % of salary | AD149: ● | AF149: ● | AH149: ● | AJ149: ●
B150: Other | O150: > 1 authority level | V150: Progression in pay range | AF150: ● | AH150: ● | AJ150: ●
O152: Explanatory notes
B153: =B147 -> Further formal qualifications | O153: –
B154: Successful completion of continuing professional development (CPD) activities | O154: Performance of specialised activities requiring further qualifications, such as coordination in the area of ICT, developing and coordination of the School Education Programmes, prevention of social-risky behaviour, performing specialised activities in the area of environmental education, specialised activities of SEN specialist in school speech therapy, and specialised activities related to the spatial orientation of visually disabled children and pupils, is awarded by the allowance of CZK 1 000 - 2 000 monthly. The school head sets the criteria for assigning the exact amount. The weekly direct teaching activity of a teacher who teaches ICT-methods is reduced by 1 to 5 lessons, depending on the school size.
B155: Outstanding performance | O155: The individual allowance can also be paid for the continuing excellent performance at work. The teacher performance is evaluated by the school head.
B156: Other | O156: School counsellor performing specialised methodical and complex counselling activities, provided that he/she has fulfilled the further qualification defined by law, is entitled to progression to a higher salary category (from 12 to 13). The extent of weekly direct teaching activity of teachers who perform the function of a school counsellor is reduced by 1-5 lessons a week, depending on the school size.
B158: Allowances related to teaching conditions | N158: 0 | U158: 0
O160: Authority level | V160: Type of financial compensation | AD160: ISCED levels
AD161: 02 | AF161: 1 | AH161: 24 | AJ161: 34
B162: Teaching students with special educational needs | O162: > 1 authority level | V162: % of salary | AD162: ● | AF162: ● | AH162: ● | AJ162: ●
B163: Teaching in a disadvantaged, remote or high cost area | O163: a | V163: a | AD163: ● | AF163: ● | AH163: ● | AJ163: ●
B164: Other | O164: > 1 authority level | V164: Regular additional payments | AF164: ● | AH164: ● | AJ164: ●
O166: Explanatory notes
B167: =B162 -> Teaching students with special educational needs | O167: The individual allowance can also be granted for teaching in classes integrating pupils with special needs. Teachers working with students with special educational needs in special schools, classes or groups are entitled to a monthly allowance of CZK 750 - 2 500. School head sets the criteria for assigning the exact amount.
B168: Teaching in a disadvantaged, remote or high cost area | O168: –
B169: Other | O169: Teachers working in classes with pupils of different age: CZK 750 - 2 500 monthly. School head sets the criteria for assigning the exact amount.
C171: Other criteria
O173: Authority level | V173: Type of financial compensation | AD173: ISCED levels
AD174: 02 | AF174: 1 | AH174: 24 | AJ174: 34
B175: Residence allowance | O175: a | V175: a | AD175: ● | AF175: ● | AH175: ● | AJ175: ●
B176: Family status | O176: a | V176: a | AD176: ● | AF176: ● | AH176: ● | AJ176: ●
B177: Other | O177: > 1 authority level | V177: Incidental payments | AD177: ● | AF177: ● | AH177: ● | AJ177: ●
O179: Explanatory notes
B180: =B175 -> Residence allowance | O180: –
B181: Family status | O181: There are no teachers allowances related to the family status. According to general legislation, however, teachers can apply for child allowances like any citizen. The criteria are based on the family's income.
B182: Other | O182: There is also possibility to grant employee a special pay (pay completely outside the salary system) to appraise their work by the employer, e.g. at an anniversary.
B184: Source | O184: Labour Code (Sb. 262/2006); Government Regulation on Pay Terms of Employees in Public Services and Administration (Sb. 341/2017); Guidelines of the MEYS for Remuneration of the Educational Staff and other Employees of Schools and Schools Facilities and their Assorting into Salary Categories based on Work Catalogue (Internal Regulation of the Ministry); Government Regulation on Determination of Direct Educational, Special Needs, and Educational and Psychological Activities of Pedagogical Staff (Sb.75/2005)
A186: 2. School heads
A188: Annual gross statutory salaries of school heads in public schools | AE188: 2020/2021
J189: ISCED 02 | Q189: ISCED 1 | X189: ISCED 24 | AE189: ISCED 34
B190: Authority level determining the statutory salaries of school heads | J190: Top-level authority | Q190: Top-level authority | X190: Top-level authority | AE190: Top-level authority
J192: ISCED 02 | Q192: ISCED 1 | X192: ISCED 24 | AE192: ISCED 34
B193: Minimum qualification to become a school head | J193: Certificate on completing upper secondary education with Maturita examination in a field aimed specially at pre-primary school teacher training (ISCED 3), 3 years of professional experience, and specific training for school heads | Q193: Master’s degree (ISCED 7), 4 years of professional experience, and specific training for school heads | X193: Master’s degree (ISCED 7), 4 or 5 years of professional experience and specific training for school heads | AE193: Master’s degree (ISCED 7), 4 or 5 years of professional experience and specific training for school heads
B195: Single or lowest salary range (when more than one)
J197: ISCED 02 | Q197: ISCED 1 | X197: ISCED 24 | AE197: ISCED 34
B198: Type of school | J198: All schools
B199: TRUE | C199: TRUE | D199: TRUE
B200: Minimum salary | J200: EUR | L200: =IFERROR(L201/$T$5,L201) -> 14321.37285 | Q200: EUR | S200: =IFERROR(S201/$T$5,S201) -> 14882.99532 | X200: EUR | Z200: =IFERROR(Z201/$T$5,Z201) -> 14882.99532 | AE200: EUR | AG200: =IFERROR(AG201/$T$5,AG201) -> 14882.99532
B201: =B200 -> Minimum salary | J201: =$J$5 -> CZK | L201: 367200 | Q201: =$J$5 -> CZK | S201: 381600 | X201: =$J$51 -> CZK | Z201: 381600 | AE201: =$J$51 -> CZK | AG201: 381600
B202: =B201 -> Minimum salary | J202: =$J$52 -> PPS | L202: =IFERROR(L201/$Z$5,L201) -> 19776.17165 | Q202: =$J$52 -> PPS | S202: =IFERROR(S201/$Z$5,S201) -> 20551.7078 | X202: =$J$52 -> PPS | Z202: =IFERROR(Z201/$Z$5,Z201) -> 20551.7078 | AE202: =$J$52 -> PPS | AG202: =IFERROR(AG201/$Z$5,AG201) -> 20551.7078
B203: Maximum salary | J203: EUR | L203: =IFERROR(L204/$T$5,L204) -> 17082.68331 | Q203: EUR | S203: =IFERROR(S204/$T$5,S204) -> 20218.40874 | X203: EUR | Z203: =IFERROR(Z204/$T$5,Z204) -> 20218.40874 | AE203: EUR | AG203: =IFERROR(AG204/$T$5,AG204) -> 20265.21061
B204: =B203 -> Maximum salary | J204: =$J$5 -> CZK | L204: 438000 | Q204: =$J$5 -> CZK | S204: 518400 | X204: =$J$51 -> CZK | Z204: 518400 | AE204: =$J$51 -> CZK | AG204: 519600
B205: =B204 -> Maximum salary | J205: =$J$52 -> PPS | L205: =IFERROR(L204/$Z$5,L204) -> 23589.22436 | Q205: =$J$52 -> PPS | S205: =IFERROR(S204/$Z$5,S204) -> 27919.30116 | X205: =$J$52 -> PPS | Z205: =IFERROR(Z204/$Z$5,Z204) -> 27919.30116 | AE205: =$J$52 -> PPS | AG205: =IFERROR(AG204/$Z$5,AG204) -> 27983.92917
B206: Criteria for progression in this salary range | J206: Number of years of experience | Q206: Number of years of experience | X206: Number of years of experience | AE206: Number of years of experience
B207: % school heads paid on this range | J207: 1 | Q207: 1 | X207: 1 | AE207: 1
B209: Highest salary range
J211: ISCED 02 | Q211: ISCED 1 | X211: ISCED 24 | AE211: ISCED 34
B212: Type of school | J212: – | Q212: – | X212: – | AE212: –
B213: FALSE | C213: TRUE | D213: FALSE
B214: Minimum salary | J214: EUR | L214: =IF(IFERROR(L215/$T$5,L215)=0,"–",IFERROR(L215/$T$5,L215)) -> – | Q214: EUR | S214: =IF(IFERROR(S215/$T$5,S215)=0,"–",IFERROR(S215/$T$5,S215)) -> – | X214: EUR | Z214: =IF(IFERROR(Z215/$T$5,Z215)=0,"–",IFERROR(Z215/$T$5,Z215)) -> – | AE214: EUR | AG214: =IF(IFERROR(AG215/$T$5,AG215)=0,"–",IFERROR(AG215/$T$5,AG215)) -> –
B215: =B214 -> Minimum salary | J215: =$J$5 -> CZK | L215: – | Q215: =$J$5 -> CZK | S215: – | X215: =$J$51 -> CZK | Z215: – | AE215: =$J$51 -> CZK | AG215: –
B216: =B215 -> Minimum salary | J216: =$J$52 -> PPS | L216: =IFERROR(L215/$Z$5,L215) -> – | Q216: =$J$52 -> PPS | S216: =IFERROR(S215/$Z$5,S215) -> – | X216: =$J$52 -> PPS | Z216: =IFERROR(Z215/$Z$5,Z215) -> – | AE216: =$J$52 -> PPS | AG216: =IFERROR(AG215/$Z$5,AG215) -> –
B217: Maximum salary | J217: EUR | L217: =IFERROR(L218/$T$5,L218) -> – | Q217: EUR | S217: =IFERROR(S218/$T$5,S218) -> – | X217: EUR | Z217: =IFERROR(Z218/$T$5,Z218) -> – | AE217: EUR | AG217: =IFERROR(AG218/$T$5,AG218) -> –
B218: =B217 -> Maximum salary | J218: =$J$5 -> CZK | L218: – | Q218: =$J$5 -> CZK | S218: – | X218: =$J$51 -> CZK | Z218: – | AE218: =$J$51 -> CZK | AG218: –
B219: =B218 -> Maximum salary | J219: =$J$52 -> PPS | L219: =IFERROR(L218/$Z$5,L218) -> – | Q219: =$J$52 -> PPS | S219: =IFERROR(S218/$Z$5,S218) -> – | X219: =$J$52 -> PPS | Z219: =IFERROR(Z218/$Z$5,Z218) -> – | AE219: =$J$52 -> PPS | AG219: =IFERROR(AG218/$Z$5,AG218) -> –
B220: Criteria for progression in this salary range | J220: – | Q220: – | X220: – | AE220: –
B221: % school heads paid on this range | J221: – | Q221: – | X221: – | AE221: –
B223: Most prevalent range (when none of the above)
J225: ISCED 02 | Q225: ISCED 1 | X225: ISCED 24 | AE225: ISCED 34
B226: Type of school | J226: – | Q226: – | X226: – | AE226: –
B227: FALSE | C227: TRUE | D227: FALSE
B228: Minimum salary | J228: EUR | L228: =IFERROR(L229/$T$5,L229) -> – | Q228: EUR | S228: =IFERROR(S229/$T$5,S229) -> – | X228: EUR | Z228: =IFERROR(Z229/$T$5,Z229) -> – | AE228: EUR | AG228: =IFERROR(AG229/$T$5,AG229) -> –
B229: =B228 -> Minimum salary | J229: =$J$5 -> CZK | L229: – | Q229: =$J$5 -> CZK | S229: – | X229: =$J$51 -> CZK | Z229: – | AE229: =$J$51 -> CZK | AG229: –
B230: =B229 -> Minimum salary | J230: =$J$52 -> PPS | L230: =IFERROR(L229/$Z$5,L229) -> – | Q230: =$J$52 -> PPS | S230: =IFERROR(S229/$Z$5,S229) -> – | X230: =$J$52 -> PPS | Z230: =IFERROR(Z229/$Z$5,Z229) -> – | AE230: =$J$52 -> PPS | AG230: =IFERROR(AG229/$Z$5,AG229) -> –
B231: Maximum salary | J231: EUR | L231: =IFERROR(L232/$T$5,L232) -> – | Q231: EUR | S231: =IFERROR(S232/$T$5,S232) -> – | X231: EUR | Z231: =IFERROR(Z232/$T$5,Z232) -> – | AE231: EUR | AG231: =IFERROR(AG232/$T$5,AG232) -> –
B232: =B231 -> Maximum salary | J232: =$J$5 -> CZK | L232: – | Q232: =$J$5 -> CZK | S232: – | X232: =$J$51 -> CZK | Z232: – | AE232: =$J$51 -> CZK | AG232: –
B233: =B232 -> Maximum salary | J233: =$J$52 -> PPS | L233: =IFERROR(L232/$Z$5,L232) -> – | Q233: =$J$52 -> PPS | S233: =IFERROR(S232/$Z$5,S232) -> – | X233: =$J$52 -> PPS | Z233: =IFERROR(Z232/$Z$5,Z232) -> – | AE233: =$J$52 -> PPS | AG233: =IFERROR(AG232/$Z$5,AG232) -> –
B234: Criteria for progression in this salary range | J234: – | Q234: – | X234: – | AE234: –
B235: % school heads paid on this range | J235: – | Q235: – | X235: – | AE235: –
B238: Source | J238: 1) Government Regulation on Pay Terms of Employees in Public Services and Administration (Sb. 341/2017) (https://aplikace.mvcr.cz/sbirka-zakonu/) 2) Information system of salaries in the public sector of the Ministry of Finance (ISS)
B239: Explanatory notes | J239: The annual gross statutory salary is calculated combining two different salary tables from the Government Regulation on Pay Terms of Employees in Public Services and Administration, one valid from September 2020 to December 2020 (4 months in school year 2020/2021) and the second from January 2021 to August 2021 (8 months in school year 2020/2021). School heads can be assigned to 5 pay categories (9th-11th for pre-primary school heads, 12th-13th for primary and secondary school heads) and 7 pay grades according to the length of their professional experience (0-2 years, 2-6 years, 6-12 years, 12-19 years, 19-27 years, 27-32 years, 32+ years). The reported statutory salaries are estimates combining the salary tables with data on number of school heads in each pay category and pay grade according to the database ISS 2019 and ISS 2020 (reference year 2019/20). The reported salaries do not include the management allowance that all school heads receive, which can amount to between 15% and 60% of the highest grade for each pay category.
A241: Average annual gross actual salaries of school heads in public schools | AE241: 2020/2021
B244: TRUE | C244: TRUE | D244: TRUE | J244: ISCED 02 | Q244: ISCED 1 | X244: ISCED 24 | AE244: ISCED 34
B245: School heads aged 25-64 | J245: EUR | L245: =IFERROR(L246/$AF$5,L246) -> 23260.6155 | Q245: EUR | S245: =IFERROR(S246/$AF$5,S246) -> 30888.19634 | X245: EUR | Z245: =IFERROR(Z246/$AF$5,Z246) -> 30888.19634 | AE245: EUR | AG245: =IFERROR(AG246/$AF$5,AG246) -> 32929.48968
B246: =B245 -> School heads aged 25-64 | J246: =$J$5 -> CZK | L246: 597100 | Q246: =$J$51 -> CZK | S246: 792900 | X246: =$J$51 -> CZK | Z246: 792900 | AE246: =$J$51 -> CZK | AG246: 845300
B247: =B246 -> School heads aged 25-64 | J247: PPS | L247: =IFERROR(L246/$Z$5,L246) -> 32157.82161 | Q247: =$J$52 -> PPS | S247: =IFERROR(S246/$Z$5,S246) -> 42702.95889 | X247: =$J$52 -> PPS | Z247: =IFERROR(Z246/$Z$5,Z246) -> 42702.95889 | AE247: =$J$52 -> PPS | AG247: =IFERROR(AG246/$Z$5,AG246) -> 45525.04874
B248: School heads aged 25-34 | J248: EUR | L248: =IFERROR(L249/$AF$5,L249) -> 20385.6642 | Q248: EUR | S248: =IFERROR(S249/$AF$5,S249) -> 26197.89638 | X248: EUR | Z248: =IFERROR(Z249/$AF$5,Z249) -> 26197.89638 | AE248: EUR | AG248: =IFERROR(AG249/$AF$5,AG249) -> 29279.31437
B249: =B248 -> School heads aged 25-34 | J249: =$J$5 -> CZK | L249: 523300 | Q249: =$J$5 -> CZK | S249: 672500 | X249: =$J$51 -> CZK | Z249: 672500 | AE249: =$J$51 -> CZK | AG249: 751600
B250: =B249 -> School heads aged 25-34 | J250: =$J$52 -> PPS | L250: =IFERROR(L249/$Z$5,L249) -> 28183.19887 | Q250: =$J$52 -> PPS | S250: =IFERROR(S249/$Z$5,S249) -> 36218.61502 | X250: =$J$52 -> PPS | Z250: =IFERROR(Z249/$Z$5,Z249) -> 36218.61502 | AE250: =$J$52 -> PPS | AG250: =IFERROR(AG249/$Z$5,AG249) -> 40478.67814
B251: School heads aged 35-44 | J251: EUR | L251: =IFERROR(L252/$AF$5,L252) -> 21542.6568 | Q251: EUR | S251: =IFERROR(S252/$AF$5,S252) -> 28500.19478 | X251: EUR | Z251: =IFERROR(Z252/$AF$5,Z252) -> 28500.19478 | AE251: EUR | AG251: =IFERROR(AG252/$AF$5,AG252) -> 29563.69303
B252: =B251 -> School heads aged 35-44 | J252: =$J$5 -> CZK | L252: 553000 | Q252: =$J$5 -> CZK | S252: 731600 | X252: =$J$51 -> CZK | Z252: 731600 | AE252: =$J$51 -> CZK | AG252: 758900
B253: =B252 -> School heads aged 35-44 | J253: =$J$52 -> PPS | L253: =IFERROR(L252/$Z$5,L252) -> 29782.74217 | Q253: =$J$52 -> PPS | S253: =IFERROR(S252/$Z$5,S252) -> 39401.54461 | X253: =$J$52 -> PPS | Z253: =IFERROR(Z252/$Z$5,Z252) -> 39401.54461 | AE253: =$J$52 -> PPS | AG253: =IFERROR(AG252/$Z$5,AG252) -> 40871.83188
B254: School heads aged 45-54 | J254: EUR | L254: =IFERROR(L255/$AF$5,L255) -> 23412.54383 | Q254: EUR | S254: =IFERROR(S255/$AF$5,S255) -> 30806.38878 | X254: EUR | Z254: =IFERROR(Z255/$AF$5,Z255) -> 30806.38878 | AE254: EUR | AG254: =IFERROR(AG255/$AF$5,AG255) -> 32598.36385
B255: =B254 -> School heads aged 45-54 | J255: =$J$5 -> CZK | L255: 601000 | Q255: =$J$5 -> CZK | S255: 790800 | X255: =$J$51 -> CZK | Z255: 790800 | AE255: =$J$51 -> CZK | AG255: 836800
B256: =B255 -> School heads aged 45-54 | J256: =$J$52 -> PPS | L256: =IFERROR(L255/$Z$5,L255) -> 32367.86264 | Q256: =$J$52 -> PPS | S256: =IFERROR(S255/$Z$5,S255) -> 42589.85986 | X256: =$J$52 -> PPS | Z256: =IFERROR(Z255/$Z$5,Z255) -> 42589.85986 | AE256: =$J$52 -> PPS | AG256: =IFERROR(AG255/$Z$5,AG255) -> 45067.26699
... 59 more rows

Sheet DE
A1: Germany | AK1: 2020/2021
B3: a | C3: not applicable | J3: m | K3: not available
B5: National currency: | J5: EUR | T5: 1 | Z5: 1.0749 | AF5: 1
B7: Contents
D8: =$A$37 -> 1. Teachers
D9: =$A$39 -> Annual gross statutory salaries of teachers in public schools
F11: =$B$43 -> Salary range for teachers with the minimum qualification
F12: =$B$67 -> Salary range for teachers with a higher qualification (when most prevalent)
D13: =$A$94 -> Average annual gross actual salaries of teachers in public schools
D14: =$A$119 -> Allowances for teachers in public schools
F16: =$B$120 -> Allowances related to other tasks and responsibilities
F17: =$B$143 -> Allowances related to qualifications, training and performance
F18: =$B$158 -> Allowances related to teaching conditions
F19: =$C$171 -> Other criteria
D20: =$A$186 -> 2. School heads
D21: =$A$188 -> Annual gross statutory salaries of school heads in public schools
F23: =$B$195 -> Single or lowest salary range (when more than one)
F24: =$B$209 -> Highest salary range
F25: =$B$223 -> Most prevalent range (when none of the above)
D27: =$A$241 -> Average annual gross actual salaries of school heads in public schools
D29: =$A$266 -> Allowances for school heads in public schools
F31: =$B$267 -> Allowances related to other tasks and responsibilities
F32: =$B$290 -> Allowances related to qualifications, training and performance
F33: =$B$305 -> Allowances related to working conditions
F34: =$B$318 -> Other criteria
A37: 1. Teachers
A39: Annual gross statutory salaries of teachers in public schools | AE39: 2020/2021
J40: ISCED 02 | Q40: ISCED 1 | X40: ISCED 24 | AE40: ISCED 34
B41: Authority level determining the statutory salaries of teachers | J41: Collective agreement | Q41: Top-level authority | X41: Top-level authority | AE41: Top-level authority
B43: Salary range for teachers with the minimum qualification
J45: ISCED 02 | Q45: ISCED 1 | X45: ISCED 24 | AE45: ISCED 34
B46: Minimum qualification to enter the teaching profession | J46: Qualification of Kindergarten teacher training programme (3 years, ISCED 6) | Q46: Master of Education or Equivalence (ISCED 7 or 8) plus preparatory service (12-24 months) | X46: Master of Education or Equivalence (ISCED 7 or 8) plus preparatory service (12-24 months) | AE46: Master of Education or Equivalence (ISCED 7 or 8) plus preparatory service (12-24 months)
B49: FALSE | C49: TRUE | D49: TRUE | J49: ISCED 02 | Q49: ISCED 1 | X49: ISCED 24 | AE49: ISCED 34
B50: Starting salary | J50: EUR | L50: =IFERROR(L51/$T$5,L51) -> m | Q50: EUR | S50: =IFERROR(S51/$T$5,S51) -> 54128.94536 | X50: EUR | Z50: =IFERROR(Z51/$T$5,Z51) -> 60162.82409 | AE50: EUR | AG50: =IFERROR(AG51/$T$5,AG51) -> 62926.14224
B51: =$B$50 -> Starting salary | J51: =$J$5 -> EUR | L51: m | Q51: =$J$5 -> EUR | S51: 54128.94536 | X51: =$J$5 -> EUR | Z51: 60162.82409 | AE51: =$J$5 -> EUR | AG51: 62926.14224
B52: =$B$50 -> Starting salary | J52: PPS | L52: =IFERROR(L51/$Z$5,L51) -> m | Q52: =$J$52 -> PPS | S52: =IFERROR(S51/$Z$5,S51) -> 50357.1917 | X52: =$J$52 -> PPS | Z52: =IFERROR(Z51/$Z$5,Z51) -> 55970.62433 | AE52: =$J$52 -> PPS | AG52: =IFERROR(AG51/$Z$5,AG51) -> 58541.39198
B53: After 10 years' experience | J53: EUR | L53: =IFERROR(L54/$T$5,L54) -> m | Q53: EUR | S53: =IFERROR(S54/$T$5,S54) -> 62293.42274 | X53: EUR | Z53: =IFERROR(Z54/$T$5,Z54) -> 68440.13383 | AE53: EUR | AG53: =IFERROR(AG54/$T$5,AG54) -> 71102.71366
B54: =$B$53 -> After 10 years' experience | J54: =$J$5 -> EUR | L54: m | Q54: =$J$5 -> EUR | S54: 62293.42274 | X54: =$J$5 -> EUR | Z54: 68440.13383 | AE54: =$J$5 -> EUR | AG54: 71102.71366
B55: =$B$53 -> After 10 years' experience | J55: =$J$52 -> PPS | L55: =IFERROR(L54/$Z$5,L54) -> m | Q55: =$J$52 -> PPS | S55: =IFERROR(S54/$Z$5,S54) -> 57952.76094 | X55: =$J$52 -> PPS | Z55: =IFERROR(Z54/$Z$5,Z54) -> 63671.16368 | AE55: =$J$52 -> PPS | AG55: =IFERROR(AG54/$Z$5,AG54) -> 66148.21254
B56: After 15 years' experience | J56: EUR | L56: =IFERROR(L57/$T$5,L57) -> m | Q56: EUR | S56: =IFERROR(S57/$T$5,S57) -> 66144.53064 | X56: EUR | Z56: =IFERROR(Z57/$T$5,Z57) -> 71990.77756 | AE56: EUR | AG56: =IFERROR(AG57/$T$5,AG57) -> 74609.64575
